Ref No,Fund Type,Dept,Cost Centre Description    ,Description    ,Creditor Name    ,GL Code Net Amount,Payment date        
2,Revenue,CAHD,18-25 Year Olds,Permanent Residential,1 St Georges House,13333.52, 05-May-2020
3,Revenue,CAHD,Covid 19 -Adult Social Care,Permanent Residential,1 St Georges House,1448.43, 27-May-2020
4,Revenue,CAHD,Early Years High Needs Support,Other Private Contractors,100 Acre Wood Day Nursery,835.70, 28-May-2020
5,Revenue,CAHD,CSC - Care Leavers Support Costs,Client Transport,1625 Independent People,500.00, 14-May-2020
6,Revenue,CAHD,Supporting People Programme,Grants to Voluntary Bodies,1625 Independent People,15167.00, 01-May-2020
7,Revenue,CAHD,Supporting People Programme,Grants to Voluntary Bodies,1625 Independent People,10541.50, 01-May-2020
8,Revenue,CAHD,CSC - Care Leavers Independent Living,Adults - Family Support,16Pluscare Support Solutions,689.04, 15-May-2020
9,Revenue,CAHD,Central - Commissioned Services,Other Small Contracts,3 Trees Community Support Ltd,5124.86, 11-May-2020
10,Revenue,CAHD,Central - Commissioned Services,Supported Living,3 Trees Community Support Ltd,4968.00, 11-May-2020
11,Revenue,CAHD,Central - Commissioned Services,Other Small Contracts,3 Trees Community Support Ltd,5126.88, 18-May-2020
12,Revenue,CAHD,Central - Commissioned Services,Supported Living,3 Trees Community Support Ltd,4940.60, 18-May-2020
13,Revenue,CAHD,Central - Commissioned Services,Other Small Contracts,3 Trees Community Support Ltd,5135.33, 18-May-2020
14,Revenue,CAHD,Central - Commissioned Services,Supported Living,3 Trees Community Support Ltd,4922.52, 18-May-2020
15,Revenue,CAHD,Covid 19 -Adult Social Care,Other Small Contracts,3 Trees Community Support Ltd,655.53, 05-May-2020
16,Revenue,CAHD,Covid 19 -Adult Social Care,Other Small Contracts,3 Trees Community Support Ltd,756.14, 13-May-2020
17,Revenue,CAHD,Additional Payments to providers - COVID,Other Small Contracts,3 Trees Community Support Ltd,781.52, 21-May-2020
18,Revenue,CAHD,Additional Payments to providers - COVID,Other Small Contracts,3 Trees Community Support Ltd,791.15, 28-May-2020
19,Revenue,CAHD,Additional Payments to providers - COVID,Other Small Contracts,3 Trees Community Support Ltd,767.61, 28-May-2020
20,Revenue,CAHD,Covid 19 -Adult Social Care,Other Small Contracts,3 Trees Community Support Ltd,4819.54, 27-May-2020
21,Revenue,CAHD,South - Commissioned Services,Permanent Nursing,3Rd Floor  The Aspect,3593.88, 05-May-2020
22,Revenue,CAHD,North - Community based support,Permanent Nursing,3Rd Floor  The Aspect,3200.00, 05-May-2020
23,Revenue,CAHD,North - Community based support,Permanent Nursing,3Rd Floor  The Aspect,1600.00, 05-May-2020
24,Revenue,CAHD,North - Community based support,Permanent Nursing,3Rd Floor  The Aspect,3234.72, 05-May-2020
25,Revenue,CAHD,South - Commissioned Services,Permanent Nursing,3Rd Floor  The Aspect,2287.36, 05-May-2020
26,Revenue,CAHD,Covid 19 -Adult Social Care,Permanent Residential,3Rd Floor  The Aspect,1735.71, 27-May-2020
27,Revenue,CAHD,South - Commissioned Services,Permanent Residential,5Th Floor Harlech Court,17000.48, 05-May-2020
28,Revenue,CAHD,South - Commissioned Services,Permanent Residential,5Th Floor Harlech Court,10627.92, 05-May-2020
29,Revenue,CAHD,S28A cases,Permanent Residential,5Th Floor Harlech Court,11122.76, 05-May-2020
30,Revenue,CAHD,S28A cases,Permanent Residential,5Th Floor Harlech Court,5561.38, 05-May-2020
31,Revenue,CAHD,South - Commissioned Services,Permanent Residential,5Th Floor Harlech Court,11665.12, 05-May-2020
32,Revenue,CAHD,Covid 19 -Adult Social Care,Permanent Residential,5Th Floor Harlech Court,5475.30, 27-May-2020
33,Revenue,CAHD,North - Community based support,Permanent Residential,5Th Floor Harlech Court,12498.56, 05-May-2020
34,Revenue,CAHD,Covid 19 -Adult Social Care,Permanent Residential,5Th Floor Harlech Court,1357.73, 27-May-2020
35,Revenue,CAHD,North - Community based support,Permanent Residential,5Th Floor Harlech Court,10537.24, 05-May-2020
36,Revenue,CAHD,North - Community based support,Permanent Residential,5Th Floor Harlech Court,9071.12, 05-May-2020
37,Revenue,CAHD,Covid 19 -Adult Social Care,Permanent Residential,5Th Floor Harlech Court,2130.07, 27-May-2020
38,Revenue,CAHD,Post 16 High Needs Placements,Other Private Contractors,Access To Music Ltd,2213.33, 15-May-2020
39,Revenue,CAHD,Jointly Funded H&SC Packages,Permanent Residential,Acorn Care Providers,2310.92, 05-May-2020
40,Revenue,CAHD,Section 117 Placements MH Younger,Permanent Residential,Acorn Care Providers,5481.28, 05-May-2020
41,Revenue,CAHD,North - S117,Permanent Residential,Acorn Care Providers,3978.00, 05-May-2020
42,Revenue,CAHD,Jointly Funded H&SC Packages,Permanent Residential,Acorn Care Providers,2142.00, 05-May-2020
43,Revenue,CAHD,MH Purchasing - Younger,Permanent Residential,Acorn Care Providers,6382.04, 05-May-2020
44,Revenue,CAHD,Jointly Funded H&SC Packages,Permanent Residential,Acorn Care Providers,3436.48, 05-May-2020
45,Revenue,CAHD,MH Purchasing - Younger,Permanent Residential,Acorn Care Providers,6266.88, 05-May-2020
46,Revenue,CAHD,Covid 19 -Adult Social Care,Permanent Residential,Acorn Care Providers,2400.99, 27-May-2020
47,Revenue,CAHD,CSC - Agency Fostering,Foster Parent Allowances,Action for Children,6750.00, 01-May-2020
48,Revenue,CAHD,CSC - Agency Fostering,Foster Parent Allowances,Action for Children,3542.10, 05-May-2020
49,Revenue,CAHD,CSC - Agency Fostering,Foster Parent Allowances,Action for Children,3542.10, 05-May-2020
50,Revenue,CAHD,CSC - Agency Fostering,Foster Parent Allowances,Action for Children,6975.00, 28-May-2020
51,Revenue,CAHD,CSC - Agency Fostering,Foster Parent Allowances,Action for Children,3660.17, 26-May-2020
52,Revenue,CAHD,CSC - Agency Fostering,Foster Parent Allowances,Action for Children,3660.17, 26-May-2020
53,Revenue,CAHD,CSC - Agency Fostering,Foster Parent Allowances,Action for Children,7971.34, 26-May-2020
54,Revenue,CAHD,South - Commissioned Services,Supported Living,Action on Hearing Loss,790.60, 07-May-2020
55,Revenue,CAHD,South - Commissioned Services,Supported Living,Action on Hearing Loss,884.40, 07-May-2020
56,Revenue,CAHD,South - Commissioned Services,Supported Living,Action on Hearing Loss,830.80, 07-May-2020
57,Revenue,CAHD,South - Commissioned Services,Supported Living,Action on Hearing Loss,857.60, 07-May-2020
58,Revenue,CAHD,South - Commissioned Services,Supported Living,Action on Hearing Loss,670.00, 07-May-2020
59,Revenue,CAHD,South - Commissioned Services,Supported Living,Action on Hearing Loss,723.60, 07-May-2020
60,Revenue,CAHD,South - Commissioned Services,Permanent Nursing,Administration And Revenue Centre,2789.80, 05-May-2020
61,Revenue,CAHD,South Glos Users in South Glos Homes,Permanent Nursing,Administration And Revenue Centre,662.24, 05-May-2020
62,Revenue,CAHD,South - Commissioned Services,Permanent Nursing,Administration And Revenue Centre,2445.96, 05-May-2020
63,Revenue,CAHD,South - Commissioned Services,Permanent Nursing,Administration And Revenue Centre,2445.96, 05-May-2020
64,Revenue,CAHD,South Glos Users in South Glos Homes,Permanent Nursing,Administration And Revenue Centre,662.24, 05-May-2020
65,Revenue,CAHD,South - Commissioned Services,Permanent Nursing,Administration And Revenue Centre,2445.96, 05-May-2020
66,Revenue,CAHD,South Glos Users in South Glos Homes,Permanent Nursing,Administration And Revenue Centre,662.24, 05-May-2020
67,Revenue,CAHD,South - Commissioned Services,Permanent Residential,Administration And Revenue Centre,2511.80, 05-May-2020
68,Revenue,CAHD,South Glos Users in South Glos Homes,Permanent Nursing,Administration And Revenue Centre,662.24, 05-May-2020
69,Revenue,CAHD,North - Community based support,Permanent Nursing,Administration And Revenue Centre,2949.60, 05-May-2020
70,Revenue,CAHD,South Glos Users in South Glos Homes,Permanent Nursing,Administration And Revenue Centre,662.24, 05-May-2020
71,Revenue,CAHD,South Glos Users in South Glos Homes,Permanent Nursing,Administration And Revenue Centre,662.24, 05-May-2020
72,Revenue,CAHD,South Glos Users in South Glos Homes,Permanent Nursing,Administration And Revenue Centre,3263.90, 05-May-2020
73,Revenue,CAHD,South Glos Users in South Glos Homes,Permanent Nursing,Administration And Revenue Centre,662.24, 05-May-2020
74,Revenue,CAHD,South Glos Users in South Glos Homes,Permanent Nursing,Administration And Revenue Centre,3263.90, 05-May-2020
75,Revenue,CAHD,South Glos Users in South Glos Homes,Permanent Nursing,Administration And Revenue Centre,662.24, 05-May-2020
76,Revenue,CAHD,South Glos Users in South Glos Homes,Permanent Nursing,Administration And Revenue Centre,3263.90, 05-May-2020
77,Revenue,CAHD,South Glos Users in South Glos Homes,Permanent Nursing,Administration And Revenue Centre,662.24, 05-May-2020
78,Revenue,CAHD,South - Commissioned Services,Permanent Nursing,Administration And Revenue Centre,2949.60, 05-May-2020
79,Revenue,CAHD,South - Commissioned Services,Permanent Residential,Administration And Revenue Centre,3203.04, 05-May-2020
80,Revenue,CAHD,South Glos Users in South Glos Homes,Permanent Nursing,Administration And Revenue Centre,3263.90, 05-May-2020
81,Revenue,CAHD,South Glos Users in South Glos Homes,Permanent Nursing,Administration And Revenue Centre,662.24, 05-May-2020
82,Revenue,CAHD,South Glos Users in South Glos Homes,Permanent Nursing,Administration And Revenue Centre,662.24, 05-May-2020
83,Revenue,CAHD,South Glos Users in South Glos Homes,Permanent Nursing,Administration And Revenue Centre,662.24, 05-May-2020
84,Revenue,CAHD,South - Commissioned Services,Permanent Nursing,Administration And Revenue Centre,2924.56, 05-May-2020
85,Revenue,CAHD,South - Commissioned Services,Permanent Nursing,Administration And Revenue Centre,2511.80, 05-May-2020
86,Revenue,CAHD,South Glos Users in South Glos Homes,Permanent Nursing,Administration And Revenue Centre,662.24, 05-May-2020
87,Revenue,CAHD,South - Commissioned Services,Permanent Nursing,Administration And Revenue Centre,2445.96, 05-May-2020
88,Revenue,CAHD,South Glos Users in South Glos Homes,Permanent Nursing,Administration And Revenue Centre,662.24, 05-May-2020
89,Revenue,CAHD,South Glos Users in South Glos Homes,Permanent Nursing,Administration And Revenue Centre,3263.90, 05-May-2020
90,Revenue,CAHD,South - Commissioned Services,Permanent Nursing,Administration And Revenue Centre,2445.96, 05-May-2020
91,Revenue,CAHD,South Glos Users in South Glos Homes,Permanent Nursing,Administration And Revenue Centre,662.24, 05-May-2020
92,Revenue,CAHD,South - S117,Permanent Residential,Administration And Revenue Centre,3190.56, 05-May-2020
93,Revenue,CAHD,South - Commissioned Services,Permanent Nursing,Administration And Revenue Centre,2445.96, 05-May-2020
94,Revenue,CAHD,South Glos Users in South Glos Homes,Permanent Nursing,Administration And Revenue Centre,662.24, 05-May-2020
95,Revenue,CAHD,South Glos Users in South Glos Homes,Permanent Nursing,Administration And Revenue Centre,2838.17, 05-May-2020
96,Revenue,CAHD,South - Commissioned Services,Permanent Nursing,Administration And Revenue Centre,2991.68, 05-May-2020
97,Revenue,CAHD,North - Community based support,Permanent Residential,Administration And Revenue Centre,2949.60, 05-May-2020
98,Revenue,CAHD,South Glos Users in South Glos Homes,Permanent Nursing,Administration And Revenue Centre,662.24, 05-May-2020
99,Revenue,CAHD,Covid 19 -Adult Social Care,Permanent Residential,Administration And Revenue Centre,4740.32, 27-May-2020
100,Revenue,CAHD,North - Community based support,Permanent Nursing,Administration And Revenue Centre,2367.00, 05-May-2020
101,Revenue,CAHD,North - Community based support,Permanent Nursing,Admirals Reach Care Home,2662.24, 05-May-2020
102,Revenue,CAHD,South - Commissioned Services,Other Small Contracts,Advantedge Commercial Finance Limited,818.72, 29-May-2020
103,Revenue,CAHD,South - Commissioned Services,Other Small Contracts,Advantedge Commercial Finance Limited,1205.82, 18-May-2020
104,Revenue,CAHD,South - Commissioned Services,Other Small Contracts,Advantedge Commercial Finance Limited,803.88, 13-May-2020
105,Revenue,CAHD,South - Commissioned Services,Other Small Contracts,Advantedge Commercial Finance Limited,1339.60, 18-May-2020
106,Revenue,CAHD,South - Commissioned Services,Other Small Contracts,Advantedge Commercial Finance Limited,669.90, 18-May-2020
107,Revenue,CAHD,South - Commissioned Services,Other Small Contracts,Advantedge Commercial Finance Limited,793.76, 18-May-2020
108,Revenue,CAHD,South - Commissioned Services,Other Small Contracts,Advantedge Commercial Finance Limited,1952.48, 18-May-2020
109,Revenue,CAHD,North - Community based support,Other Small Contracts,Advantedge Commercial Finance Limited,650.86, 18-May-2020
110,Revenue,CAHD,South - Commissioned Services,Other Small Contracts,Advantedge Commercial Finance Limited,554.96, 13-May-2020
111,Revenue,CAHD,South - Commissioned Services,Other Small Contracts,Advantedge Commercial Finance Limited,1617.28, 18-May-2020
112,Revenue,CAHD,South - Commissioned Services,Other Small Contracts,Advantedge Commercial Finance Limited,1330.28, 18-May-2020
113,Revenue,CAHD,South - Commissioned Services,Other Small Contracts,Advantedge Commercial Finance Limited,1224.72, 29-May-2020
114,Revenue,CAHD,South - Commissioned Services,Other Small Contracts,Advantedge Commercial Finance Limited,821.34, 29-May-2020
115,Revenue,CAHD,North - Community based support,Other Small Contracts,Advantedge Commercial Finance Limited,894.24, 29-May-2020
116,Revenue,CAHD,South - Commissioned Services,Other Small Contracts,Advantedge Commercial Finance Limited,544.32, 29-May-2020
117,Revenue,CAHD,South - Commissioned Services,Other Small Contracts,Advantedge Commercial Finance Limited,1632.96, 29-May-2020
118,Revenue,CAHD,South - Commissioned Services,Other Small Contracts,Advantedge Commercial Finance Limited,1351.08, 29-May-2020
119,Revenue,CAHD,Covid 19 -Adult Social Care,Other Small Contracts,Advantedge Commercial Finance Limited,2012.90, 27-May-2020
120,Revenue,CAHD,South - Commissioned Services,Day Care / Social Activities,Age Concern,634.08, 05-May-2020
121,Revenue,CAHD,Central - Commissioned Services,Day Care / Social Activities,Age Concern,546.72, 05-May-2020
122,Revenue,CAHD,North - Community based support,Day Care / Social Activities,Age Concern,734.40, 05-May-2020
123,Revenue,CAHD,Central - Commissioned Services,Day Care / Social Activities,Age Concern,546.72, 05-May-2020
124,Revenue,CAHD,Central - Commissioned Services,Day Care / Social Activities,Age Concern,634.08, 05-May-2020
125,Revenue,CAHD,Central - Commissioned Services,Day Care / Social Activities,Age Concern,634.08, 05-May-2020
126,Revenue,CAHD,Mental Health and Emotional Wellbeing,Grants to Voluntary Bodies,Age UK South Gloucestershire,13725.00, 12-May-2020
127,Revenue,CAHD,South - Commissioned Services,Other Small Contracts,Agincare UK Limited,589.26, 05-May-2020
128,Revenue,CAHD,Younger MH non-res purchasing,Other Small Contracts,Agincare UK Limited,96.60, 05-May-2020
129,Revenue,CAHD,South - Commissioned Services,Other Small Contracts,Agincare UK Limited,782.46, 19-May-2020
130,Revenue,CAHD,Younger MH non-res purchasing,Other Small Contracts,Agincare UK Limited,77.28, 19-May-2020
131,Revenue,CAHD,South - Commissioned Services,Other Small Contracts,Agincare UK Limited,598.92, 19-May-2020
132,Revenue,CAHD,Younger MH non-res purchasing,Other Small Contracts,Agincare UK Limited,77.28, 19-May-2020
133,Revenue,CAHD,Extra Care Housing,Private & Voluntary Home Care,Agincare UK Limited,24391.34, 01-May-2020
134,Revenue,CAHD,Extra Care Housing,Private & Voluntary Home Care,Agincare UK Limited,11734.93, 01-May-2020
135,Revenue,CAHD,Extra Care Housing,Private & Voluntary Home Care,Agincare UK Limited,28508.53, 04-May-2020
136,Revenue,CAHD,Additional Payments to providers - COVID,Other Small Contracts,Agincare UK Limited,6469.00, 21-May-2020
137,Revenue,CAHD,Additional Payments to providers - COVID,Other Small Contracts,Agincare UK Limited,6469.00, 21-May-2020
138,Revenue,CAHD,Additional Payments to providers - COVID,Other Small Contracts,Agincare UK Limited,6469.00, 21-May-2020
139,Revenue,CAHD,Extra Care Housing,Private & Voluntary Home Care,Agincare UK Limited,783.47, 26-May-2020
140,Revenue,CAHD,Extra Care Housing,Private & Voluntary Home Care,Agincare UK Limited,3412.01, 04-May-2020
141,Revenue,CAHD,Prison Assessments & Costs,Other Supplies & Services,Agincare UK Limited,2854.13, 05-May-2020
142,Revenue,CAHD,Central - Commissioned Services,Permanent Residential,Alexander House,12155.16, 05-May-2020
143,Revenue,CAHD,Covid 19 -Adult Social Care,Permanent Residential,Alexander House,1320.43, 27-May-2020
144,Revenue,CAHD,CSC - Age Related Allowances,Children - Family Support,Individual,922.86, 29-May-2020
145,Revenue,CAHD,CSC - Professional Fees Foster Carers,Children - Family Support,Individual,901.14, 29-May-2020
146,Revenue,CAHD,Covid 19 -Adult Social Care,Other Small Contracts,AliMo Care Ltd,4.78, 13-May-2020
147,Revenue,CAHD,South - Commissioned Services,Other Small Contracts,AliMo Care Ltd,999.02, 13-May-2020
148,Revenue,CAHD,North - Community based support,Other Small Contracts,AliMo Care Ltd,353.72, 13-May-2020
149,Revenue,CAHD,Covid 19 -Adult Social Care,Other Small Contracts,AliMo Care Ltd,9.56, 19-May-2020
150,Revenue,CAHD,South - Commissioned Services,Other Small Contracts,AliMo Care Ltd,1065.94, 19-May-2020
151,Revenue,CAHD,North - Community based support,Other Small Contracts,AliMo Care Ltd,363.28, 19-May-2020
152,Revenue,CAHD,Covid 19 -Adult Social Care,Other Small Contracts,AliMo Care Ltd,4.78, 19-May-2020
153,Revenue,CAHD,South - Commissioned Services,Other Small Contracts,AliMo Care Ltd,1018.14, 19-May-2020
154,Revenue,CAHD,North - Community based support,Other Small Contracts,AliMo Care Ltd,344.16, 19-May-2020
155,Revenue,CAHD,Covid 19 -Adult Social Care,Other Small Contracts,AliMo Care Ltd,674.80, 27-May-2020
156,Revenue,CAHD,North - Community based support,Permanent Nursing,Allambie Court,2320.44, 05-May-2020
157,Revenue,CAHD,North - Community based support,Permanent Nursing,Allambie Court,1160.22, 05-May-2020
158,Revenue,CAHD,Drug and Alcohol Programme,Other Small Contracts,Alveston Pharmacy,600.00, 27-May-2020
159,Revenue,CAHD,Central - Commissioned Services,Permanent Residential,Alvony House Residential Care Home,3000.00, 05-May-2020
160,Revenue,CAHD,Mental Health and Emotional Wellbeing,Grants to Voluntary Bodies,Alzheimers Society,11142.75, 12-May-2020
161,Revenue,CAHD,CSC - Residential Placements,Permanent Residential,Amberleigh Care Ltd,16877.14, 01-May-2020
162,Revenue,CAHD,North - Community based support,Permanent Nursing,Amerind Grove Nursing Home,2706.32, 05-May-2020
163,Revenue,CAHD,CSC - Parent & Child Assessments,Foster Parent Allowances,Amicus Foster Care Ltd,7379.40, 05-May-2020
164,Revenue,CAHD,CSC - Agency Fostering,Foster Parent Allowances,Amicus Foster Care Ltd,3755.27, 22-May-2020
165,Revenue,CAHD,CSC - Agency Fostering,Foster Parent Allowances,Amicus Foster Care Ltd,4879.00, 26-May-2020
166,Revenue,CAHD,CSC - Agency Fostering,Foster Parent Allowances,Amicus Foster Care Ltd,3880.44, 26-May-2020
167,Revenue,CAHD,Supporting People Programme,Grants to Voluntary Bodies,Anchor Hanover Group,1039.00, 01-May-2020
168,Revenue,CAHD,Supporting People Programme,Grants to Voluntary Bodies,Anchor Hanover Group,847.00, 01-May-2020
169,Revenue,CAHD,CSC - Legal Fees,Legal Fees,Individual,790.00, 11-May-2020
170,Revenue,CAHD,CSC - Vinney Green Secure Unit,External Lecturers Fees,Individual,600.00, 01-May-2020
171,Revenue,CAHD,Drug and Alcohol Programme,Other Small Contracts,Asda Stores Limited,675.00, 27-May-2020
172,Revenue,CAHD,South - Commissioned Services,Permanent Residential,Ash View House,5529.44, 05-May-2020
173,Revenue,CAHD,Jointly Funded H&SC Packages,Permanent Residential,Ash View House,1133.64, 05-May-2020
174,Revenue,CAHD,S117 Placements PCT,Permanent Residential,Ash View House,7707.44, 05-May-2020
175,Revenue,CAHD,North - Community based support,Permanent Residential,Ash View House,7099.52, 05-May-2020
176,Revenue,CAHD,North - Community based support,Permanent Residential,Ash View House,7120.00, 05-May-2020
177,Revenue,CAHD,Section 117 Placements MH Younger,Permanent Residential,Ash View House,5022.60, 05-May-2020
178,Revenue,CAHD,Jointly Funded H&SC Packages,Permanent Residential,Ash View House,2152.60, 05-May-2020
179,Revenue,CAHD,South - S117,Permanent Residential,Ash View House,6826.64, 05-May-2020
180,Revenue,CAHD,South - Commissioned Services,Permanent Residential,Ash View House,6747.84, 05-May-2020
181,Revenue,CAHD,Covid 19 -Adult Social Care,Permanent Residential,Ash View House,1544.68, 27-May-2020
182,Revenue,CAHD,Covid 19 -Adult Social Care,Permanent Residential,Ash View House,3457.22, 27-May-2020
183,Revenue,CAHD,CSC - Legal Fees,Legal Fees,Individual,500.00, 12-May-2020
184,Revenue,CAHD,Bed and Breakfast,Bed & Breakfast,Ashley Guest Houses Limited,420.00, 18-May-2020
185,Revenue,CAHD,Bed and Breakfast,Bed & Breakfast,Ashley Guest Houses Limited,420.00, 18-May-2020
186,Revenue,CAHD,North - Community based support,Permanent Residential,Aspects 2 Limited,7231.88, 05-May-2020
187,Revenue,CAHD,Covid 19 -Adult Social Care,Permanent Residential,Aspects 2 Limited,785.61, 27-May-2020
188,Revenue,CAHD,Supporting People Programme,Grants to Voluntary Bodies,Aspects and Milestones Trust,3441.00, 01-May-2020
189,Revenue,CAHD,Supporting People Programme,Grants to Voluntary Bodies,Aspects and Milestones Trust,1725.00, 01-May-2020
190,Revenue,CAHD,CSC - Care Leavers Independent Living,Adults - Family Support,Aspirations Support Bristol Limited,15419.68, 26-May-2020
191,Revenue,CAHD,South - Commissioned Services,Permanent Residential,Astbury Manor,6680.71, 05-May-2020
192,Revenue,CAHD,South - Commissioned Services,Permanent Residential,Astbury Manor,4122.14, 05-May-2020
193,Revenue,CAHD,South - Commissioned Services,Permanent Residential,Astbury Manor,1137.14, 05-May-2020
194,Revenue,CAHD,South - Commissioned Services,Permanent Residential,Astbury Manor,4832.86, 05-May-2020
195,Revenue,CAHD,Covid 19 -Adult Social Care,Permanent Residential,Astbury Manor,1296.00, 27-May-2020
196,Revenue,CAHD,South - Commissioned Services,Adults - Family Support,Ategi Limited,1009.74, 11-May-2020
197,Revenue,CAHD,South - Commissioned Services,Adults - Family Support,Ategi Limited,17773.52, 27-May-2020
198,Revenue,CAHD,Independent Special Placements - Pre 16,Other Private Contractors,Aurora Hedgeway School,17258.66, 07-May-2020
199,Revenue,CAHD,South - Commissioned Services,Permanent Residential,Autism Specialised Care Homes,6506.88, 05-May-2020
200,Revenue,CAHD,Covid 19 -Adult Social Care,Permanent Residential,Autism Specialised Care Homes,706.85, 27-May-2020
201,Revenue,CAHD,CSC - Adoption Support Fund,Post Adoption,Individual,640.00, 29-May-2020
202,Revenue,CAHD,CSC - Adoption Support Fund,Post Adoption,Individual,585.00, 27-May-2020
203,Revenue,CAHD,Community Support - North,Preventative Assistance,Avon & Wiltshire Mental Health,1820.00, 22-May-2020
204,Revenue,CAHD,Younger Adult Mental Health,Health Services (Third Party Payments),Avon & Wiltshire Mental Health,1693.33, 05-May-2020
205,Revenue,CAHD,South - Commissioned Services,Permanent Nursing,Avon Lodge Care Centre,4341.36, 05-May-2020
206,Revenue,CAHD,South Glos Users in South Glos Homes,Permanent Nursing,Avon Lodge Care Centre,662.24, 05-May-2020
207,Revenue,CAHD,South Glos Users in South Glos Homes,Permanent Nursing,Avon Lodge Care Centre,662.24, 05-May-2020
208,Revenue,CAHD,South - Commissioned Services,Permanent Nursing,Avon Lodge Care Centre,4537.76, 05-May-2020
209,Revenue,CAHD,South Glos Users in South Glos Homes,Permanent Nursing,Avon Lodge Care Centre,662.24, 05-May-2020
210,Revenue,CAHD,South - Commissioned Services,Permanent Nursing,Avon Lodge Care Centre,4311.16, 05-May-2020
211,Revenue,CAHD,South Glos Users in South Glos Homes,Permanent Nursing,Avon Lodge Care Centre,662.24, 05-May-2020
212,Revenue,CAHD,South Glos Users in South Glos Homes,Permanent Nursing,Avon Lodge Care Centre,662.24, 05-May-2020
213,Revenue,CAHD,South - Commissioned Services,Permanent Nursing,Avon Lodge Care Centre,4311.16, 05-May-2020
214,Revenue,CAHD,South Glos Users in South Glos Homes,Permanent Nursing,Avon Lodge Care Centre,662.24, 05-May-2020
215,Revenue,CAHD,South - Commissioned Services,Permanent Nursing,Avon Lodge Care Centre,3885.48, 05-May-2020
216,Revenue,CAHD,South Glos Users in South Glos Homes,Permanent Nursing,Avon Lodge Care Centre,662.24, 05-May-2020
217,Revenue,CAHD,South - Commissioned Services,Permanent Nursing,Avon Lodge Care Centre,4537.76, 05-May-2020
218,Revenue,CAHD,South Glos Users in South Glos Homes,Permanent Nursing,Avon Lodge Care Centre,662.24, 05-May-2020
219,Revenue,CAHD,South Glos Users in South Glos Homes,Permanent Nursing,Avon Lodge Care Centre,662.24, 05-May-2020
220,Revenue,CAHD,Central - Commissioned Services,Permanent Nursing,Avon Lodge Care Centre,4311.16, 05-May-2020
221,Revenue,CAHD,South Glos Users in South Glos Homes,Permanent Nursing,Avon Lodge Care Centre,662.24, 05-May-2020
222,Revenue,CAHD,South - Commissioned Services,Permanent Nursing,Avon Lodge Care Centre,4311.16, 05-May-2020
223,Revenue,CAHD,South Glos Users in South Glos Homes,Permanent Nursing,Avon Lodge Care Centre,662.24, 05-May-2020
224,Revenue,CAHD,South Glos Users in South Glos Homes,Permanent Nursing,Avon Lodge Care Centre,662.24, 05-May-2020
225,Revenue,CAHD,South Glos Users in South Glos Homes,Permanent Nursing,Avon Lodge Care Centre,662.24, 05-May-2020
226,Revenue,CAHD,South - Commissioned Services,Permanent Nursing,Avon Lodge Care Centre,4311.16, 05-May-2020
227,Revenue,CAHD,South - Commissioned Services,Permanent Nursing,Avon Lodge Care Centre,3448.20, 05-May-2020
228,Revenue,CAHD,South Glos Users in South Glos Homes,Permanent Nursing,Avon Lodge Care Centre,662.24, 05-May-2020
229,Revenue,CAHD,South - Commissioned Services,Permanent Nursing,Avon Lodge Care Centre,4311.16, 05-May-2020
230,Revenue,CAHD,South Glos Users in South Glos Homes,Permanent Nursing,Avon Lodge Care Centre,662.24, 05-May-2020
231,Revenue,CAHD,South - Commissioned Services,Permanent Nursing,Avon Lodge Care Centre,4537.76, 05-May-2020
232,Revenue,CAHD,South Glos Users in South Glos Homes,Permanent Nursing,Avon Lodge Care Centre,662.24, 05-May-2020
233,Revenue,CAHD,South - Commissioned Services,Permanent Nursing,Avon Lodge Care Centre,4311.16, 05-May-2020
234,Revenue,CAHD,South Glos Users in South Glos Homes,Permanent Nursing,Avon Lodge Care Centre,662.24, 05-May-2020
235,Revenue,CAHD,South - Commissioned Services,Permanent Nursing,Avon Lodge Care Centre,4347.88, 05-May-2020
236,Revenue,CAHD,South Glos Users in South Glos Homes,Permanent Nursing,Avon Lodge Care Centre,2128.63, 05-May-2020
237,Revenue,CAHD,South Glos Users in South Glos Homes,Permanent Nursing,Avon Lodge Care Centre,662.24, 05-May-2020
238,Revenue,CAHD,South Glos Users in South Glos Homes,Permanent Nursing,Avon Lodge Care Centre,662.24, 05-May-2020
239,Revenue,CAHD,South Glos Users in South Glos Homes,Permanent Nursing,Avon Lodge Care Centre,662.24, 05-May-2020
240,Revenue,CAHD,South Glos Users in South Glos Homes,Permanent Nursing,Avon Lodge Care Centre,662.24, 05-May-2020
241,Revenue,CAHD,South Glos Users in South Glos Homes,Permanent Nursing,Avon Lodge Care Centre,662.24, 05-May-2020
242,Revenue,CAHD,South - Commissioned Services,Permanent Nursing,Avon Lodge Care Centre,4311.16, 05-May-2020
243,Revenue,CAHD,South Glos Users in South Glos Homes,Permanent Nursing,Avon Lodge Care Centre,662.24, 05-May-2020
244,Revenue,CAHD,South - Commissioned Services,Permanent Nursing,Avon Lodge Care Centre,4403.84, 05-May-2020
245,Revenue,CAHD,South Glos Users in South Glos Homes,Permanent Nursing,Avon Lodge Care Centre,662.24, 05-May-2020
246,Revenue,CAHD,South - Commissioned Services,Permanent Nursing,Avon Lodge Care Centre,4445.56, 05-May-2020
247,Revenue,CAHD,South Glos Users in South Glos Homes,Permanent Nursing,Avon Lodge Care Centre,662.24, 05-May-2020
248,Revenue,CAHD,South Glos Users in South Glos Homes,Permanent Nursing,Avon Lodge Care Centre,662.24, 05-May-2020
249,Revenue,CAHD,South - Commissioned Services,Permanent Nursing,Avon Lodge Care Centre,4311.16, 05-May-2020
250,Revenue,CAHD,South Glos Users in South Glos Homes,Permanent Nursing,Avon Lodge Care Centre,662.24, 05-May-2020
251,Revenue,CAHD,South Glos Users in South Glos Homes,Permanent Nursing,Avon Lodge Care Centre,662.24, 05-May-2020
252,Revenue,CAHD,South Glos Users in South Glos Homes,Permanent Nursing,Avon Lodge Care Centre,662.24, 05-May-2020
253,Revenue,CAHD,South - Commissioned Services,Permanent Nursing,Avon Lodge Care Centre,4311.16, 05-May-2020
254,Revenue,CAHD,South Glos Users in South Glos Homes,Permanent Nursing,Avon Lodge Care Centre,1986.72, 05-May-2020
255,Revenue,CAHD,South - Commissioned Services,Permanent Nursing,Avon Lodge Care Centre,2155.58, 05-May-2020
256,Revenue,CAHD,South Glos Users in South Glos Homes,Permanent Nursing,Avon Lodge Care Centre,662.24, 05-May-2020
257,Revenue,CAHD,Central - Commissioned Services,Permanent Nursing,Avon Lodge Care Centre,3884.80, 05-May-2020
258,Revenue,CAHD,South Glos Users in South Glos Homes,Permanent Nursing,Avon Lodge Care Centre,662.24, 05-May-2020
259,Revenue,CAHD,South - Commissioned Services,Permanent Nursing,Avon Lodge Care Centre,4311.16, 05-May-2020
260,Revenue,CAHD,South Glos Users in South Glos Homes,Permanent Nursing,Avon Lodge Care Centre,662.24, 05-May-2020
261,Revenue,CAHD,South Glos Users in South Glos Homes,Permanent Nursing,Avon Lodge Care Centre,662.24, 05-May-2020
262,Revenue,CAHD,South Glos Users in South Glos Homes,Permanent Nursing,Avon Lodge Care Centre,662.24, 05-May-2020
263,Revenue,CAHD,South - bed purchasing and direct  payments,Permanent Nursing,Avon Lodge Care Centre,4311.16, 05-May-2020
264,Revenue,CAHD,South Glos Users in South Glos Homes,Permanent Nursing,Avon Lodge Care Centre,2909.13, 05-May-2020
265,Revenue,CAHD,South Glos Users in South Glos Homes,Permanent Nursing,Avon Lodge Care Centre,662.24, 05-May-2020
266,Revenue,CAHD,South Glos Users in South Glos Homes,Permanent Nursing,Avon Lodge Care Centre,662.24, 05-May-2020
267,Revenue,CAHD,South Glos Users in South Glos Homes,Permanent Nursing,Avon Lodge Care Centre,662.24, 05-May-2020
268,Revenue,CAHD,South - Commissioned Services,Permanent Nursing,Avon Lodge Care Centre,4530.04, 05-May-2020
269,Revenue,CAHD,South Glos Users in South Glos Homes,Permanent Nursing,Avon Lodge Care Centre,662.24, 05-May-2020
270,Revenue,CAHD,South - S117,Permanent Nursing,Avon Lodge Care Centre,3885.48, 05-May-2020
271,Revenue,CAHD,South Glos Users in South Glos Homes,Permanent Nursing,Avon Lodge Care Centre,662.24, 05-May-2020
272,Revenue,CAHD,South Glos Users in South Glos Homes,Permanent Nursing,Avon Lodge Care Centre,662.24, 05-May-2020
273,Revenue,CAHD,South Glos Users in South Glos Homes,Permanent Nursing,Avon Lodge Care Centre,662.24, 05-May-2020
274,Revenue,CAHD,Covid 19 -Adult Social Care,Permanent Residential,Avon Lodge Care Centre,11593.38, 27-May-2020
275,Revenue,CAHD,South - Commissioned Services,Permanent Residential,Avon Valley Care Home,3750.69, 05-May-2020
276,Revenue,CAHD,South - Commissioned Services,Permanent Residential,Avon Valley Care Home,4080.00, 05-May-2020
277,Revenue,CAHD,South - Commissioned Services,Permanent Residential,Avon Valley Care Home,4080.00, 05-May-2020
278,Revenue,CAHD,South - Commissioned Services,Fees & Charges Income - General,Avon Valley Care Home,1404.72, 05-May-2020
279,Revenue,CAHD,South - Commissioned Services,Permanent Residential,Avon Valley Care Home,4039.20, 05-May-2020
280,Revenue,CAHD,South - Commissioned Services,Permanent Residential,Avon Valley Care Home,9085.71, 05-May-2020
281,Revenue,CAHD,South - Commissioned Services,Permanent Residential,Avon Valley Care Home,4800.00, 05-May-2020
282,Revenue,CAHD,South - Commissioned Services,Fees & Charges Income - General,Avon Valley Care Home,900.00, 05-May-2020
283,Revenue,CAHD,South - Commissioned Services,Permanent Residential,Avon Valley Care Home,4080.00, 05-May-2020
284,Revenue,CAHD,South - Commissioned Services,Permanent Residential,Avon Valley Care Home,4800.00, 05-May-2020
285,Revenue,CAHD,Central - Commissioned Services,Respite Planned - Residential,Avon Valley Care Home,2714.29, 05-May-2020
286,Revenue,CAHD,Central - Commissioned Services,Respite Planned - Residential,Avon Valley Care Home,2285.71, 05-May-2020
287,Revenue,CAHD,South - Commissioned Services,Fees & Charges Income - General,Avon Valley Care Home,879.81, 05-May-2020
288,Revenue,CAHD,Covid 19 -Adult Social Care,Permanent Residential,Avon Valley Care Home,3250.66, 27-May-2020
289,Revenue,CAHD,North - Community based support,Permanent Residential,Avonmere Care Home,4284.00, 05-May-2020
290,Revenue,CAHD,North - Community based support,Permanent Residential,Avonmere Care Home,4386.80, 05-May-2020
291,Revenue,CAHD,North - Community based support,Permanent Residential,Avonmere Care Home,5420.00, 05-May-2020
292,Revenue,CAHD,North - Community based support,Permanent Residential,Avonmere Care Home,4420.00, 05-May-2020
293,Revenue,CAHD,South - Commissioned Services,Permanent Residential,Avonmere Care Home,8228.57, 05-May-2020
294,Revenue,CAHD,Covid 19 -Adult Social Care,Permanent Residential,Avonmere Care Home,2025.72, 27-May-2020
295,Revenue,CAHD,Pensions - Non DSG,Annual Pension,Bath & North East Somerset Council,108395.88, 26-May-2020
296,Revenue,CAHD,Pensions - Non DSG,Annual Pension,Bath & North East Somerset Council,107913.74, 26-May-2020
297,Revenue,CAHD,South Glos Users in South Glos Homes,Permanent Nursing,Beaufort Grange Care Home,662.24, 05-May-2020
298,Revenue,CAHD,South Glos Users in South Glos Homes,Permanent Nursing,Beaufort Grange Care Home,662.24, 05-May-2020
299,Revenue,CAHD,South Glos Users in South Glos Homes,Permanent Nursing,Beaufort Grange Care Home,662.24, 05-May-2020
300,Revenue,CAHD,South Glos Users in South Glos Homes,Permanent Nursing,Beaufort Grange Care Home,662.24, 05-May-2020
301,Revenue,CAHD,South Glos Users in South Glos Homes,Permanent Nursing,Beaufort Grange Care Home,662.24, 05-May-2020
302,Revenue,CAHD,South Glos Users in South Glos Homes,Permanent Nursing,Beaufort Grange Care Home,662.24, 05-May-2020
303,Revenue,CAHD,South Glos Users in South Glos Homes,Permanent Nursing,Beaufort Grange Care Home,662.24, 05-May-2020
304,Revenue,CAHD,South Glos Users in South Glos Homes,Permanent Nursing,Beaufort Grange Care Home,662.24, 05-May-2020
305,Revenue,CAHD,South Glos Users in South Glos Homes,Permanent Nursing,Beaufort Grange Care Home,662.24, 05-May-2020
306,Revenue,CAHD,North - S117,Permanent Nursing,Beaufort Grange Care Home,4877.04, 05-May-2020
307,Revenue,CAHD,South Glos Users in South Glos Homes,Permanent Nursing,Beaufort Grange Care Home,662.24, 05-May-2020
308,Revenue,CAHD,South Glos Users in South Glos Homes,Permanent Nursing,Beaufort Grange Care Home,662.24, 05-May-2020
309,Revenue,CAHD,South Glos Users in South Glos Homes,Permanent Nursing,Beaufort Grange Care Home,662.24, 05-May-2020
310,Revenue,CAHD,South Glos Users in South Glos Homes,Permanent Nursing,Beaufort Grange Care Home,662.24, 05-May-2020
311,Revenue,CAHD,Central - Commissioned Services,Permanent Nursing,Beaufort Grange Care Home,4428.00, 05-May-2020
312,Revenue,CAHD,South Glos Users in South Glos Homes,Permanent Nursing,Beaufort Grange Care Home,662.24, 05-May-2020
313,Revenue,CAHD,South Glos Users in South Glos Homes,Permanent Nursing,Beaufort Grange Care Home,662.24, 05-May-2020
314,Revenue,CAHD,Central - Commissioned Services,Permanent Nursing,Beaufort Grange Care Home,5500.00, 05-May-2020
315,Revenue,CAHD,South Glos Users in South Glos Homes,Permanent Nursing,Beaufort Grange Care Home,662.24, 05-May-2020
316,Revenue,CAHD,South Glos Users in South Glos Homes,Permanent Nursing,Beaufort Grange Care Home,662.24, 05-May-2020
317,Revenue,CAHD,South Glos Users in South Glos Homes,Permanent Nursing,Beaufort Grange Care Home,662.24, 05-May-2020
318,Revenue,CAHD,South Glos Users in South Glos Homes,Permanent Nursing,Beaufort Grange Care Home,6054.77, 05-May-2020
319,Revenue,CAHD,North - S117,Permanent Nursing,Beaufort Grange Care Home,5005.76, 05-May-2020
320,Revenue,CAHD,South Glos Users in South Glos Homes,Permanent Nursing,Beaufort Grange Care Home,662.24, 05-May-2020
321,Revenue,CAHD,Central - Commissioned Services,Respite Planned - Residential,Beaufort Grange Care Home,1417.00, 05-May-2020
322,Revenue,CAHD,South Glos Users in South Glos Homes,Permanent Nursing,Beaufort Grange Care Home,662.24, 05-May-2020
323,Revenue,CAHD,South - Commissioned Services,Respite Emergency - Residential,Beaufort Grange Care Home,5840.00, 05-May-2020
324,Revenue,CAHD,South - Commissioned Services,Respite Emergency - Residential,Beaufort Grange Care Home,2920.00, 05-May-2020
325,Revenue,CAHD,South - Commissioned Services,Respite Emergency - Residential,Beaufort Grange Care Home,625.71, 05-May-2020
326,Revenue,CAHD,South Glos Users in South Glos Homes,Permanent Nursing,Beaufort Grange Care Home,662.24, 05-May-2020
327,Revenue,CAHD,South Glos Users in South Glos Homes,Permanent Nursing,Beaufort Grange Care Home,662.24, 05-May-2020
328,Revenue,CAHD,South Glos Users in South Glos Homes,Permanent Nursing,Beaufort Grange Care Home,662.24, 05-May-2020
329,Revenue,CAHD,South Glos Users in South Glos Homes,Permanent Nursing,Beaufort Grange Care Home,662.24, 05-May-2020
330,Revenue,CAHD,South Glos Users in South Glos Homes,Permanent Nursing,Beaufort Grange Care Home,662.24, 05-May-2020
331,Revenue,CAHD,South Glos Users in South Glos Homes,Permanent Nursing,Beaufort Grange Care Home,662.24, 05-May-2020
332,Revenue,CAHD,South Glos Users in South Glos Homes,Permanent Nursing,Beaufort Grange Care Home,662.24, 05-May-2020
333,Revenue,CAHD,South Glos Users in South Glos Homes,Permanent Nursing,Beaufort Grange Care Home,662.24, 05-May-2020
334,Revenue,CAHD,South Glos Users in South Glos Homes,Permanent Nursing,Beaufort Grange Care Home,662.24, 05-May-2020
335,Revenue,CAHD,South Glos Users in South Glos Homes,Permanent Nursing,Beaufort Grange Care Home,662.24, 05-May-2020
336,Revenue,CAHD,South Glos Users in South Glos Homes,Permanent Nursing,Beaufort Grange Care Home,662.24, 05-May-2020
337,Revenue,CAHD,South Glos Users in South Glos Homes,Permanent Nursing,Beaufort Grange Care Home,662.24, 05-May-2020
338,Revenue,CAHD,South Glos Users in South Glos Homes,Permanent Nursing,Beaufort Grange Care Home,662.24, 05-May-2020
339,Revenue,CAHD,South Glos Users in South Glos Homes,Permanent Nursing,Beaufort Grange Care Home,662.24, 05-May-2020
340,Revenue,CAHD,South Glos Users in South Glos Homes,Permanent Nursing,Beaufort Grange Care Home,662.24, 05-May-2020
341,Revenue,CAHD,South Glos Users in South Glos Homes,Permanent Nursing,Beaufort Grange Care Home,662.24, 05-May-2020
342,Revenue,CAHD,South Glos Users in South Glos Homes,Permanent Nursing,Beaufort Grange Care Home,662.24, 05-May-2020
343,Revenue,CAHD,South Glos Users in South Glos Homes,Permanent Nursing,Beaufort Grange Care Home,662.24, 05-May-2020
344,Revenue,CAHD,South Glos Users in South Glos Homes,Permanent Nursing,Beaufort Grange Care Home,662.24, 05-May-2020
345,Revenue,CAHD,South Glos Users in South Glos Homes,Permanent Nursing,Beaufort Grange Care Home,662.24, 05-May-2020
346,Revenue,CAHD,South Glos Users in South Glos Homes,Permanent Nursing,Beaufort Grange Care Home,3784.23, 05-May-2020
347,Revenue,CAHD,South Glos Users in South Glos Homes,Permanent Nursing,Beaufort Grange Care Home,662.24, 05-May-2020
348,Revenue,CAHD,South Glos Users in South Glos Homes,Permanent Nursing,Beaufort Grange Care Home,3405.81, 05-May-2020
349,Revenue,CAHD,South Glos Users in South Glos Homes,Permanent Nursing,Beaufort Grange Care Home,662.24, 05-May-2020
350,Revenue,CAHD,South Glos Users in South Glos Homes,Permanent Nursing,Beaufort Grange Care Home,2223.23, 05-May-2020
351,Revenue,CAHD,South Glos Users in South Glos Homes,Permanent Nursing,Beaufort Grange Care Home,662.24, 05-May-2020
352,Revenue,CAHD,South Glos Users in South Glos Homes,Permanent Nursing,Beaufort Grange Care Home,662.24, 05-May-2020
353,Revenue,CAHD,South Glos Users in South Glos Homes,Permanent Nursing,Beaufort Grange Care Home,662.24, 05-May-2020
354,Revenue,CAHD,South Glos Users in South Glos Homes,Permanent Nursing,Beaufort Grange Care Home,3382.15, 05-May-2020
355,Revenue,CAHD,South Glos Users in South Glos Homes,Permanent Nursing,Beaufort Grange Care Home,662.24, 05-May-2020
356,Revenue,CAHD,North - Community based support,Permanent Nursing,Beaufort Grange Care Home,5405.76, 05-May-2020
357,Revenue,CAHD,North - Community based support,Permanent Nursing,Beaufort Grange Care Home,5405.76, 05-May-2020
358,Revenue,CAHD,North - Community based support,Fees & Charges Income - General,Beaufort Grange Care Home,572.37, 05-May-2020
359,Revenue,CAHD,South Glos Users in South Glos Homes,Permanent Nursing,Beaufort Grange Care Home,662.24, 05-May-2020
360,Revenue,CAHD,Covid 19 -Adult Social Care,Permanent Residential,Beaufort Grange Care Home,2795.12, 27-May-2020
361,Revenue,CAHD,North - Community based support,Permanent Residential,Beaufort House,2600.56, 05-May-2020
362,Revenue,CAHD,Central - Commissioned Services,Permanent Residential,Beaufort House,2924.56, 05-May-2020
363,Revenue,CAHD,Central - Commissioned Services,Permanent Residential,Beaufort House,2831.12, 05-May-2020
364,Revenue,CAHD,North - Community based support,Permanent Residential,Beaufort House,2622.84, 05-May-2020
365,Revenue,CAHD,South - Commissioned Services,Permanent Residential,Beaufort House,2587.56, 05-May-2020
366,Revenue,CAHD,Central - Commissioned Services,Permanent Residential,Beaufort House,3400.00, 05-May-2020
367,Revenue,CAHD,Central - Commissioned Services,Permanent Residential,Beaufort House,1700.00, 05-May-2020
368,Revenue,CAHD,South - Commissioned Services,Permanent Residential,Beaufort House,3400.00, 05-May-2020
369,Revenue,CAHD,North - Community based support,Permanent Residential,Beaufort House,2753.92, 05-May-2020
370,Revenue,CAHD,North - Community based support,Permanent Residential,Beaufort House,1376.96, 05-May-2020
371,Revenue,CAHD,Central - Bed Purchasing and Direct Payments,Permanent Residential,Beaufort House,3400.00, 05-May-2020
372,Revenue,CAHD,Covid 19 -Adult Social Care,Permanent Residential,Beaufort House,3182.21, 27-May-2020
373,Revenue,CAHD,South - Commissioned Services,Permanent Residential,Beech House,3018.84, 05-May-2020
374,Revenue,CAHD,South Glos Users in South Glos Homes,Permanent Nursing,Beech House,662.24, 05-May-2020
375,Revenue,CAHD,South Glos Users in South Glos Homes,Permanent Nursing,Beech House,662.24, 05-May-2020
376,Revenue,CAHD,North - Community based support,Permanent Residential,Beech House,4263.60, 05-May-2020
377,Revenue,CAHD,South Glos Users in South Glos Homes,Permanent Nursing,Beech House,662.24, 05-May-2020
378,Revenue,CAHD,South Glos Users in South Glos Homes,Permanent Nursing,Beech House,662.24, 05-May-2020
379,Revenue,CAHD,South Glos Users in South Glos Homes,Permanent Nursing,Beech House,662.24, 05-May-2020
380,Revenue,CAHD,South Glos Users in South Glos Homes,Permanent Nursing,Beech House,662.24, 05-May-2020
381,Revenue,CAHD,South Glos Users in South Glos Homes,Permanent Nursing,Beech House,662.24, 05-May-2020
382,Revenue,CAHD,South Glos Users in South Glos Homes,Permanent Nursing,Beech House,662.24, 05-May-2020
383,Revenue,CAHD,North - Community based support,Permanent Nursing,Beech House,4368.88, 05-May-2020
384,Revenue,CAHD,South Glos Users in South Glos Homes,Permanent Nursing,Beech House,662.24, 05-May-2020
385,Revenue,CAHD,South Glos Users in South Glos Homes,Permanent Nursing,Beech House,662.24, 05-May-2020
386,Revenue,CAHD,South Glos Users in South Glos Homes,Permanent Nursing,Beech House,662.24, 05-May-2020
387,Revenue,CAHD,North - Community based support,Respite Planned - Nursing,Beech House,3732.14, 05-May-2020
388,Revenue,CAHD,South Glos Users in South Glos Homes,Permanent Nursing,Beech House,662.24, 05-May-2020
389,Revenue,CAHD,South Glos Users in South Glos Homes,Permanent Nursing,Beech House,662.24, 05-May-2020
390,Revenue,CAHD,North - Community based support,Permanent Nursing,Beech House,4308.04, 05-May-2020
391,Revenue,CAHD,South Glos Users in South Glos Homes,Permanent Nursing,Beech House,662.24, 05-May-2020
392,Revenue,CAHD,South Glos Users in South Glos Homes,Permanent Nursing,Beech House,662.24, 05-May-2020
393,Revenue,CAHD,South Glos Users in South Glos Homes,Permanent Nursing,Beech House,662.24, 05-May-2020
394,Revenue,CAHD,North - Community based support,Permanent Nursing,Beech House,4182.00, 05-May-2020
395,Revenue,CAHD,South Glos Users in South Glos Homes,Permanent Nursing,Beech House,662.24, 05-May-2020
396,Revenue,CAHD,South Glos Users in South Glos Homes,Permanent Nursing,Beech House,662.24, 05-May-2020
397,Revenue,CAHD,South Glos Users in South Glos Homes,Permanent Nursing,Beech House,662.24, 05-May-2020
398,Revenue,CAHD,South Glos Users in South Glos Homes,Permanent Nursing,Beech House,662.24, 05-May-2020
399,Revenue,CAHD,North - Community based support,Permanent Residential,Beech House,4365.92, 05-May-2020
400,Revenue,CAHD,Covid 19 -Adult Social Care,Permanent Residential,Beech House,3496.92, 27-May-2020
401,Revenue,CAHD,South Glos Users in South Glos Homes,Permanent Nursing,Beechwood Care Home,1028.00, 05-May-2020
402,Revenue,CAHD,Central - Commissioned Services,Permanent Residential,Beechwood Court,15254.92, 05-May-2020
403,Revenue,CAHD,Covid 19 -Adult Social Care,Permanent Residential,Beechwood Court,1657.16, 27-May-2020
404,Revenue,CAHD,CSC - Residential Placements,Permanent Residential,Beechwood Court Ltd,21794.66, 22-May-2020
405,Revenue,CAHD,South - S117,Permanent Residential,Bidna House,3692.64, 05-May-2020
406,Revenue,CAHD,Tobacco Control,Other Supplies & Services,Bionical Solutions Limited,2025.00, 01-May-2020
407,Revenue,CAHD,CSC - Vinney Green Secure Unit,Training Expenses,Blackhorse Sports and Community Association,1200.00, 15-May-2020
408,Revenue,CAHD,Statemented Support Academies,Other L.A.'s - General,Blaise High School,907.83, 28-May-2020
409,Revenue,CAHD,Central - Commissioned Services,Other Small Contracts,Blakehill Healthcare Ltd,2800.00, 07-May-2020
410,Revenue,CAHD,Central - Commissioned Services,Other Small Contracts,Blakehill Healthcare Ltd,3181.25, 07-May-2020
411,Revenue,CAHD,Central - Commissioned Services,Other Small Contracts,Blakehill Healthcare Ltd,1862.50, 26-May-2020
412,Revenue,CAHD,Central - Commissioned Services,Other Small Contracts,Blakehill Healthcare Ltd,1187.50, 22-May-2020
413,Revenue,CAHD,Central - Commissioned Services,Other Small Contracts,Blakehill Healthcare Ltd,3375.00, 06-May-2020
414,Revenue,CAHD,South - Commissioned Services,Other Small Contracts,Blakehill Healthcare Ltd,1575.00, 18-May-2020
415,Revenue,CAHD,Central - Commissioned Services,Other Small Contracts,Blakehill Healthcare Ltd,1050.00, 13-May-2020
416,Revenue,CAHD,Central - Commissioned Services,Other Small Contracts,Blakehill Healthcare Ltd,1037.50, 15-May-2020
417,Revenue,CAHD,Central - Commissioned Services,Other Small Contracts,Blakehill Healthcare Ltd,587.50, 13-May-2020
418,Revenue,CAHD,Central - Commissioned Services,Other Small Contracts,Blakehill Healthcare Ltd,4261.75, 15-May-2020
419,Revenue,CAHD,Central - Commissioned Services,Other Small Contracts,Blakehill Healthcare Ltd,5241.60, 13-May-2020
420,Revenue,CAHD,Central - Commissioned Services,Other Small Contracts,Blakehill Healthcare Ltd,525.00, 07-May-2020
421,Revenue,CAHD,Central - Commissioned Services,Other Small Contracts,Blakehill Healthcare Ltd,3450.00, 13-May-2020
422,Revenue,CAHD,Central - Commissioned Services,Other Small Contracts,Blakehill Healthcare Ltd,975.00, 07-May-2020
423,Revenue,CAHD,North - Community based support,Other Small Contracts,Blakehill Healthcare Ltd,3012.50, 13-May-2020
424,Revenue,CAHD,Central - Commissioned Services,Other Small Contracts,Blakehill Healthcare Ltd,5241.60, 13-May-2020
425,Revenue,CAHD,Central - Commissioned Services,Other Small Contracts,Blakehill Healthcare Ltd,975.00, 13-May-2020
426,Revenue,CAHD,Covid 19 -Adult Social Care,Other Small Contracts,Blakehill Healthcare Ltd,1571.90, 07-May-2020
427,Revenue,CAHD,Additional Payments to providers - COVID,Other Small Contracts,Blakehill Healthcare Ltd,1999.25, 21-May-2020
428,Revenue,CAHD,Additional Payments to providers - COVID,Other Small Contracts,Blakehill Healthcare Ltd,1825.00, 28-May-2020
429,Revenue,CAHD,Additional Payments to providers - COVID,Other Small Contracts,Blakehill Healthcare Ltd,1960.50, 28-May-2020
430,Revenue,CAHD,Covid 19 -Adult Social Care,Other Small Contracts,Blakehill Healthcare Ltd,6502.85, 27-May-2020
431,Revenue,CAHD,South - Commissioned Services,Permanent Nursing,Blossom Field,4780.36, 05-May-2020
432,Revenue,CAHD,South Glos Users in South Glos Homes,Permanent Nursing,Blossom Field,662.24, 05-May-2020
433,Revenue,CAHD,South Glos Users in South Glos Homes,Permanent Nursing,Blossom Field,662.24, 05-May-2020
434,Revenue,CAHD,North - Community based support,Permanent Nursing,Blossom Field,4770.40, 05-May-2020
435,Revenue,CAHD,South Glos Users in South Glos Homes,Permanent Nursing,Blossom Field,662.24, 05-May-2020
436,Revenue,CAHD,South Glos Users in South Glos Homes,Permanent Nursing,Blossom Field,662.24, 05-May-2020
437,Revenue,CAHD,North - Community based support,Permanent Nursing,Blossom Field,4352.80, 05-May-2020
438,Revenue,CAHD,South Glos Users in South Glos Homes,Permanent Nursing,Blossom Field,662.24, 05-May-2020
439,Revenue,CAHD,North - Community based support,Permanent Nursing,Blossom Field,4039.20, 05-May-2020
440,Revenue,CAHD,North - Community based support,Permanent Nursing,Blossom Field,2019.60, 05-May-2020
441,Revenue,CAHD,North - Community based support,Fees & Charges Income - General,Blossom Field,1037.12, 05-May-2020
442,Revenue,CAHD,South Glos Users in South Glos Homes,Permanent Nursing,Blossom Field,662.24, 05-May-2020
443,Revenue,CAHD,South Glos Users in South Glos Homes,Permanent Nursing,Blossom Field,662.24, 05-May-2020
444,Revenue,CAHD,South - Commissioned Services,Permanent Nursing,Blossom Field,4501.36, 05-May-2020
445,Revenue,CAHD,South Glos Users in South Glos Homes,Permanent Nursing,Blossom Field,662.24, 05-May-2020
446,Revenue,CAHD,South Glos Users in South Glos Homes,Permanent Nursing,Blossom Field,662.24, 05-May-2020
447,Revenue,CAHD,North - Community based support,Permanent Nursing,Blossom Field,3604.60, 05-May-2020
448,Revenue,CAHD,South Glos Users in South Glos Homes,Permanent Nursing,Blossom Field,662.24, 05-May-2020
449,Revenue,CAHD,North - Community based support,Fees & Charges Income - General,Blossom Field,598.97, 05-May-2020
450,Revenue,CAHD,South Glos Users in South Glos Homes,Permanent Nursing,Blossom Field,662.24, 05-May-2020
451,Revenue,CAHD,North - Community based support,Permanent Nursing,Blossom Field,4799.88, 05-May-2020
452,Revenue,CAHD,North - Community based support,Permanent Nursing,Blossom Field,2399.94, 05-May-2020
453,Revenue,CAHD,South Glos Users in South Glos Homes,Permanent Nursing,Blossom Field,662.24, 05-May-2020
454,Revenue,CAHD,South Glos Users in South Glos Homes,Permanent Nursing,Blossom Field,662.24, 05-May-2020
455,Revenue,CAHD,North - Community based support,Permanent Nursing,Blossom Field,4800.00, 05-May-2020
456,Revenue,CAHD,South Glos Users in South Glos Homes,Permanent Nursing,Blossom Field,662.24, 05-May-2020
457,Revenue,CAHD,South Glos Users in South Glos Homes,Permanent Nursing,Blossom Field,662.24, 05-May-2020
458,Revenue,CAHD,Central - Commissioned Services,Permanent Nursing,Blossom Field,4352.72, 05-May-2020
459,Revenue,CAHD,South Glos Users in South Glos Homes,Permanent Nursing,Blossom Field,662.24, 05-May-2020
460,Revenue,CAHD,South Glos Users in South Glos Homes,Permanent Nursing,Blossom Field,662.24, 05-May-2020
461,Revenue,CAHD,South Glos Users in South Glos Homes,Permanent Nursing,Blossom Field,662.24, 05-May-2020
462,Revenue,CAHD,North - Community based support,Permanent Nursing,Blossom Field,4352.72, 05-May-2020
463,Revenue,CAHD,South Glos Users in South Glos Homes,Permanent Nursing,Blossom Field,662.24, 05-May-2020
464,Revenue,CAHD,South - Commissioned Services,Permanent Nursing,Blossom Field,4039.20, 05-May-2020
465,Revenue,CAHD,South Glos Users in South Glos Homes,Permanent Nursing,Blossom Field,662.24, 05-May-2020
466,Revenue,CAHD,South Glos Users in South Glos Homes,Permanent Nursing,Blossom Field,662.24, 05-May-2020
467,Revenue,CAHD,South Glos Users in South Glos Homes,Permanent Nursing,Blossom Field,662.24, 05-May-2020
468,Revenue,CAHD,South Glos Users in South Glos Homes,Permanent Nursing,Blossom Field,662.24, 05-May-2020
469,Revenue,CAHD,South Glos Users in South Glos Homes,Permanent Nursing,Blossom Field,662.24, 05-May-2020
470,Revenue,CAHD,South Glos Users in South Glos Homes,Permanent Nursing,Blossom Field,662.24, 05-May-2020
471,Revenue,CAHD,South Glos Users in South Glos Homes,Permanent Nursing,Blossom Field,662.24, 05-May-2020
472,Revenue,CAHD,South Glos Users in South Glos Homes,Permanent Nursing,Blossom Field,662.24, 05-May-2020
473,Revenue,CAHD,North - Community based support,Permanent Nursing,Blossom Field,3707.64, 05-May-2020
474,Revenue,CAHD,South Glos Users in South Glos Homes,Permanent Nursing,Blossom Field,662.24, 05-May-2020
475,Revenue,CAHD,Covid 19 -Adult Social Care,Permanent Residential,Blossom Field,6097.47, 27-May-2020
476,Revenue,CAHD,North - Community based support,Permanent Residential,Bluebells,3699.60, 05-May-2020
477,Revenue,CAHD,Covid 19 -Adult Social Care,Other Small Contracts,Bluebird Care (South Gloucestershire),15.10, 04-May-2020
478,Revenue,CAHD,Central - Commissioned Services,Other Small Contracts,Bluebird Care (South Gloucestershire),5670.75, 04-May-2020
479,Revenue,CAHD,South - Commissioned Services,Other Small Contracts,Bluebird Care (South Gloucestershire),1434.50, 04-May-2020
480,Revenue,CAHD,North - Community based support,Other Small Contracts,Bluebird Care (South Gloucestershire),4348.75, 04-May-2020
481,Revenue,CAHD,Covid 19 -Adult Social Care,Other Small Contracts,Bluebird Care (South Gloucestershire),15.10, 12-May-2020
482,Revenue,CAHD,Central - Commissioned Services,Other Small Contracts,Bluebird Care (South Gloucestershire),5439.70, 12-May-2020
483,Revenue,CAHD,South - Commissioned Services,Other Small Contracts,Bluebird Care (South Gloucestershire),1494.90, 12-May-2020
484,Revenue,CAHD,North - Community based support,Other Small Contracts,Bluebird Care (South Gloucestershire),4854.59, 12-May-2020
485,Revenue,CAHD,Covid 19 -Adult Social Care,Other Small Contracts,Bluebird Care (South Gloucestershire),15.10, 21-May-2020
486,Revenue,CAHD,Central - Commissioned Services,Other Small Contracts,Bluebird Care (South Gloucestershire),5118.90, 21-May-2020
487,Revenue,CAHD,South - Commissioned Services,Other Small Contracts,Bluebird Care (South Gloucestershire),1777.35, 21-May-2020
488,Revenue,CAHD,North - Community based support,Other Small Contracts,Bluebird Care (South Gloucestershire),5232.09, 21-May-2020
489,Revenue,CAHD,Covid 19 -Adult Social Care,Other Small Contracts,Bluebird Care (South Gloucestershire),5151.87, 27-May-2020
490,Revenue,CAHD,CSC - Vinney Green Secure Unit,"Provisions (Food, etc)",Booker Cash & Carry,528.50, 20-May-2020
491,Revenue,CAHD,CSC - Vinney Green Secure Unit,"Provisions (Food, etc)",Booker Cash & Carry,587.15, 15-May-2020
492,Revenue,CAHD,Schools Specific Grant Income,Educational Materials,Booktrust,4779.66, 01-May-2020
493,Revenue,CAHD,Drug and Alcohol Programme,Other Small Contracts,Boots UK Ltd,750.00, 27-May-2020
494,Revenue,CAHD,Drug and Alcohol Programme,Other Small Contracts,Boots UK Ltd,600.00, 27-May-2020
495,Revenue,CAHD,S28A cases,Permanent Residential,Bradbury House,6505.16, 05-May-2020
496,Revenue,CAHD,Covid 19 -Adult Social Care,Permanent Residential,Bradbury House,706.66, 27-May-2020
497,Revenue,CAHD,North - Community based support,Permanent Residential,Bradbury House,9917.08, 05-May-2020
498,Revenue,CAHD,Covid 19 -Adult Social Care,Permanent Residential,Bradbury House,1077.30, 27-May-2020
499,Revenue,CAHD,North - S117,Permanent Residential,Bradbury House,5740.24, 05-May-2020
500,Revenue,CAHD,Jointly Funded H&SC Packages,Permanent Residential,Bradbury House,7927.00, 05-May-2020
501,Revenue,CAHD,North - S117,Permanent Residential,Bradbury House,2870.12, 05-May-2020
502,Revenue,CAHD,Jointly Funded H&SC Packages,Permanent Residential,Bradbury House,3963.50, 05-May-2020
503,Revenue,CAHD,Covid 19 -Adult Social Care,Permanent Residential,Bradbury House,623.57, 27-May-2020
504,Revenue,CAHD,South - Commissioned Services,Permanent Residential,Bradbury House,9777.00, 05-May-2020
505,Revenue,CAHD,Covid 19 -Adult Social Care,Permanent Residential,Bradbury House,1062.08, 27-May-2020
506,Revenue,CAHD,Sexual Health,Other Small Contracts,Bradley Stoke Surgery,1086.00, 26-May-2020
507,Revenue,CAHD,Drug and Alcohol Programme,Other Small Contracts,Bradley Stoke Surgery,1319.00, 29-May-2020
508,Revenue,CAHD,CSC - Residential Placements,Permanent Residential,Branas ISAF Ltd,19285.71, 14-May-2020
509,Revenue,CAHD,North - Community based support,Permanent Residential,Breadstone House Care Centre,2088.68, 05-May-2020
510,Revenue,CAHD,North - Community based support,Permanent Residential,Breadstone House Care Centre,2364.36, 05-May-2020
511,Revenue,CAHD,Social Lettings Agency,Fees - General,Individual,8.15, 20-May-2020
512,Revenue,CAHD,Social Lettings Agency,Other Supplies & Services,Individual,766.10, 20-May-2020
513,Revenue,CAHD,North - bed purchasing and direct  payments,Permanent Residential,Bridge House Care Home,2740.00, 05-May-2020
514,Revenue,CAHD,North - Community based support,Permanent Residential,Bridge House Care Home,2678.04, 05-May-2020
515,Revenue,CAHD,Covid 19 -Adult Social Care,Permanent Residential,Bridge House Care Home,588.49, 27-May-2020
516,Revenue,CAHD,North - Community based support,Permanent Residential,Bridgwater Court Care Home,10773.64, 05-May-2020
517,Revenue,CAHD,Covid 19 -Adult Social Care,Permanent Residential,Bridgwater Court Care Home,1170.35, 27-May-2020
518,Revenue,CAHD,EY Business & Financial Management,Contribns & Reimbs - Other LAs,Bright Sparks Pre School Ltd,1000.00, 06-May-2020
519,Revenue,CAHD,Early Years Inclusion Fund,Other Public Bodies,Bright Sparks Pre-School,2650.00, 27-May-2020
520,Revenue,CAHD,CSC - Care Leavers Support Costs,Client Transport,Brislington Transport and Moving Services,510.00, 22-May-2020
521,Revenue,CAHD,Health Inequalities,Grants to Voluntary Bodies,Bristol & Avon Chinese Womens Group,500.00, 12-May-2020
522,Revenue,CAHD,Older People`s Commissioned Se,Grants to Voluntary Bodies,Bristol Area Stroke Foundation,19052.75, 12-May-2020
523,Revenue,CAHD,Statemented Support Payments to OLAs,Other L.A.'s - General,Bristol City Council - Schools,1379.43, 28-May-2020
524,Revenue,CAHD,Statemented Support Payments to OLAs,Other L.A.'s - General,Bristol City Council - Schools,554.13, 28-May-2020
525,Revenue,CAHD,Statemented Support Payments to OLAs,Other L.A.'s - General,Bristol City Council - Schools,660.24, 28-May-2020
526,Revenue,CAHD,Bed and Breakfast,Bed & Breakfast,Bristol Housing & Support Limited,420.00, 26-May-2020
527,Revenue,CAHD,Bed and Breakfast,Bed & Breakfast,Bristol Housing & Support Limited,420.00, 13-May-2020
528,Revenue,CAHD,Training - Adult Services,Training Expenses,Bristol Management Centre Limited,1549.17, 26-May-2020
529,Revenue,CAHD,Training - Adult Services,Training Expenses,British Institute of Human Rights,1500.00, 13-May-2020
530,Revenue,CAHD,Training - Adult Services,Training Expenses,British Institute of Human Rights,500.00, 22-May-2020
531,Revenue,CAHD,Statemented Support Payments to OLAs,Other L.A.'s - General,Broadlands Academy,1332.27, 28-May-2020
532,Revenue,CAHD,Supporting People Programme,Grants to Voluntary Bodies,Bromford  :  Merlin Housing Society,15637.00, 01-May-2020
533,Revenue,CAHD,Supporting People Programme,Grants to Voluntary Bodies,Bromford  :  Merlin Housing Society,2741.00, 01-May-2020
534,Revenue,CAHD,Supporting People Programme,Grants to Voluntary Bodies,Bromford  :  Merlin Housing Society,22940.00, 01-May-2020
535,Revenue,CAHD,Supporting People Programme,Grants to Voluntary Bodies,Bromford  :  Merlin Housing Society,1113.00, 01-May-2020
536,Revenue,CAHD,Discretionary Housing Payment,Other Supplies & Services,Bromford Carinthia Housing Association Ltd,693.00, 12-May-2020
537,Revenue,CAHD,South - Commissioned Services,Other Small Contracts,Brunelcare,15522.94, 11-May-2020
538,Revenue,CAHD,North - Community based support,Other Small Contracts,Brunelcare,302.56, 11-May-2020
539,Revenue,CAHD,South - Commissioned Services,Other Small Contracts,Brunelcare,15273.96, 12-May-2020
540,Revenue,CAHD,North - Community based support,Other Small Contracts,Brunelcare,307.44, 12-May-2020
541,Revenue,CAHD,South - Commissioned Services,Other Small Contracts,Brunelcare,15671.24, 13-May-2020
542,Revenue,CAHD,North - Community based support,Other Small Contracts,Brunelcare,312.32, 13-May-2020
543,Revenue,CAHD,South - Commissioned Services,Other Small Contracts,Brunelcare,15289.20, 19-May-2020
544,Revenue,CAHD,North - Community based support,Other Small Contracts,Brunelcare,336.72, 19-May-2020
545,Revenue,CAHD,Covid 19 -Adult Social Care,Other Small Contracts,Brunelcare,8940.15, 27-May-2020
546,Revenue,CAHD,Pathway 1 - Re-Ablement Home Care,Other Small Contracts,Brunelcare,6798.12, 11-May-2020
547,Revenue,CAHD,Pathway 1 - Re-Ablement Home Care,Other Small Contracts,Brunelcare,1245.29, 11-May-2020
548,Revenue,CAHD,North - S117,Permanent Residential,Buckland Care,3600.00, 05-May-2020
549,Revenue,CAHD,Training - Adult Services,Training Expenses,BW Training & Coaching Ltd,900.00, 29-May-2020
550,Revenue,CAHD,Training - Adult Services,Training Expenses,BW Training & Coaching Ltd,900.00, 29-May-2020
551,Revenue,CAHD,CSC - Agency Fostering,Foster Parent Allowances,By the Bridge Ltd,4350.00, 27-May-2020
552,Revenue,CAHD,Social Lettings Agency,Fees - General,Individual,16.16, 26-May-2020
553,Revenue,CAHD,Social Lettings Agency,Other Supplies & Services,Individual,710.96, 26-May-2020
554,Revenue,CAHD,Statemented Support Payments to OLAs,Other L.A.'s - General,Cabot Learning Federation,1544.49, 28-May-2020
555,Revenue,CAHD,Schools Specific Grant Income - from OLA,Other Public Bodies,Cabot Learning Federation,650.00, 05-May-2020
556,Revenue,CAHD,Statemented Support Academies,Other Public Bodies,Cabot Learning Federation,918.71, 28-May-2020
557,Revenue,CAHD,Statemented Support Academies,Other Public Bodies,Cabot Learning Federation,1202.39, 28-May-2020
558,Revenue,CAHD,Statemented Support Academies,Other Public Bodies,Cabot Learning Federation,4540.00, 28-May-2020
559,Revenue,CAHD,Statemented Support Academies,Other Public Bodies,Cabot Learning Federation,518.76, 28-May-2020
560,Revenue,CAHD,Statemented Support Academies,Other Public Bodies,Cabot Learning Federation,907.83, 28-May-2020
561,Revenue,CAHD,Statemented Support Academies,Other Public Bodies,Cabot Learning Federation,554.13, 28-May-2020
562,Revenue,CAHD,Statemented Support Academies,Other Public Bodies,Cabot Learning Federation,565.92, 28-May-2020
563,Revenue,CAHD,Statemented Support Academies,Other Public Bodies,Cabot Learning Federation,1048.67, 28-May-2020
564,Revenue,CAHD,Statemented Support Academies,Other Public Bodies,Cabot Learning Federation,2616.63, 28-May-2020
565,Revenue,CAHD,Statemented Support Payments to OLAs,Other L.A.'s - General,Cabot Learning Federation,1013.94, 28-May-2020
566,Revenue,CAHD,Statemented Support Academies,Other Public Bodies,Cabot Learning Federation,695.61, 28-May-2020
567,Revenue,CAHD,Statemented Support Academies,Other Public Bodies,Cabot Learning Federation,530.55, 28-May-2020
568,Revenue,CAHD,Statemented Support Academies,Other Public Bodies,Cabot Learning Federation,918.75, 28-May-2020
569,Revenue,CAHD,Statemented Support Academies,Other Public Bodies,Cabot Learning Federation,975.58, 28-May-2020
570,Revenue,CAHD,Academy Resource Base Funding,Other Public Bodies,Cabot Learning Federation,4931.52, 12-May-2020
571,Revenue,CAHD,Academy Resource Base Funding,Other Public Bodies,Cabot Learning Federation,1175.87, 26-May-2020
572,Revenue,CAHD,Academy Resource Base Funding,Other Public Bodies,Cabot Learning Federation,1702.96, 26-May-2020
573,Revenue,CAHD,Academy Resource Base Funding,Other Public Bodies,Cabot Learning Federation,1540.83, 26-May-2020
574,Revenue,CAHD,Academy Resource Base Funding,Other Public Bodies,Cabot Learning Federation,1175.87, 26-May-2020
575,Revenue,CAHD,Academy Resource Base Funding,Other Public Bodies,Cabot Learning Federation,1175.87, 26-May-2020
576,Revenue,CAHD,Academy Resource Base Funding,Other Public Bodies,Cabot Learning Federation,1702.96, 26-May-2020
577,Revenue,CAHD,Academy Resource Base Funding,Other Public Bodies,Cabot Learning Federation,1540.83, 26-May-2020
578,Revenue,CAHD,Academy Resource Base Funding,Other Public Bodies,Cabot Learning Federation,1175.87, 26-May-2020
579,Revenue,CAHD,Academy Resource Base Funding,Other Public Bodies,Cabot Learning Federation,1540.83, 26-May-2020
580,Revenue,CAHD,Academy Resource Base Funding,Other Public Bodies,Cabot Learning Federation,1175.87, 26-May-2020
581,Revenue,CAHD,Academy Resource Base Funding,Other Public Bodies,Cabot Learning Federation,1175.87, 26-May-2020
582,Revenue,CAHD,Academy Resource Base Funding,Other Public Bodies,Cabot Learning Federation,1702.96, 26-May-2020
583,Revenue,CAHD,Academy Resource Base Funding,Other Public Bodies,Cabot Learning Federation,648.70, 26-May-2020
584,Revenue,CAHD,Academy Resource Base Funding,Other Public Bodies,Cabot Learning Federation,1013.74, 26-May-2020
585,Revenue,CAHD,Academy Resource Base Funding,Other Public Bodies,Cabot Learning Federation,648.70, 26-May-2020
586,Revenue,CAHD,Academy Resource Base Funding,Other Public Bodies,Cabot Learning Federation,1540.83, 26-May-2020
587,Revenue,CAHD,Academy Resource Base Funding,Other Public Bodies,Cabot Learning Federation,2189.53, 26-May-2020
588,Revenue,CAHD,Academy Resource Base Funding,Other Public Bodies,Cabot Learning Federation,2189.53, 26-May-2020
589,Revenue,CAHD,Academy Resource Base Funding,Other Public Bodies,Cabot Learning Federation,1175.87, 26-May-2020
590,Revenue,CAHD,Statemented Support Payments to OLAs,Other L.A.'s - General,Cabot Learning Federation,872.46, 28-May-2020
591,Revenue,CAHD,Statemented Support Academies,Other Public Bodies,Cabot Learning Federation,804.08, 28-May-2020
592,Revenue,CAHD,Statemented Support Academies,Other Public Bodies,Cabot Learning Federation,554.13, 28-May-2020
593,Revenue,CAHD,Statemented Support Academies,Other Public Bodies,Cabot Learning Federation,742.77, 28-May-2020
594,Revenue,CAHD,Statemented Support Academies,Other Public Bodies,Cabot Learning Federation,778.14, 28-May-2020
595,Revenue,CAHD,Statemented Support Academies,Other Public Bodies,Cabot Learning Federation,943.20, 28-May-2020
596,Revenue,CAHD,Statemented Support Academies,Other Public Bodies,Cabot Learning Federation,813.51, 28-May-2020
597,Revenue,CAHD,Inclusion Support and Virtual School,Other Public Bodies,Cabot Learning Federation,6000.00, 05-May-2020
598,Revenue,CAHD,Inclusion Support and Virtual School,Other Public Bodies,Cabot Learning Federation,3000.00, 05-May-2020
599,Revenue,CAHD,Statemented Support Payments to OLAs,Other L.A.'s - General,Cabot Learning Federation,601.29, 28-May-2020
600,Revenue,CAHD,Statemented Support Academies,Other Public Bodies,Cabot Learning Federation,860.67, 28-May-2020
601,Revenue,CAHD,Statemented Support Academies,Other Public Bodies,Cabot Learning Federation,589.50, 28-May-2020
602,Revenue,CAHD,Statemented Support Academies,Other Public Bodies,Cabot Learning Federation,801.72, 28-May-2020
603,Revenue,CAHD,Statemented Support Academies,Other Public Bodies,Cabot Learning Federation,1096.47, 28-May-2020
604,Revenue,CAHD,Statemented Support Academies,Other Public Bodies,Cabot Learning Federation,730.98, 28-May-2020
605,Revenue,CAHD,Statemented Support Academies,Other Public Bodies,Cabot Learning Federation,907.83, 28-May-2020
606,Revenue,CAHD,Statemented Support Academies,Other Public Bodies,Cabot Learning Federation,530.55, 28-May-2020
607,Revenue,CAHD,Statemented Support Academies,Other Public Bodies,Cabot Learning Federation,907.83, 28-May-2020
608,Revenue,CAHD,Statemented Support Payments to OLAs,Other L.A.'s - General,Cabot Learning Federation,1072.89, 28-May-2020
609,Revenue,CAHD,Statemented Support Academies,Other Public Bodies,Cabot Learning Federation,1296.90, 28-May-2020
610,Revenue,CAHD,Statemented Support Academies,Other Public Bodies,Cabot Learning Federation,872.46, 28-May-2020
611,Revenue,CAHD,Sexual Health,Other Small Contracts,Cadbury Heath Healthcare,1140.00, 26-May-2020
612,Revenue,CAHD,Drug and Alcohol Programme,Other Small Contracts,Cadbury Heath Healthcare,2943.50, 29-May-2020
613,Revenue,CAHD,Early Years High Needs Support,Other Private Contractors,Caerleon Childcare,515.71, 28-May-2020
614,Revenue,CAHD,North - Community based support,Permanent Nursing,Caernarvon House,4800.00, 05-May-2020
615,Revenue,CAHD,North - Community based support,Permanent Nursing,Caernarvon House,4710.40, 05-May-2020
616,Revenue,CAHD,South - Commissioned Services,Permanent Nursing,Caernarvon House,4710.40, 05-May-2020
617,Revenue,CAHD,North - S117,Permanent Nursing,Caernarvon House,3990.24, 05-May-2020
618,Revenue,CAHD,South - Commissioned Services,Permanent Nursing,Caernarvon House,4915.20, 05-May-2020
619,Revenue,CAHD,North - Community based support,Permanent Nursing,Caernarvon House,4733.76, 05-May-2020
620,Revenue,CAHD,South - Commissioned Services,Permanent Nursing,Caernarvon House,4800.00, 05-May-2020
621,Revenue,CAHD,South - Commissioned Services,Permanent Nursing,Caernarvon House,4300.80, 05-May-2020
622,Revenue,CAHD,South - S117,Permanent Nursing,Caernarvon House,4915.20, 05-May-2020
623,Revenue,CAHD,North - Community based support,Permanent Nursing,Caernarvon House,4800.00, 05-May-2020
624,Revenue,CAHD,South - Commissioned Services,Respite Emergency - Residential,Caernarvon House,4800.00, 05-May-2020
625,Revenue,CAHD,Covid 19 -Adult Social Care,Permanent Residential,Caernarvon House,5591.89, 27-May-2020
626,Revenue,CAHD,CSC - Residential Placements,Permanent Residential,Cambian Childcare Ltd,23250.00, 20-May-2020
627,Revenue,CAHD,CSC - Residential Placements,Permanent Residential,Cambian Childcare Ltd,19928.66, 14-May-2020
628,Revenue,CAHD,CSC - Residential Placements,Permanent Residential,Cambian Childcare Ltd,19042.99, 14-May-2020
629,Revenue,CAHD,CSC - Residential Placements,Permanent Residential,Cambian Childcare Ltd,23250.00, 14-May-2020
630,Revenue,CAHD,North - Community based support,Day Care / Social Activities,Camphill Communities Thornbury Limited,487.83, 12-May-2020
631,Revenue,CAHD,North - Community based support,Other Small Contracts,Camphill Communities Thornbury Limited,671.37, 12-May-2020
632,Revenue,CAHD,North - Community based support,Supported Living,Camphill Communities Thornbury Limited,1062.60, 12-May-2020
633,Revenue,CAHD,North - Community based support,Day Care / Social Activities,Camphill Communities Thornbury Limited,478.17, 21-May-2020
634,Revenue,CAHD,North - Community based support,Other Small Contracts,Camphill Communities Thornbury Limited,671.37, 21-May-2020
635,Revenue,CAHD,North - Community based support,Supported Living,Camphill Communities Thornbury Limited,1081.92, 21-May-2020
636,Revenue,CAHD,North - Community based support,Day Care / Social Activities,Camphill Communities Thornbury Limited,473.34, 26-May-2020
637,Revenue,CAHD,North - Community based support,Other Small Contracts,Camphill Communities Thornbury Limited,685.86, 26-May-2020
638,Revenue,CAHD,North - Community based support,Supported Living,Camphill Communities Thornbury Limited,1096.41, 26-May-2020
639,Revenue,CAHD,North - S117,Permanent Residential,Canjayor,3937.76, 05-May-2020
640,Revenue,CAHD,Practitioner Training Grant (PT),Training Expenses,Capita Business Services Limited,2900.00, 13-May-2020
641,Revenue,CAHD,CSC - Asylum Seekers - Unaccompanied,Foster Parent Allowances,Capstone Foster Care (South West) Limited,3405.66, 21-May-2020
642,Revenue,CAHD,CSC - Agency Fostering,Foster Parent Allowances,Capstone Foster Care (South West) Limited,3671.33, 21-May-2020
643,Revenue,CAHD,Central - Commissioned Services,Other Small Contracts,Care 1st Homecare,2985.95, 04-May-2020
644,Revenue,CAHD,Central - Commissioned Services,Other Small Contracts,Care 1st Homecare,2994.85, 12-May-2020
645,Revenue,CAHD,Central - Commissioned Services,Other Small Contracts,Care 1st Homecare,3003.75, 18-May-2020
646,Revenue,CAHD,Central - Commissioned Services,Other Small Contracts,Care 1st Homecare,2990.40, 28-May-2020
647,Revenue,CAHD,Central - Commissioned Services,Other Small Contracts,Care 1st Homecare,3003.75, 28-May-2020
648,Revenue,CAHD,Covid 19 -Adult Social Care,Other Small Contracts,Care 1st Homecare,1299.66, 27-May-2020
649,Revenue,CAHD,North - Community based support,Supported Living,Care Horizons,5435.28, 05-May-2020
650,Revenue,CAHD,North - Community based support,Supported Living,Care Horizons,5435.28, 05-May-2020
651,Revenue,CAHD,South - Commissioned Services,Other Small Contracts,Care Horizons Limited,177.48, 04-May-2020
652,Revenue,CAHD,North - Community based support,Other Small Contracts,Care Horizons Limited,364.82, 04-May-2020
653,Revenue,CAHD,Younger MH non-res purchasing,Other Small Contracts,Care Horizons Limited,157.76, 04-May-2020
654,Revenue,CAHD,Central - Commissioned Services,Other Small Contracts,Care Horizons Limited,285.94, 04-May-2020
655,Revenue,CAHD,South - Commissioned Services,Other Small Contracts,Care Horizons Limited,177.48, 04-May-2020
656,Revenue,CAHD,North - Community based support,Day Care / Social Activities,Care Horizons Limited,4.93, 04-May-2020
657,Revenue,CAHD,North - Community based support,Other Small Contracts,Care Horizons Limited,399.33, 04-May-2020
658,Revenue,CAHD,Younger MH non-res purchasing,Other Small Contracts,Care Horizons Limited,162.69, 04-May-2020
659,Revenue,CAHD,Central - Commissioned Services,Other Small Contracts,Care Horizons Limited,197.20, 18-May-2020
660,Revenue,CAHD,South - Commissioned Services,Other Small Contracts,Care Horizons Limited,177.48, 18-May-2020
661,Revenue,CAHD,North - Community based support,Other Small Contracts,Care Horizons Limited,359.89, 18-May-2020
662,Revenue,CAHD,Younger MH non-res purchasing,Other Small Contracts,Care Horizons Limited,162.69, 18-May-2020
663,Revenue,CAHD,Central - Commissioned Services,Other Small Contracts,Care Horizons Limited,246.50, 18-May-2020
664,Revenue,CAHD,South - Commissioned Services,Other Small Contracts,Care Horizons Limited,177.48, 18-May-2020
665,Revenue,CAHD,North - Community based support,Other Small Contracts,Care Horizons Limited,350.03, 18-May-2020
666,Revenue,CAHD,Younger MH non-res purchasing,Other Small Contracts,Care Horizons Limited,157.76, 18-May-2020
667,Revenue,CAHD,Central - Commissioned Services,Other Small Contracts,Care Horizons Limited,231.71, 22-May-2020
668,Revenue,CAHD,South - Commissioned Services,Other Small Contracts,Care Horizons Limited,177.48, 22-May-2020
669,Revenue,CAHD,North - Community based support,Other Small Contracts,Care Horizons Limited,354.96, 22-May-2020
670,Revenue,CAHD,Younger MH non-res purchasing,Other Small Contracts,Care Horizons Limited,157.76, 22-May-2020
671,Revenue,CAHD,Covid 19 -Adult Social Care,Other Small Contracts,Care Horizons Limited,2074.84, 05-May-2020
672,Revenue,CAHD,Covid 19 -Adult Social Care,Other Small Contracts,Care Horizons Limited,1744.53, 13-May-2020
673,Revenue,CAHD,Additional Payments to providers - COVID,Other Small Contracts,Care Horizons Limited,1877.64, 21-May-2020
674,Revenue,CAHD,Additional Payments to providers - COVID,Other Small Contracts,Care Horizons Limited,1843.13, 28-May-2020
675,Revenue,CAHD,Additional Payments to providers - COVID,Other Small Contracts,Care Horizons Limited,1852.99, 28-May-2020
676,Revenue,CAHD,Covid 19 -Adult Social Care,Other Small Contracts,Care Horizons Limited,1106.15, 27-May-2020
677,Revenue,CAHD,Central - Commissioned Services,Other Small Contracts,Carepride Ltd,1101.24, 01-May-2020
678,Revenue,CAHD,North - Community based support,Other Small Contracts,Carepride Ltd,908.04, 01-May-2020
679,Revenue,CAHD,Central - Commissioned Services,Other Small Contracts,Carepride Ltd,1159.20, 01-May-2020
680,Revenue,CAHD,SLA Grants - Support Serv,Grants to Voluntary Bodies,Carers Support Centre,12275.00, 12-May-2020
681,Revenue,CAHD,SLA Grants - Support Serv,Grants to Voluntary Bodies,Carers Support Centre,25275.00, 12-May-2020
682,Revenue,CAHD,Health Inequalities,Other Small Contracts,Carers Support Centre,60477.00, 12-May-2020
683,Revenue,CAHD,Statemented Support Academies,Other Public Bodies,Castle School Education Trust,530.55, 28-May-2020
684,Revenue,CAHD,Statemented Support Academies,Other Public Bodies,Castle School Education Trust,565.92, 28-May-2020
685,Revenue,CAHD,Statemented Support Academies,Other Public Bodies,Castle School Education Trust,778.14, 28-May-2020
686,Revenue,CAHD,Statemented Support Academies,Other Public Bodies,Castle School Education Trust,931.41, 28-May-2020
687,Revenue,CAHD,Statemented Support Academies,Other Public Bodies,Castle School Education Trust,542.34, 28-May-2020
688,Revenue,CAHD,Statemented Support Academies,Other Public Bodies,Castle School Education Trust,672.03, 28-May-2020
689,Revenue,CAHD,Statemented Support Academies,Other Public Bodies,Castle School Education Trust,577.71, 28-May-2020
690,Revenue,CAHD,Statemented Support Academies,Other Public Bodies,Castle School Education Trust,505.08, 28-May-2020
691,Revenue,CAHD,Statemented Support Academies,Other Public Bodies,Castle School Education Trust,860.67, 28-May-2020
692,Revenue,CAHD,Statemented Support Academies,Other Public Bodies,Castle School Education Trust,1461.96, 28-May-2020
693,Revenue,CAHD,Statemented Support Academies,Other Public Bodies,Castle School Education Trust,860.67, 28-May-2020
694,Revenue,CAHD,Statemented Support Academies,Other Public Bodies,Castle School Education Trust,1002.15, 28-May-2020
695,Revenue,CAHD,Statemented Support Academies,Other Public Bodies,Castle School Education Trust,613.08, 28-May-2020
696,Revenue,CAHD,Statemented Support Academies,Other Public Bodies,Castle School Education Trust,672.03, 28-May-2020
697,Revenue,CAHD,Statemented Support Academies,Other Public Bodies,Castle School Education Trust,1120.05, 28-May-2020
698,Revenue,CAHD,Statemented Support Academies,Other Public Bodies,Castle School Education Trust,636.66, 28-May-2020
699,Revenue,CAHD,Statemented Support Academies,Other Public Bodies,Castle School Education Trust,589.50, 28-May-2020
700,Revenue,CAHD,Statemented Support Academies,Other Public Bodies,Castle School Education Trust,589.08, 28-May-2020
701,Revenue,CAHD,Statemented Support Academies,Other Public Bodies,Castle School Education Trust,954.99, 28-May-2020
702,Revenue,CAHD,Statemented Support Academies,Other Public Bodies,Castle School Education Trust,577.71, 28-May-2020
703,Revenue,CAHD,Statemented Support Academies,Other Public Bodies,Castle School Education Trust,624.87, 28-May-2020
704,Revenue,CAHD,Statemented Support Academies,Other Public Bodies,Castle School Education Trust,825.30, 28-May-2020
705,Revenue,CAHD,Statemented Support Academies,Other Public Bodies,Castle School Education Trust,1190.79, 28-May-2020
706,Revenue,CAHD,Statemented Support Academies,Other Public Bodies,Castle School Education Trust,848.88, 28-May-2020
707,Revenue,CAHD,Statemented Support Academies,Other Public Bodies,Castle School Education Trust,1237.95, 28-May-2020
708,Revenue,CAHD,Statemented Support Academies,Other Public Bodies,Castle School Education Trust,1061.10, 28-May-2020
709,Revenue,CAHD,Statemented Support Academies,Other Public Bodies,Castle School Education Trust,518.76, 28-May-2020
710,Revenue,CAHD,Statemented Support Academies,Other Public Bodies,Castle School Education Trust,577.71, 28-May-2020
711,Revenue,CAHD,Statemented Support Academies,Other Public Bodies,Castle School Education Trust,1143.63, 28-May-2020
712,Revenue,CAHD,Statemented Support Academies,Other Public Bodies,Castle School Education Trust,1072.89, 28-May-2020
713,Revenue,CAHD,Statemented Support Academies,Other Public Bodies,Castle School Education Trust,1508.50, 28-May-2020
714,Revenue,CAHD,Schools Specific Grant Income,Other Public Bodies,Castle School Education Trust,4000.00, 05-May-2020
715,Revenue,CAHD,Statemented Support Academies,Other Public Bodies,Castle School Education Trust,1485.54, 28-May-2020
716,Revenue,CAHD,Statemented Support Academies,Other Public Bodies,Castle School Education Trust,888.75, 28-May-2020
717,Revenue,CAHD,Statemented Support Academies,Other Public Bodies,Castle School Education Trust,1322.75, 28-May-2020
718,Revenue,CAHD,Statemented Support Academies,Other Public Bodies,Castle School Education Trust,2405.76, 28-May-2020
719,Revenue,CAHD,Statemented Support Academies,Other Public Bodies,Castle School Education Trust,943.17, 28-May-2020
720,Revenue,CAHD,Statemented Support Academies,Other Public Bodies,Castle School Education Trust,1267.50, 28-May-2020
721,Revenue,CAHD,Academy Resource Base Funding,Other Public Bodies,Castle School Education Trust,1702.96, 26-May-2020
722,Revenue,CAHD,Academy Resource Base Funding,Other Public Bodies,Castle School Education Trust,1702.96, 26-May-2020
723,Revenue,CAHD,Academy Resource Base Funding,Other Public Bodies,Castle School Education Trust,1702.96, 26-May-2020
724,Revenue,CAHD,Academy Resource Base Funding,Other Public Bodies,Castle School Education Trust,1702.96, 26-May-2020
725,Revenue,CAHD,Academy Resource Base Funding,Other Public Bodies,Castle School Education Trust,1702.96, 26-May-2020
726,Revenue,CAHD,Academy Resource Base Funding,Other Public Bodies,Castle School Education Trust,1702.96, 26-May-2020
727,Revenue,CAHD,Academy Resource Base Funding,Other Public Bodies,Castle School Education Trust,1702.96, 26-May-2020
728,Revenue,CAHD,Academy Resource Base Funding,Other Public Bodies,Castle School Education Trust,1702.96, 26-May-2020
729,Revenue,CAHD,Academy Resource Base Funding,Other Public Bodies,Castle School Education Trust,1702.96, 26-May-2020
730,Revenue,CAHD,Academy Resource Base Funding,Other Public Bodies,Castle School Education Trust,2189.53, 26-May-2020
731,Revenue,CAHD,Statemented Support Academies,Other Public Bodies,Castle School Education Trust,672.03, 28-May-2020
732,Revenue,CAHD,Statemented Support Academies,Other Public Bodies,Castle School Education Trust,872.46, 28-May-2020
733,Revenue,CAHD,Statemented Support Academies,Other Public Bodies,Castle School Education Trust,848.88, 28-May-2020
734,Revenue,CAHD,Statemented Support Academies,Other Public Bodies,Castle School Education Trust,1556.28, 28-May-2020
735,Revenue,CAHD,Statemented Support Academies,Other Public Bodies,Castle School Education Trust,1025.73, 28-May-2020
736,Revenue,CAHD,Schools Specific Grant Income,Other Public Bodies,Castle School Education Trust,3000.00, 05-May-2020
737,Revenue,CAHD,Statemented Support Academies,Other Public Bodies,Castle School Education Trust,630.58, 28-May-2020
738,Revenue,CAHD,Statemented Support Academies,Other Public Bodies,Castle School Education Trust,778.14, 28-May-2020
739,Revenue,CAHD,Statemented Support Academies,Other Public Bodies,Castle School Education Trust,613.08, 28-May-2020
740,Revenue,CAHD,Statemented Support Academies,Other Public Bodies,Castle School Educational Turust,1148.20, 28-May-2020
741,Revenue,CAHD,Statemented Support Academies,Other Public Bodies,Castle School Educational Turust,1428.16, 28-May-2020
742,Revenue,CAHD,Statemented Support Academies,Other Public Bodies,Castle School Educational Turust,1497.33, 28-May-2020
743,Revenue,CAHD,Schools Specific Grant Income,Other Public Bodies,Castle School Educational Turust,3000.00, 05-May-2020
744,Revenue,CAHD,Social Lettings Agency,Fees - General,Individual,10.53, 01-May-2020
745,Revenue,CAHD,Social Lettings Agency,Fees & Charges Income - General,Individual,595.11, 01-May-2020
746,Revenue,CAHD,North - Community based support,Day Care / Social Activities,Causeway House,2176.64, 05-May-2020
747,Revenue,CAHD,Central - Commissioned Services,Day Care / Social Activities,Causeway House,1256.12, 05-May-2020
748,Revenue,CAHD,South - Commissioned Services,Day Care / Social Activities,Causeway House,5358.20, 05-May-2020
749,Revenue,CAHD,18-25 Year Olds,Day Care / Social Activities,Causeway House,1447.08, 05-May-2020
750,Revenue,CAHD,18-25 Year Olds,Day Care / Social Activities,Causeway House,4502.92, 05-May-2020
751,Revenue,CAHD,Central - Commissioned Services,Day Care / Social Activities,Causeway House,3671.36, 05-May-2020
752,Revenue,CAHD,Central - Commissioned Services,Day Care / Social Activities,Causeway House,3969.44, 05-May-2020
753,Revenue,CAHD,Central - Commissioned Services,Day Care / Social Activities,Causeway House,2119.20, 05-May-2020
754,Revenue,CAHD,North - Community based support,Day Care / Social Activities,Causeway House,3290.72, 05-May-2020
755,Revenue,CAHD,North - Community based support,Day Care / Social Activities,Causeway House,4902.56, 05-May-2020
756,Revenue,CAHD,Central - Commissioned Services,Day Care / Social Activities,Causeway House,3725.16, 05-May-2020
757,Revenue,CAHD,North - Community based support,Day Care / Social Activities,Causeway House,3212.08, 05-May-2020
758,Revenue,CAHD,North - Community based support,Day Care / Social Activities,Causeway House,579.68, 05-May-2020
759,Revenue,CAHD,South - Commissioned Services,Permanent Residential,Challenge House,2834.44, 05-May-2020
760,Revenue,CAHD,South - Commissioned Services,Permanent Residential,Challenge House,2836.00, 05-May-2020
761,Revenue,CAHD,North - S117,Permanent Residential,Challenge House,2571.40, 05-May-2020
762,Revenue,CAHD,Covid 19 -Adult Social Care,Permanent Residential,Challenge House,895.32, 27-May-2020
763,Revenue,CAHD,Central - Commissioned Services,Permanent Residential,Challenge House,2800.00, 05-May-2020
764,Revenue,CAHD,North - Community based support,Permanent Residential,Challenge House,2233.00, 05-May-2020
765,Revenue,CAHD,Central - Commissioned Services,Permanent Residential,Challenge House,2365.60, 05-May-2020
766,Revenue,CAHD,Central - Commissioned Services,Permanent Residential,Challenge House,2363.40, 05-May-2020
767,Revenue,CAHD,North - Community based support,Permanent Residential,Challenge House,2363.40, 05-May-2020
768,Revenue,CAHD,Covid 19 -Adult Social Care,Permanent Residential,Challenge House,1317.19, 27-May-2020
769,Revenue,CAHD,North - Community based support,Permanent Residential,Challenge House,2834.40, 05-May-2020
770,Revenue,CAHD,North - Community based support,Permanent Nursing,Challenge House,3130.36, 05-May-2020
771,Revenue,CAHD,North - S117,Permanent Nursing,Challenge House,2395.80, 05-May-2020
772,Revenue,CAHD,Central - Commissioned Services,Permanent Nursing,Challenge House,3056.00, 05-May-2020
773,Revenue,CAHD,North - Community based support,Permanent Nursing,Challenge House,2395.80, 05-May-2020
774,Revenue,CAHD,North - Community based support,Permanent Nursing,Challenge House,3130.36, 05-May-2020
775,Revenue,CAHD,Covid 19 -Adult Social Care,Permanent Residential,Challenge House,1532.60, 27-May-2020
776,Revenue,CAHD,South Glos Users in South Glos Homes,Permanent Nursing,Challenge House,662.24, 05-May-2020
777,Revenue,CAHD,South Glos Users in South Glos Homes,Permanent Nursing,Challenge House,3074.69, 05-May-2020
778,Revenue,CAHD,South Glos Users in South Glos Homes,Permanent Nursing,Challenge House,662.24, 05-May-2020
779,Revenue,CAHD,South Glos Users in South Glos Homes,Permanent Nursing,Challenge House,4422.82, 05-May-2020
780,Revenue,CAHD,South Glos Users in South Glos Homes,Permanent Nursing,Challenge House,662.24, 05-May-2020
781,Revenue,CAHD,South Glos Users in South Glos Homes,Permanent Nursing,Challenge House,614.94, 05-May-2020
782,Revenue,CAHD,South - Commissioned Services,Permanent Nursing,Challenge House,2941.88, 05-May-2020
783,Revenue,CAHD,South Glos Users in South Glos Homes,Permanent Nursing,Challenge House,662.24, 05-May-2020
784,Revenue,CAHD,North - Community based support,Permanent Nursing,Challenge House,3401.80, 05-May-2020
785,Revenue,CAHD,South Glos Users in South Glos Homes,Permanent Nursing,Challenge House,662.24, 05-May-2020
786,Revenue,CAHD,North - Community based support,Permanent Nursing,Challenge House,3272.64, 05-May-2020
787,Revenue,CAHD,South Glos Users in South Glos Homes,Permanent Nursing,Challenge House,662.24, 05-May-2020
788,Revenue,CAHD,South Glos Users in South Glos Homes,Permanent Nursing,Challenge House,662.24, 05-May-2020
789,Revenue,CAHD,North - Community based support,Permanent Nursing,Challenge House,3405.60, 05-May-2020
790,Revenue,CAHD,South Glos Users in South Glos Homes,Permanent Nursing,Challenge House,662.24, 05-May-2020
791,Revenue,CAHD,South - Commissioned Services,Permanent Nursing,Challenge House,3060.00, 05-May-2020
792,Revenue,CAHD,South Glos Users in South Glos Homes,Permanent Nursing,Challenge House,662.24, 05-May-2020
793,Revenue,CAHD,South - Commissioned Services,Permanent Residential,Challenge House,3060.00, 05-May-2020
794,Revenue,CAHD,South Glos Users in South Glos Homes,Permanent Nursing,Challenge House,662.24, 05-May-2020
795,Revenue,CAHD,South Glos Users in South Glos Homes,Permanent Nursing,Challenge House,4422.82, 05-May-2020
796,Revenue,CAHD,South Glos Users in South Glos Homes,Permanent Nursing,Challenge House,662.24, 05-May-2020
797,Revenue,CAHD,South Glos Users in South Glos Homes,Permanent Nursing,Challenge House,3736.93, 05-May-2020
798,Revenue,CAHD,South Glos Users in South Glos Homes,Permanent Nursing,Challenge House,662.24, 05-May-2020
799,Revenue,CAHD,South Glos Users in South Glos Homes,Permanent Nursing,Challenge House,4422.82, 05-May-2020
800,Revenue,CAHD,South Glos Users in South Glos Homes,Permanent Nursing,Challenge House,662.24, 05-May-2020
801,Revenue,CAHD,South - Commissioned Services,Permanent Nursing,Challenge House,1285.71, 05-May-2020
802,Revenue,CAHD,South Glos Users in South Glos Homes,Permanent Nursing,Challenge House,1655.60, 05-May-2020
803,Revenue,CAHD,South Glos Users in South Glos Homes,Permanent Nursing,Challenge House,662.24, 05-May-2020
804,Revenue,CAHD,North - Community based support,Permanent Nursing,Challenge House,2884.08, 05-May-2020
805,Revenue,CAHD,South Glos Users in South Glos Homes,Permanent Nursing,Challenge House,662.24, 05-May-2020
806,Revenue,CAHD,North - Community based support,Permanent Nursing,Challenge House,8517.86, 05-May-2020
807,Revenue,CAHD,North - Community based support,Permanent Nursing,Challenge House,3243.60, 05-May-2020
808,Revenue,CAHD,South Glos Users in South Glos Homes,Permanent Nursing,Challenge House,2104.98, 05-May-2020
809,Revenue,CAHD,North - Community based support,Permanent Nursing,Challenge House,1621.80, 05-May-2020
810,Revenue,CAHD,South Glos Users in South Glos Homes,Permanent Nursing,Challenge House,662.24, 05-May-2020
811,Revenue,CAHD,North - Community based support,Permanent Nursing,Challenge House,3405.60, 05-May-2020
812,Revenue,CAHD,South Glos Users in South Glos Homes,Permanent Nursing,Challenge House,662.24, 05-May-2020
813,Revenue,CAHD,South Glos Users in South Glos Homes,Permanent Nursing,Challenge House,662.24, 05-May-2020
814,Revenue,CAHD,North - Community based support,Permanent Nursing,Challenge House,2884.08, 05-May-2020
815,Revenue,CAHD,South Glos Users in South Glos Homes,Permanent Nursing,Challenge House,662.24, 05-May-2020
816,Revenue,CAHD,South Glos Users in South Glos Homes,Permanent Nursing,Challenge House,662.24, 05-May-2020
817,Revenue,CAHD,South Glos Users in South Glos Homes,Permanent Nursing,Challenge House,662.24, 05-May-2020
818,Revenue,CAHD,South Glos Users in South Glos Homes,Permanent Nursing,Challenge House,614.94, 05-May-2020
819,Revenue,CAHD,Covid 19 -Adult Social Care,Permanent Residential,Challenge House,3427.39, 27-May-2020
820,Revenue,CAHD,Alexandra Way,"Provisions (Food, etc)",Charles Saunders Limited,512.76, 14-May-2020
821,Revenue,CAHD,Training - Adult Services,Training Expenses,Individual,550.00, 29-May-2020
822,Revenue,CAHD,Statemented Support Academies,Other Public Bodies,Charlton Wood Primary Academy,702.17, 28-May-2020
823,Revenue,CAHD,Pathway 1 - Re-Ablement Home Care,Other Small Contracts,Cherish Able Care Limited,529.76, 18-May-2020
824,Revenue,CAHD,Pathway 1 - Re-Ablement Home Care,Other Small Contracts,Cherish Able Care Limited,529.76, 18-May-2020
825,Revenue,CAHD,Pathway 1 - Re-Ablement Home Care,Other Small Contracts,Cherish Able Care Limited,529.76, 18-May-2020
826,Revenue,CAHD,Pathway 1 - Re-Ablement Home Care,Other Small Contracts,Cherish Able Care Limited,529.76, 18-May-2020
827,Revenue,CAHD,Pathway 1 - Re-Ablement Home Care,Other Small Contracts,Cherish Able Care Limited,529.76, 18-May-2020
828,Revenue,CAHD,Central - Commissioned Services,Other Small Contracts,Cherish Able Care Limited,2323.23, 11-May-2020
829,Revenue,CAHD,South - Commissioned Services,Other Small Contracts,Cherish Able Care Limited,4605.75, 11-May-2020
830,Revenue,CAHD,North - Community based support,Other Small Contracts,Cherish Able Care Limited,511.98, 11-May-2020
831,Revenue,CAHD,Central - Commissioned Services,Other Small Contracts,Cherish Able Care Limited,2303.91, 18-May-2020
832,Revenue,CAHD,South - Commissioned Services,Other Small Contracts,Cherish Able Care Limited,4570.02, 18-May-2020
833,Revenue,CAHD,North - Community based support,Other Small Contracts,Cherish Able Care Limited,516.81, 18-May-2020
834,Revenue,CAHD,Central - Commissioned Services,Other Small Contracts,Cherish Able Care Limited,2260.44, 19-May-2020
835,Revenue,CAHD,South - Commissioned Services,Other Small Contracts,Cherish Able Care Limited,4586.43, 19-May-2020
836,Revenue,CAHD,North - Community based support,Other Small Contracts,Cherish Able Care Limited,507.15, 19-May-2020
837,Revenue,CAHD,Central - Commissioned Services,Other Small Contracts,Cherish Able Care Limited,2279.76, 22-May-2020
838,Revenue,CAHD,South - Commissioned Services,Other Small Contracts,Cherish Able Care Limited,4827.93, 22-May-2020
839,Revenue,CAHD,North - Community based support,Other Small Contracts,Cherish Able Care Limited,521.64, 22-May-2020
840,Revenue,CAHD,Covid 19 -Adult Social Care,Other Small Contracts,Cherish Able Care Limited,529.99, 05-May-2020
841,Revenue,CAHD,Covid 19 -Adult Social Care,Other Small Contracts,Cherish Able Care Limited,534.82, 13-May-2020
842,Revenue,CAHD,Additional Payments to providers - COVID,Other Small Contracts,Cherish Able Care Limited,585.04, 21-May-2020
843,Revenue,CAHD,Additional Payments to providers - COVID,Other Small Contracts,Cherish Able Care Limited,621.76, 28-May-2020
844,Revenue,CAHD,Additional Payments to providers - COVID,Other Small Contracts,Cherish Able Care Limited,643.58, 28-May-2020
845,Revenue,CAHD,Covid 19 -Adult Social Care,Other Small Contracts,Cherish Able Care Limited,3558.03, 27-May-2020
846,Revenue,CAHD,South - Commissioned Services,Supported Living,Cherry Orchards,1286.56, 18-May-2020
847,Revenue,CAHD,South - Commissioned Services,Other Small Contracts,Cherry Orchards,6357.12, 18-May-2020
848,Revenue,CAHD,South - Commissioned Services,Other Small Contracts,Cherry Orchards,6357.12, 20-May-2020
849,Revenue,CAHD,South - Commissioned Services,Other Small Contracts,Cherry Orchards,6357.12, 18-May-2020
850,Revenue,CAHD,18-25 Year Olds,Other Small Contracts,Cherry Orchards,3046.12, 26-May-2020
851,Revenue,CAHD,18-25 Year Olds,Other Small Contracts,Cherry Orchards,2648.80, 26-May-2020
852,Revenue,CAHD,18-25 Year Olds,Other Small Contracts,Cherry Orchards,1589.28, 18-May-2020
853,Revenue,CAHD,18-25 Year Olds,Other Small Contracts,Cherry Orchards,3216.40, 26-May-2020
854,Revenue,CAHD,18-25 Year Olds,Other Small Contracts,Cherry Orchards,3284.40, 18-May-2020
855,Revenue,CAHD,South - Commissioned Services,Supported Living,Cherry Orchards,1313.76, 18-May-2020
856,Revenue,CAHD,18-25 Year Olds,Other Small Contracts,Cherry Orchards,1613.22, 14-May-2020
857,Revenue,CAHD,South - Commissioned Services,Other Small Contracts,Cherry Orchards,6491.52, 14-May-2020
858,Revenue,CAHD,Covid 19 -Adult Social Care,Other Small Contracts,Cherry Orchards,1380.51, 27-May-2020
859,Revenue,CAHD,18-25 Year Olds,Supported Living,Cherry Orchards,1715.64, 05-May-2020
860,Revenue,CAHD,South - Commissioned Services,Supported Living,Cherry Orchards,2085.84, 05-May-2020
861,Revenue,CAHD,18-25 Year Olds,Supported Living,Cherry Orchards,2030.52, 05-May-2020
862,Revenue,CAHD,North - Community based support,Supported Living,Cherry Orchards,1042.96, 05-May-2020
863,Revenue,CAHD,S28A cases,Permanent Residential,Chescombe Trust Ltd,9959.72, 05-May-2020
864,Revenue,CAHD,S28A cases,Permanent Residential,Chescombe Trust Ltd,4979.86, 05-May-2020
865,Revenue,CAHD,Covid 19 -Adult Social Care,Permanent Residential,Chescombe Trust Ltd,1081.64, 27-May-2020
866,Revenue,CAHD,Statemented Support Equipment,Educational Supplies & Equipment,Children`s Specialist Therapy Ltd,560.00, 15-May-2020
867,Revenue,CAHD,Early Years High Needs Support,Other Private Contractors,Chipping Sodbury Pre School,543.11, 28-May-2020
868,Revenue,CAHD,18-25 Year Olds,Other Small Contracts,Cintre,59.76, 05-May-2020
869,Revenue,CAHD,Central - Commissioned Services,Other Small Contracts,Cintre,209.16, 05-May-2020
870,Revenue,CAHD,South - Commissioned Services,Other Small Contracts,Cintre,916.32, 05-May-2020
871,Revenue,CAHD,18-25 Year Olds,Other Small Contracts,Cintre,59.76, 18-May-2020
872,Revenue,CAHD,Central - Commissioned Services,Other Small Contracts,Cintre,229.08, 18-May-2020
873,Revenue,CAHD,South - Commissioned Services,Other Small Contracts,Cintre,916.32, 18-May-2020
874,Revenue,CAHD,Central - Commissioned Services,Other Small Contracts,Cintre,179.28, 19-May-2020
875,Revenue,CAHD,South - Commissioned Services,Other Small Contracts,Cintre,976.08, 19-May-2020
876,Revenue,CAHD,Central - Commissioned Services,Other Small Contracts,Cintre,229.08, 27-May-2020
877,Revenue,CAHD,South - Commissioned Services,Other Small Contracts,Cintre,976.08, 27-May-2020
878,Revenue,CAHD,Covid 19 -Adult Social Care,Other Small Contracts,Cintre,657.62, 27-May-2020
879,Revenue,CAHD,Covid 19 -Adult Social Care,Rent,Circadian Trust,1928.00, 21-May-2020
880,Revenue,CAHD,Post 16 High Needs Placements,Other Private Contractors,City of Bristol College,153221.98, 04-May-2020
881,Revenue,CAHD,Childrens - Safeguarding Board,Training Expenses,Ckitt Ltd,700.00, 13-May-2020
882,Revenue,CAHD,Special Needs - Special Schools HTST,Client Transport,Individual,782.46, 21-May-2020
883,Revenue,CAHD,South - Commissioned Services,Permanent Residential,Clearwater Care,5280.28, 05-May-2020
884,Revenue,CAHD,Covid 19 -Adult Social Care,Permanent Residential,Clearwater Care,573.60, 27-May-2020
885,Revenue,CAHD,South - Commissioned Services,Permanent Residential,Cleeve Lodge,3760.12, 05-May-2020
886,Revenue,CAHD,South - Commissioned Services,Permanent Residential,Cleeve Lodge,3760.12, 05-May-2020
887,Revenue,CAHD,South - Commissioned Services,Permanent Residential,Cleeve Lodge,1334.60, 05-May-2020
888,Revenue,CAHD,South - Commissioned Services,Permanent Residential,Cleeve Lodge,2980.12, 05-May-2020
889,Revenue,CAHD,South - Commissioned Services,Permanent Residential,Cleeve Lodge,4400.00, 05-May-2020
890,Revenue,CAHD,South - Commissioned Services,Permanent Residential,Cleeve Lodge,4400.00, 05-May-2020
891,Revenue,CAHD,South - Commissioned Services,Permanent Residential,Cleeve Lodge,4242.86, 05-May-2020
892,Revenue,CAHD,South - Commissioned Services,Fees & Charges Income - General,Cleeve Lodge,587.90, 05-May-2020
893,Revenue,CAHD,South - Commissioned Services,Fees & Charges Income - General,Cleeve Lodge,1098.71, 05-May-2020
894,Revenue,CAHD,South - Commissioned Services,Permanent Residential,Cleeve Lodge,4000.00, 05-May-2020
895,Revenue,CAHD,North - Community based support,Respite Planned - Residential,Cleeve Lodge,641.14, 05-May-2020
896,Revenue,CAHD,South - Commissioned Services,Permanent Residential,Cleeve Lodge,4000.00, 05-May-2020
897,Revenue,CAHD,North - Community based support,Respite Planned - Residential,Cleeve Lodge,3428.57, 05-May-2020
898,Revenue,CAHD,North - Community based support,Respite Planned - Residential,Cleeve Lodge,2000.00, 05-May-2020
899,Revenue,CAHD,North - Community based support,Respite Planned - Residential,Cleeve Lodge,571.43, 05-May-2020
900,Revenue,CAHD,South - Commissioned Services,Permanent Residential,Cleeve Lodge,2950.88, 05-May-2020
901,Revenue,CAHD,South - Commissioned Services,Permanent Residential,Cleeve Lodge,2688.32, 05-May-2020
902,Revenue,CAHD,Covid 19 -Adult Social Care,Permanent Residential,Cleeve Lodge,3276.67, 27-May-2020
903,Revenue,CAHD,North - Community based support,Permanent Nursing,Clevedon Court Nursing Home,3448.16, 05-May-2020
904,Revenue,CAHD,Sexual Health,Other Small Contracts,Close Farm Surgery,564.00, 26-May-2020
905,Revenue,CAHD,Drug and Alcohol Programme,Other Small Contracts,Close Farm Surgery,710.50, 29-May-2020
906,Revenue,CAHD,Central - Commissioned Services,Other Small Contracts,Clover Health and Home Care Ltd,1486.80, 11-May-2020
907,Revenue,CAHD,Central - Commissioned Services,Other Small Contracts,Clover Health and Home Care Ltd,1667.34, 15-May-2020
908,Revenue,CAHD,Covid 19 -Adult Social Care,Other Small Contracts,Clover Health and Home Care Ltd,973.64, 27-May-2020
909,Revenue,CAHD,Health Inequalities,Other Small Contracts,Cohesian Consultancy,500.00, 12-May-2020
910,Revenue,CAHD,SLA Grants - Support Serv,Grants to Voluntary Bodies,Cohesian Consultancy,500.00, 12-May-2020
911,Revenue,CAHD,South - Commissioned Services,Permanent Residential,Collingwood Care Home,2882.76, 05-May-2020
912,Revenue,CAHD,North - Community based support,Permanent Residential,Collingwood Care Home,3000.00, 05-May-2020
913,Revenue,CAHD,South - Commissioned Services,Permanent Residential,Collingwood Care Home,2554.36, 05-May-2020
914,Revenue,CAHD,Covid 19 -Adult Social Care,Permanent Residential,Collingwood Care Home,916.37, 27-May-2020
915,Revenue,CAHD,Community Support - South,Preventative Assistance,Community Therapeutic Services,574.13, 29-May-2020
916,Revenue,CAHD,South - Commissioned Services,Permanent Residential,Community Theraputic Services,7893.40, 05-May-2020
917,Revenue,CAHD,Jointly Funded H&SC Packages,Permanent Residential,Community Theraputic Services,4875.84, 05-May-2020
918,Revenue,CAHD,North - Community based support,Permanent Residential,Community Theraputic Services,8119.76, 05-May-2020
919,Revenue,CAHD,Jointly Funded H&SC Packages,Permanent Residential,Community Theraputic Services,2027.52, 05-May-2020
920,Revenue,CAHD,Covid 19 -Adult Social Care,Permanent Residential,Community Theraputic Services,1739.52, 27-May-2020
921,Revenue,CAHD,CSC - Agency Fostering,Foster Parent Allowances,Compass Fostering West Ltd,983.25, 05-May-2020
922,Revenue,CAHD,CSC - Agency Fostering,Foster Parent Allowances,Compass Fostering West Ltd,940.50, 05-May-2020
923,Revenue,CAHD,Drug and Alcohol Programme,Other Small Contracts,Concord Medical Centre,710.50, 29-May-2020
924,Revenue,CAHD,Drug and Alcohol Programme,Other Small Contracts,Coniston Medical Practice,1522.50, 29-May-2020
925,Revenue,CAHD,Bed and Breakfast,Bed & Breakfast,Connolly & Callaghan Limited,422.80, 04-May-2020
926,Revenue,CAHD,Bed and Breakfast,Bed & Breakfast,Connolly & Callaghan Limited,457.80, 04-May-2020
927,Revenue,CAHD,Bed and Breakfast,Bed & Breakfast,Connolly & Callaghan Limited,593.60, 04-May-2020
928,Revenue,CAHD,Bed and Breakfast,Bed & Breakfast,Connolly & Callaghan Limited,422.80, 04-May-2020
929,Revenue,CAHD,Bed and Breakfast,Bed & Breakfast,Connolly & Callaghan Limited,764.40, 04-May-2020
930,Revenue,CAHD,Bed and Breakfast,Bed & Breakfast,Connolly & Callaghan Limited,727.30, 04-May-2020
931,Revenue,CAHD,Bed and Breakfast,Bed & Breakfast,Connolly & Callaghan Limited,593.60, 04-May-2020
932,Revenue,CAHD,Bed and Breakfast,Bed & Breakfast,Connolly & Callaghan Limited,422.80, 05-May-2020
933,Revenue,CAHD,Bed and Breakfast,Bed & Breakfast,Connolly & Callaghan Limited,686.70, 04-May-2020
934,Revenue,CAHD,Bed and Breakfast,Bed & Breakfast,Connolly & Callaghan Limited,679.00, 04-May-2020
935,Revenue,CAHD,Bed and Breakfast,Bed & Breakfast,Connolly & Callaghan Limited,463.40, 04-May-2020
936,Revenue,CAHD,Bed and Breakfast,Bed & Breakfast,Connolly & Callaghan Limited,463.40, 04-May-2020
937,Revenue,CAHD,Bed and Breakfast,Bed & Breakfast,Connolly & Callaghan Limited,422.80, 05-May-2020
938,Revenue,CAHD,Bed and Breakfast,Bed & Breakfast,Connolly & Callaghan Limited,457.80, 13-May-2020
939,Revenue,CAHD,Bed and Breakfast,Bed & Breakfast,Connolly & Callaghan Limited,593.60, 13-May-2020
940,Revenue,CAHD,Bed and Breakfast,Bed & Breakfast,Connolly & Callaghan Limited,422.80, 14-May-2020
941,Revenue,CAHD,Bed and Breakfast,Bed & Breakfast,Connolly & Callaghan Limited,764.40, 13-May-2020
942,Revenue,CAHD,Bed and Breakfast,Bed & Breakfast,Connolly & Callaghan Limited,422.80, 13-May-2020
943,Revenue,CAHD,Bed and Breakfast,Bed & Breakfast,Connolly & Callaghan Limited,727.30, 13-May-2020
944,Revenue,CAHD,Bed and Breakfast,Bed & Breakfast,Connolly & Callaghan Limited,593.60, 14-May-2020
945,Revenue,CAHD,Bed and Breakfast,Bed & Breakfast,Connolly & Callaghan Limited,686.70, 13-May-2020
946,Revenue,CAHD,Bed and Breakfast,Bed & Breakfast,Connolly & Callaghan Limited,679.00, 13-May-2020
947,Revenue,CAHD,Bed and Breakfast,Bed & Breakfast,Connolly & Callaghan Limited,463.40, 13-May-2020
948,Revenue,CAHD,Bed and Breakfast,Bed & Breakfast,Connolly & Callaghan Limited,463.40, 19-May-2020
949,Revenue,CAHD,Bed and Breakfast,Bed & Breakfast,Connolly & Callaghan Limited,422.80, 13-May-2020
950,Revenue,CAHD,Bed and Breakfast,Bed & Breakfast,Connolly & Callaghan Limited,457.80, 22-May-2020
951,Revenue,CAHD,Bed and Breakfast,Bed & Breakfast,Connolly & Callaghan Limited,593.60, 22-May-2020
952,Revenue,CAHD,Bed and Breakfast,Bed & Breakfast,Connolly & Callaghan Limited,422.80, 26-May-2020
953,Revenue,CAHD,Bed and Breakfast,Bed & Breakfast,Connolly & Callaghan Limited,764.40, 22-May-2020
954,Revenue,CAHD,Bed and Breakfast,Bed & Breakfast,Connolly & Callaghan Limited,422.80, 22-May-2020
955,Revenue,CAHD,Bed and Breakfast,Bed & Breakfast,Connolly & Callaghan Limited,593.60, 26-May-2020
956,Revenue,CAHD,Bed and Breakfast,Bed & Breakfast,Connolly & Callaghan Limited,422.80, 26-May-2020
957,Revenue,CAHD,Bed and Breakfast,Bed & Breakfast,Connolly & Callaghan Limited,686.70, 22-May-2020
958,Revenue,CAHD,Bed and Breakfast,Bed & Breakfast,Connolly & Callaghan Limited,679.00, 28-May-2020
959,Revenue,CAHD,Bed and Breakfast,Bed & Breakfast,Connolly & Callaghan Limited,463.40, 22-May-2020
960,Revenue,CAHD,Bed and Breakfast,Bed & Breakfast,Connolly & Callaghan Limited,463.40, 28-May-2020
961,Revenue,CAHD,Bed and Breakfast,Bed & Breakfast,Connolly & Callaghan Limited,422.80, 22-May-2020
962,Revenue,CAHD,Bed and Breakfast,Bed & Breakfast,Connolly & Callaghan Limited,457.80, 27-May-2020
963,Revenue,CAHD,Bed and Breakfast,Bed & Breakfast,Connolly & Callaghan Limited,593.60, 27-May-2020
964,Revenue,CAHD,Bed and Breakfast,Bed & Breakfast,Connolly & Callaghan Limited,422.80, 27-May-2020
965,Revenue,CAHD,Bed and Breakfast,Bed & Breakfast,Connolly & Callaghan Limited,764.40, 28-May-2020
966,Revenue,CAHD,Bed and Breakfast,Bed & Breakfast,Connolly & Callaghan Limited,422.80, 27-May-2020
967,Revenue,CAHD,Bed and Breakfast,Bed & Breakfast,Connolly & Callaghan Limited,593.60, 27-May-2020
968,Revenue,CAHD,Bed and Breakfast,Bed & Breakfast,Connolly & Callaghan Limited,422.80, 27-May-2020
969,Revenue,CAHD,Bed and Breakfast,Bed & Breakfast,Connolly & Callaghan Limited,686.70, 28-May-2020
970,Revenue,CAHD,Bed and Breakfast,Bed & Breakfast,Connolly & Callaghan Limited,679.00, 28-May-2020
971,Revenue,CAHD,Bed and Breakfast,Bed & Breakfast,Connolly & Callaghan Limited,463.40, 27-May-2020
972,Revenue,CAHD,Bed and Breakfast,Bed & Breakfast,Connolly & Callaghan Limited,463.40, 27-May-2020
973,Revenue,CAHD,Bed and Breakfast,Bed & Breakfast,Connolly & Callaghan Limited,422.80, 27-May-2020
974,Revenue,CAHD,Bed and Breakfast,Bed & Breakfast,Connolly & Callaghan Limited,581.00, 12-May-2020
975,Revenue,CAHD,Bed and Breakfast,Bed & Breakfast,Connolly & Callaghan Limited,714.00, 13-May-2020
976,Revenue,CAHD,Bed and Breakfast,Bed & Breakfast,Connolly & Callaghan Limited,714.00, 12-May-2020
977,Revenue,CAHD,Bed and Breakfast,Bed & Breakfast,Connolly & Callaghan Limited,539.00, 13-May-2020
978,Revenue,CAHD,Bed and Breakfast,Bed & Breakfast,Connolly & Callaghan Limited,497.00, 13-May-2020
979,Revenue,CAHD,Bed and Breakfast,Bed & Breakfast,Connolly & Callaghan Limited,539.00, 12-May-2020
980,Revenue,CAHD,Bed and Breakfast,Bed & Breakfast,Connolly & Callaghan Limited,422.80, 13-May-2020
981,Revenue,CAHD,Bed and Breakfast,Bed & Breakfast,Connolly & Callaghan Limited,422.80, 13-May-2020
982,Revenue,CAHD,Bed and Breakfast,Bed & Breakfast,Connolly & Callaghan Limited,422.80, 12-May-2020
983,Revenue,CAHD,CSC - Fostering Carer Support,Care Mgt/Asesmnt Staff Pay,Core Assets Expert Services Ltd T/A Carter Brown,2400.00, 20-May-2020
984,Revenue,CAHD,CSC - Fostering Carer Support,Care Mgt/Asesmnt Staff Pay,Core Assets Expert Services Ltd T/A Carter Brown,2400.00, 20-May-2020
985,Revenue,CAHD,CSC - Fostering Carer Support,Care Mgt/Asesmnt Staff Pay,Core Assets Expert Services Ltd T/A Carter Brown,2400.00, 20-May-2020
986,Revenue,CAHD,CSC - Fostering Carer Support,Care Mgt/Asesmnt Staff Pay,Core Assets Expert Services Ltd T/A Carter Brown,2400.00, 20-May-2020
987,Revenue,CAHD,Independent Special Placements - Post 16,Other Private Contractors,Cotswold Chine School,40204.09, 21-May-2020
988,Revenue,CAHD,Independent Special Placements - Post 16,Other Private Contractors,Cotswold Chine School,23344.31, 21-May-2020
989,Revenue,CAHD,Independent Special Placements - Pre 16,Other Private Contractors,Cotswold Chine School,24511.52, 21-May-2020
990,Revenue,CAHD,Independent Special Placements - Pre 16,Other Private Contractors,Cotswold Chine School,24511.52, 21-May-2020
991,Revenue,CAHD,Independent Special Placements - Pre 16,Other Private Contractors,Cotswold Chine School,25808.43, 21-May-2020
992,Revenue,CAHD,Alexandra Way,Cleaning & Domestic Services,Countrywide Healthcare Supplies Ltd,752.40, 07-May-2020
993,Revenue,CAHD,Alexandra Way,Cleaning & Domestic Services,Countrywide Healthcare Supplies Ltd,1018.01, 14-May-2020
994,Revenue,CAHD,North - Community based support,Respite Planned - Residential,Court House Residential C.H.,971.43, 05-May-2020
995,Revenue,CAHD,Sexual Health,Other Small Contracts,Courtside Surgery,972.00, 26-May-2020
996,Revenue,CAHD,Drug and Alcohol Programme,Other Small Contracts,Courtside Surgery,1827.00, 29-May-2020
997,Revenue,CAHD,S28A cases,Permanent Residential,Creedy Court,10597.96, 05-May-2020
998,Revenue,CAHD,S28A cases,Permanent Residential,Creedy Court,8904.92, 05-May-2020
999,Revenue,CAHD,Covid 19 -Adult Social Care,Permanent Residential,Creedy Court,2118.62, 27-May-2020
1000,Revenue,CAHD,North - Community based support,Permanent Residential,Creedy Court,14054.00, 05-May-2020
1001,Revenue,CAHD,Covid 19 -Adult Social Care,Permanent Residential,Creedy Court,1526.70, 27-May-2020
1002,Revenue,CAHD,South - Commissioned Services,Permanent Residential,Daneswood,12268.80, 05-May-2020
1003,Revenue,CAHD,South - Commissioned Services,Day Care / Social Activities,Daneswood,1441.60, 05-May-2020
1004,Revenue,CAHD,North - Community based support,Permanent Residential,Daneswood,13579.68, 05-May-2020
1005,Revenue,CAHD,Covid 19 -Adult Social Care,Permanent Residential,Daneswood,2807.95, 27-May-2020
1006,Revenue,CAHD,North - S117,Permanent Nursing,Danshell Healthcare Group,10872.28, 05-May-2020
1007,Revenue,CAHD,Jointly Funded H&SC Packages,Permanent Nursing,Danshell Healthcare Group,1613.28, 05-May-2020
1008,Revenue,CAHD,Covid 19 -Adult Social Care,Permanent Residential,Danshell Healthcare Group,1181.07, 27-May-2020
1009,Revenue,CAHD,Learning Difficulties PSL,Other Supplies & Services,Individual,2400.00, 22-May-2020
1010,Revenue,CAHD,Drug and Alcohol Programme,Other Small Contracts,Day Lewis - Horfield Branch,1650.00, 27-May-2020
1011,Revenue,CAHD,South - Commissioned Services,Day Care / Social Activities,Deafblind Uk,1421.04, 01-May-2020
1012,Revenue,CAHD,North - Community based support,Permanent Nursing,Deerhurst Nursing Home,4400.00, 05-May-2020
1013,Revenue,CAHD,North - Community based support,Permanent Nursing,Deerhurst Nursing Home,2200.00, 05-May-2020
1014,Revenue,CAHD,South Glos Users in South Glos Homes,Permanent Nursing,Deerhurst Nursing Home,662.24, 05-May-2020
1015,Revenue,CAHD,South - Commissioned Services,Permanent Nursing,Deerhurst Nursing Home,3881.40, 05-May-2020
1016,Revenue,CAHD,South Glos Users in South Glos Homes,Permanent Nursing,Deerhurst Nursing Home,662.24, 05-May-2020
1017,Revenue,CAHD,South Glos Users in South Glos Homes,Permanent Nursing,Deerhurst Nursing Home,662.24, 05-May-2020
1018,Revenue,CAHD,South - Commissioned Services,Day Care / Social Activities,Deerhurst Nursing Home,568.16, 05-May-2020
1019,Revenue,CAHD,South Glos Users in South Glos Homes,Permanent Nursing,Deerhurst Nursing Home,662.24, 05-May-2020
1020,Revenue,CAHD,South - Commissioned Services,Permanent Nursing,Deerhurst Nursing Home,4098.52, 05-May-2020
1021,Revenue,CAHD,South Glos Users in South Glos Homes,Permanent Nursing,Deerhurst Nursing Home,662.24, 05-May-2020
1022,Revenue,CAHD,South - Commissioned Services,Permanent Nursing,Deerhurst Nursing Home,4006.00, 05-May-2020
1023,Revenue,CAHD,South Glos Users in South Glos Homes,Permanent Nursing,Deerhurst Nursing Home,662.24, 05-May-2020
1024,Revenue,CAHD,North - Community based support,Permanent Nursing,Deerhurst Nursing Home,3891.20, 05-May-2020
1025,Revenue,CAHD,South - Commissioned Services,Permanent Nursing,Deerhurst Nursing Home,849.67, 05-May-2020
1026,Revenue,CAHD,South - Commissioned Services,Permanent Nursing,Deerhurst Nursing Home,3115.45, 05-May-2020
1027,Revenue,CAHD,South Glos Users in South Glos Homes,Permanent Nursing,Deerhurst Nursing Home,662.24, 05-May-2020
1028,Revenue,CAHD,South - Commissioned Services,Permanent Nursing,Deerhurst Nursing Home,3097.05, 05-May-2020
1029,Revenue,CAHD,South - Commissioned Services,Permanent Nursing,Deerhurst Nursing Home,3097.05, 05-May-2020
1030,Revenue,CAHD,South - Commissioned Services,Permanent Nursing,Deerhurst Nursing Home,2064.70, 05-May-2020
1031,Revenue,CAHD,South - Commissioned Services,Permanent Nursing,Deerhurst Nursing Home,1032.35, 05-May-2020
1032,Revenue,CAHD,South - Commissioned Services,Permanent Nursing,Deerhurst Nursing Home,3969.04, 05-May-2020
1033,Revenue,CAHD,South Glos Users in South Glos Homes,Permanent Nursing,Deerhurst Nursing Home,662.24, 05-May-2020
1034,Revenue,CAHD,South - Commissioned Services,Day Care / Social Activities,Deerhurst Nursing Home,568.16, 05-May-2020
1035,Revenue,CAHD,South - Commissioned Services,Permanent Nursing,Deerhurst Nursing Home,4088.08, 05-May-2020
1036,Revenue,CAHD,South Glos Users in South Glos Homes,Permanent Nursing,Deerhurst Nursing Home,662.24, 05-May-2020
1037,Revenue,CAHD,South - bed purchasing and direct  payments,Permanent Nursing,Deerhurst Nursing Home,4084.08, 05-May-2020
1038,Revenue,CAHD,South Glos Users in South Glos Homes,Permanent Nursing,Deerhurst Nursing Home,662.24, 05-May-2020
1039,Revenue,CAHD,South Glos Users in South Glos Homes,Permanent Nursing,Deerhurst Nursing Home,662.24, 05-May-2020
1040,Revenue,CAHD,South Glos Users in South Glos Homes,Permanent Nursing,Deerhurst Nursing Home,662.24, 05-May-2020
1041,Revenue,CAHD,North - Community based support,Permanent Nursing,Deerhurst Nursing Home,4088.08, 05-May-2020
1042,Revenue,CAHD,South Glos Users in South Glos Homes,Permanent Nursing,Deerhurst Nursing Home,662.24, 05-May-2020
1043,Revenue,CAHD,South - Commissioned Services,Permanent Nursing,Deerhurst Nursing Home,4086.08, 05-May-2020
1044,Revenue,CAHD,South - Commissioned Services,Permanent Nursing,Deerhurst Nursing Home,2043.04, 05-May-2020
1045,Revenue,CAHD,South Glos Users in South Glos Homes,Permanent Nursing,Deerhurst Nursing Home,662.24, 05-May-2020
1046,Revenue,CAHD,South - Commissioned Services,Fees & Charges Income - General,Deerhurst Nursing Home,627.86, 05-May-2020
1047,Revenue,CAHD,South Glos Users in South Glos Homes,Permanent Nursing,Deerhurst Nursing Home,662.24, 05-May-2020
1048,Revenue,CAHD,South - Commissioned Services,Permanent Nursing,Deerhurst Nursing Home,3969.04, 05-May-2020
1049,Revenue,CAHD,South Glos Users in South Glos Homes,Permanent Nursing,Deerhurst Nursing Home,662.24, 05-May-2020
1050,Revenue,CAHD,South Glos Users in South Glos Homes,Permanent Nursing,Deerhurst Nursing Home,662.24, 05-May-2020
1051,Revenue,CAHD,South Glos Users in South Glos Homes,Permanent Nursing,Deerhurst Nursing Home,662.24, 05-May-2020
1052,Revenue,CAHD,South Glos Users in South Glos Homes,Permanent Nursing,Deerhurst Nursing Home,662.24, 05-May-2020
1053,Revenue,CAHD,South Glos Users in South Glos Homes,Permanent Nursing,Deerhurst Nursing Home,662.24, 05-May-2020
1054,Revenue,CAHD,South Glos Users in South Glos Homes,Permanent Nursing,Deerhurst Nursing Home,662.24, 05-May-2020
1055,Revenue,CAHD,South Glos Users in South Glos Homes,Permanent Nursing,Deerhurst Nursing Home,662.24, 05-May-2020
1056,Revenue,CAHD,South Glos Users in South Glos Homes,Permanent Nursing,Deerhurst Nursing Home,662.24, 05-May-2020
1057,Revenue,CAHD,South Glos Users in South Glos Homes,Permanent Nursing,Deerhurst Nursing Home,662.24, 05-May-2020
1058,Revenue,CAHD,South Glos Users in South Glos Homes,Permanent Nursing,Deerhurst Nursing Home,662.24, 05-May-2020
1059,Revenue,CAHD,North - Community based support,Permanent Nursing,Deerhurst Nursing Home,4006.00, 05-May-2020
1060,Revenue,CAHD,South Glos Users in South Glos Homes,Permanent Nursing,Deerhurst Nursing Home,662.24, 05-May-2020
1061,Revenue,CAHD,South - Commissioned Services,Permanent Nursing,Deerhurst Nursing Home,4085.36, 05-May-2020
1062,Revenue,CAHD,South Glos Users in South Glos Homes,Permanent Nursing,Deerhurst Nursing Home,662.24, 05-May-2020
1063,Revenue,CAHD,South Glos Users in South Glos Homes,Permanent Nursing,Deerhurst Nursing Home,662.24, 05-May-2020
1064,Revenue,CAHD,South Glos Users in South Glos Homes,Permanent Nursing,Deerhurst Nursing Home,662.24, 05-May-2020
1065,Revenue,CAHD,South - Commissioned Services,Permanent Nursing,Deerhurst Nursing Home,4006.00, 05-May-2020
1066,Revenue,CAHD,South Glos Users in South Glos Homes,Permanent Nursing,Deerhurst Nursing Home,662.24, 05-May-2020
1067,Revenue,CAHD,South Glos Users in South Glos Homes,Permanent Nursing,Deerhurst Nursing Home,662.24, 05-May-2020
1068,Revenue,CAHD,South - Commissioned Services,Permanent Nursing,Deerhurst Nursing Home,4006.00, 05-May-2020
1069,Revenue,CAHD,South - Commissioned Services,Permanent Residential,Deerhurst Nursing Home,3891.20, 05-May-2020
1070,Revenue,CAHD,South Glos Users in South Glos Homes,Permanent Nursing,Deerhurst Nursing Home,662.24, 05-May-2020
1071,Revenue,CAHD,North - Community based support,Permanent Nursing,Deerhurst Nursing Home,3094.88, 05-May-2020
1072,Revenue,CAHD,South Glos Users in South Glos Homes,Permanent Nursing,Deerhurst Nursing Home,662.24, 05-May-2020
1073,Revenue,CAHD,South Glos Users in South Glos Homes,Permanent Nursing,Deerhurst Nursing Home,662.24, 05-May-2020
1074,Revenue,CAHD,South Glos Users in South Glos Homes,Permanent Nursing,Deerhurst Nursing Home,662.24, 05-May-2020
1075,Revenue,CAHD,South Glos Users in South Glos Homes,Permanent Nursing,Deerhurst Nursing Home,662.24, 05-May-2020
1076,Revenue,CAHD,South Glos Users in South Glos Homes,Permanent Nursing,Deerhurst Nursing Home,662.24, 05-May-2020
1077,Revenue,CAHD,South - Commissioned Services,Permanent Nursing,Deerhurst Nursing Home,4089.36, 05-May-2020
1078,Revenue,CAHD,South Glos Users in South Glos Homes,Permanent Nursing,Deerhurst Nursing Home,662.24, 05-May-2020
1079,Revenue,CAHD,Covid 19 -Adult Social Care,Permanent Residential,Deerhurst Nursing Home,4727.86, 27-May-2020
1080,Revenue,CAHD,Covid 19 -Adult Social Care,Permanent Residential,Deerhurst Nursing Home,853.44, 27-May-2020
1081,Revenue,CAHD,Covid 19 -Adult Social Care,Permanent Residential,Deerhurst Nursing Home,2163.41, 27-May-2020
1082,Revenue,CAHD,South - Commissioned Services,Supported Living,Design House,2714.44, 05-May-2020
1083,Revenue,CAHD,South - Commissioned Services,Other Small Contracts,Design House,3124.28, 05-May-2020
1084,Revenue,CAHD,South - Commissioned Services,Supported Living,Design House,3195.40, 05-May-2020
1085,Revenue,CAHD,South - Commissioned Services,Supported Living,Design House,3053.16, 05-May-2020
1086,Revenue,CAHD,South - Commissioned Services,Day Care / Social Activities,Design House,526.72, 05-May-2020
1087,Revenue,CAHD,Central - Commissioned Services,Day Care / Social Activities,Design House,2991.44, 05-May-2020
1088,Revenue,CAHD,South - Commissioned Services,Day Care / Social Activities,Design House,1317.04, 05-May-2020
1089,Revenue,CAHD,South - Commissioned Services,Day Care / Social Activities,Design House,939.72, 05-May-2020
1090,Revenue,CAHD,South - Commissioned Services,Supported Living,Design House,2691.36, 05-May-2020
1091,Revenue,CAHD,South - Commissioned Services,Supported Living,Design House,2638.60, 05-May-2020
1092,Revenue,CAHD,South - Commissioned Services,Other Small Contracts,Design House,2192.32, 05-May-2020
1093,Revenue,CAHD,South - Commissioned Services,Day Care / Social Activities,Design House,526.72, 05-May-2020
1094,Revenue,CAHD,South - Commissioned Services,Supported Living,Design House,1934.44, 05-May-2020
1095,Revenue,CAHD,South - Commissioned Services,Other Small Contracts,Design House,2566.92, 05-May-2020
1096,Revenue,CAHD,South - Commissioned Services,Supported Living,Design House,4393.28, 05-May-2020
1097,Revenue,CAHD,North - Community based support,Supported Living,Design House,3115.32, 05-May-2020
1098,Revenue,CAHD,South - Commissioned Services,Day Care / Social Activities,Design House,1536.08, 05-May-2020
1099,Revenue,CAHD,South - Commissioned Services,Supported Living,Design House,2983.16, 05-May-2020
1100,Revenue,CAHD,South - Commissioned Services,Supported Living,Design House,2593.64, 05-May-2020
1101,Revenue,CAHD,South - Commissioned Services,Supported Living,Design House,2302.64, 05-May-2020
1102,Revenue,CAHD,South - Commissioned Services,Supported Living,Design House,2302.64, 05-May-2020
1103,Revenue,CAHD,South - Commissioned Services,Permanent Residential,Dimensions  Suite 2,5630.76, 05-May-2020
1104,Revenue,CAHD,Covid 19 -Adult Social Care,Permanent Residential,Dimensions  Suite 2,611.67, 27-May-2020
1105,Revenue,CAHD,South - Commissioned Services,Permanent Residential,Dimensions  Suite 2,2806.12, 05-May-2020
1106,Revenue,CAHD,Community Support - North,Preventative Assistance,Dobbins Industrial Cleaning Limited,600.00, 27-May-2020
1107,Revenue,CAHD,Sexual Health,Other Small Contracts,Downend Health Group,906.00, 26-May-2020
1108,Revenue,CAHD,Drug and Alcohol Programme,Other Small Contracts,Downend Health Group,5785.50, 29-May-2020
1109,Revenue,CAHD,Statemented Support Academies,Other Public Bodies,Downend School,978.57, 28-May-2020
1110,Revenue,CAHD,Statemented Support Academies,Other Public Bodies,Downend School,660.24, 28-May-2020
1111,Revenue,CAHD,Statemented Support Academies,Other Public Bodies,Downend School,1025.73, 28-May-2020
1112,Revenue,CAHD,Statemented Support Academies,Other Public Bodies,Downend School,1013.94, 28-May-2020
1113,Revenue,CAHD,Statemented Support Academies,Other Public Bodies,Downend School,801.72, 28-May-2020
1114,Revenue,CAHD,Statemented Support Academies,Other Public Bodies,Downend School,530.55, 28-May-2020
1115,Revenue,CAHD,Statemented Support Academies,Other Public Bodies,Downend School,1108.26, 28-May-2020
1116,Revenue,CAHD,Statemented Support Academies,Other Public Bodies,Downend School,554.13, 28-May-2020
1117,Revenue,CAHD,Statemented Support Academies,Other Public Bodies,Downend School,1438.38, 28-May-2020
1118,Revenue,CAHD,Statemented Support Academies,Other Public Bodies,Downend School,1709.55, 28-May-2020
1119,Revenue,CAHD,Statemented Support Academies,Other Public Bodies,Downend School,1544.49, 28-May-2020
1120,Revenue,CAHD,Social Lettings Agency,Other Supplies & Services,Individual,605.64, 22-May-2020
1121,Revenue,CAHD,CSC - Residential Placements,Permanent Residential,Durham County Council,31650.00, 18-May-2020
1122,Revenue,CAHD,Independent Special Placements - Pre 16,Other Private Contractors,Durham School,8311.95, 22-May-2020
1123,Revenue,CAHD,North - Community based support,Permanent Residential,East Court,2763.56, 05-May-2020
1124,Revenue,CAHD,South - Commissioned Services,Permanent Residential,Edgemont House Ltd,3264.00, 05-May-2020
1125,Revenue,CAHD,South - bed purchasing and direct  payments,Permanent Residential,Edgemont House Ltd,3264.00, 05-May-2020
1126,Revenue,CAHD,Covid 19 -Adult Social Care,Permanent Residential,Edgemont House Ltd,708.95, 27-May-2020
1127,Revenue,CAHD,South - Commissioned Services,Permanent Nursing,Edgemont View Ltd,3655.68, 05-May-2020
1128,Revenue,CAHD,South Glos Users in South Glos Homes,Permanent Nursing,Edgemont View Ltd,662.24, 05-May-2020
1129,Revenue,CAHD,South - Commissioned Services,Permanent Nursing,Edgemont View Ltd,3570.00, 05-May-2020
1130,Revenue,CAHD,South - Commissioned Services,Permanent Nursing,Edgemont View Ltd,2611.20, 05-May-2020
1131,Revenue,CAHD,South Glos Users in South Glos Homes,Permanent Nursing,Edgemont View Ltd,662.24, 05-May-2020
1132,Revenue,CAHD,South Glos Users in South Glos Homes,Permanent Nursing,Edgemont View Ltd,662.24, 05-May-2020
1133,Revenue,CAHD,South Glos Users in South Glos Homes,Permanent Nursing,Edgemont View Ltd,662.24, 05-May-2020
1134,Revenue,CAHD,South Glos Users in South Glos Homes,Permanent Nursing,Edgemont View Ltd,662.24, 05-May-2020
1135,Revenue,CAHD,South Glos Users in South Glos Homes,Permanent Nursing,Edgemont View Ltd,662.24, 05-May-2020
1136,Revenue,CAHD,South Glos Users in South Glos Homes,Permanent Nursing,Edgemont View Ltd,662.24, 05-May-2020
1137,Revenue,CAHD,South - Commissioned Services,Permanent Nursing,Edgemont View Ltd,3655.68, 05-May-2020
1138,Revenue,CAHD,South Glos Users in South Glos Homes,Permanent Nursing,Edgemont View Ltd,662.24, 05-May-2020
1139,Revenue,CAHD,Covid 19 -Adult Social Care,Permanent Residential,Edgemont View Ltd,1553.50, 27-May-2020
1140,Revenue,CAHD,Planning and Partnerships Procurement,Other Supplies & Services,Eldercare,450.00, 15-May-2020
1141,Revenue,CAHD,Planning and Partnerships Procurement,Other Supplies & Services,Eldercare,2803.50, 15-May-2020
1142,Revenue,CAHD,Planning and Partnerships Procurement,Other Supplies & Services,Eldercare,2627.56, 15-May-2020
1143,Revenue,CAHD,Supporting People Programme,Grants to Voluntary Bodies,Elim Housing Association Limited,5362.00, 01-May-2020
1144,Revenue,CAHD,Covid 19 -Adult Social Care,Other Small Contracts,Elite Home Care Ltd,623.29, 05-May-2020
1145,Revenue,CAHD,Social Lettings Agency,Fees - General,Individual,13.20, 05-May-2020
1146,Revenue,CAHD,Social Lettings Agency,Other Supplies & Services,Individual,1020.80, 05-May-2020
1147,Revenue,CAHD,Drug and Alcohol Programme,Other Small Contracts,Emersons Green Medical Centre,1319.50, 29-May-2020
1148,Revenue,CAHD,Special ISB,Other Public Bodies,Enable Trust,6575.36, 12-May-2020
1149,Revenue,CAHD,Special ISB,Other Public Bodies,Enable Trust,1540.83, 26-May-2020
1150,Revenue,CAHD,Special ISB,Other Public Bodies,Enable Trust,1540.83, 26-May-2020
1151,Revenue,CAHD,Special ISB,Other Public Bodies,Enable Trust,1175.87, 26-May-2020
1152,Revenue,CAHD,Special ISB,Other Public Bodies,Enable Trust,1175.87, 26-May-2020
1153,Revenue,CAHD,Special ISB,Other Public Bodies,Enable Trust,892.05, 26-May-2020
1154,Revenue,CAHD,Special ISB,Other Public Bodies,Enable Trust,1540.83, 26-May-2020
1155,Revenue,CAHD,Special ISB,Other Public Bodies,Enable Trust,1540.83, 26-May-2020
1156,Revenue,CAHD,Special ISB,Other Public Bodies,Enable Trust,1175.87, 26-May-2020
1157,Revenue,CAHD,Special ISB,Other Public Bodies,Enable Trust,1175.87, 26-May-2020
1158,Revenue,CAHD,Special ISB,Other Public Bodies,Enable Trust,1175.87, 26-May-2020
1159,Revenue,CAHD,Special ISB,Other Public Bodies,Enable Trust,1540.83, 26-May-2020
1160,Revenue,CAHD,Special ISB,Other Public Bodies,Enable Trust,892.05, 26-May-2020
1161,Revenue,CAHD,Special ISB,Other Public Bodies,Enable Trust,648.70, 26-May-2020
1162,Revenue,CAHD,Special ISB,Other Public Bodies,Enable Trust,892.05, 26-May-2020
1163,Revenue,CAHD,Special ISB,Other Public Bodies,Enable Trust,892.05, 26-May-2020
1164,Revenue,CAHD,Special ISB,Other Public Bodies,Enable Trust,1175.87, 26-May-2020
1165,Revenue,CAHD,Special ISB,Other Public Bodies,Enable Trust,1175.87, 26-May-2020
1166,Revenue,CAHD,Special ISB,Other Public Bodies,Enable Trust,1175.87, 26-May-2020
1167,Revenue,CAHD,Special ISB,Other Public Bodies,Enable Trust,892.05, 26-May-2020
1168,Revenue,CAHD,Special ISB,Other Public Bodies,Enable Trust,1175.87, 26-May-2020
1169,Revenue,CAHD,Special ISB,Other Public Bodies,Enable Trust,1175.87, 26-May-2020
1170,Revenue,CAHD,Special ISB,Other Public Bodies,Enable Trust,1540.83, 26-May-2020
1171,Revenue,CAHD,Special ISB,Other Public Bodies,Enable Trust,648.70, 26-May-2020
1172,Revenue,CAHD,Special ISB,Other Public Bodies,Enable Trust,1702.96, 26-May-2020
1173,Revenue,CAHD,Special ISB,Other Public Bodies,Enable Trust,1540.83, 26-May-2020
1174,Revenue,CAHD,Special ISB,Other Public Bodies,Enable Trust,1540.83, 26-May-2020
1175,Revenue,CAHD,Special ISB,Other Public Bodies,Enable Trust,1175.87, 26-May-2020
1176,Revenue,CAHD,Special ISB,Other Public Bodies,Enable Trust,1175.87, 26-May-2020
1177,Revenue,CAHD,Special ISB,Other Public Bodies,Enable Trust,892.05, 26-May-2020
1178,Revenue,CAHD,Special ISB,Other Public Bodies,Enable Trust,1175.87, 26-May-2020
1179,Revenue,CAHD,Special ISB,Other Public Bodies,Enable Trust,892.05, 26-May-2020
1180,Revenue,CAHD,Special ISB,Other Public Bodies,Enable Trust,2189.53, 26-May-2020
1181,Revenue,CAHD,Special ISB,Other Public Bodies,Enable Trust,1175.87, 26-May-2020
1182,Revenue,CAHD,Special ISB,Other Public Bodies,Enable Trust,1175.87, 26-May-2020
1183,Revenue,CAHD,Special ISB,Other Public Bodies,Enable Trust,1175.87, 26-May-2020
1184,Revenue,CAHD,Special ISB,Other Public Bodies,Enable Trust,1175.87, 26-May-2020
1185,Revenue,CAHD,Special ISB,Other Public Bodies,Enable Trust,1175.87, 26-May-2020
1186,Revenue,CAHD,Special ISB,Other Public Bodies,Enable Trust,2189.53, 26-May-2020
1187,Revenue,CAHD,Special ISB,Other Public Bodies,Enable Trust,1175.87, 26-May-2020
1188,Revenue,CAHD,Special ISB,Other Public Bodies,Enable Trust,1540.83, 26-May-2020
1189,Revenue,CAHD,Special ISB,Other Public Bodies,Enable Trust,892.05, 26-May-2020
1190,Revenue,CAHD,Special ISB,Other Public Bodies,Enable Trust,1540.83, 26-May-2020
1191,Revenue,CAHD,Special ISB,Other Public Bodies,Enable Trust,1175.87, 26-May-2020
1192,Revenue,CAHD,Special ISB,Other Public Bodies,Enable Trust,1540.83, 26-May-2020
1193,Revenue,CAHD,Special ISB,Other Public Bodies,Enable Trust,892.05, 26-May-2020
1194,Revenue,CAHD,Special ISB,Other Public Bodies,Enable Trust,1540.83, 26-May-2020
1195,Revenue,CAHD,Special ISB,Other Public Bodies,Enable Trust,1175.87, 26-May-2020
1196,Revenue,CAHD,Special ISB,Other Public Bodies,Enable Trust,1540.83, 26-May-2020
1197,Revenue,CAHD,Special ISB,Other Public Bodies,Enable Trust,1175.87, 26-May-2020
1198,Revenue,CAHD,Special ISB,Other Public Bodies,Enable Trust,1540.83, 26-May-2020
1199,Revenue,CAHD,Special ISB,Other Public Bodies,Enable Trust,1175.87, 26-May-2020
1200,Revenue,CAHD,Special ISB,Other Public Bodies,Enable Trust,892.05, 26-May-2020
1201,Revenue,CAHD,Special ISB,Other Public Bodies,Enable Trust,1175.87, 26-May-2020
1202,Revenue,CAHD,Special ISB,Other Public Bodies,Enable Trust,1175.87, 26-May-2020
1203,Revenue,CAHD,Special ISB,Other Public Bodies,Enable Trust,2189.53, 26-May-2020
1204,Revenue,CAHD,Special ISB,Other Public Bodies,Enable Trust,1540.83, 26-May-2020
1205,Revenue,CAHD,Special ISB,Other Public Bodies,Enable Trust,892.05, 26-May-2020
1206,Revenue,CAHD,Special ISB,Other Public Bodies,Enable Trust,892.05, 26-May-2020
1207,Revenue,CAHD,Special ISB,Other Public Bodies,Enable Trust,892.05, 26-May-2020
1208,Revenue,CAHD,Special ISB,Other Public Bodies,Enable Trust,1540.83, 26-May-2020
1209,Revenue,CAHD,Special ISB,Other Public Bodies,Enable Trust,1540.83, 26-May-2020
1210,Revenue,CAHD,Special ISB,Other Public Bodies,Enable Trust,1175.87, 26-May-2020
1211,Revenue,CAHD,Special ISB,Other Public Bodies,Enable Trust,1175.87, 26-May-2020
1212,Revenue,CAHD,Special ISB,Other Public Bodies,Enable Trust,1540.83, 26-May-2020
1213,Revenue,CAHD,Special ISB,Other Public Bodies,Enable Trust,1175.87, 26-May-2020
1214,Revenue,CAHD,Special ISB,Other Public Bodies,Enable Trust,1540.83, 26-May-2020
1215,Revenue,CAHD,Special ISB,Other Public Bodies,Enable Trust,1175.87, 26-May-2020
1216,Revenue,CAHD,Special ISB,Other Public Bodies,Enable Trust,1175.87, 26-May-2020
1217,Revenue,CAHD,Special ISB,Other Public Bodies,Enable Trust,1175.87, 26-May-2020
1218,Revenue,CAHD,Special ISB,Other Public Bodies,Enable Trust,1175.87, 26-May-2020
1219,Revenue,CAHD,Special ISB,Other Public Bodies,Enable Trust,2189.53, 26-May-2020
1220,Revenue,CAHD,Special ISB,Other Public Bodies,Enable Trust,1175.87, 26-May-2020
1221,Revenue,CAHD,Special ISB,Other Public Bodies,Enable Trust,1540.83, 26-May-2020
1222,Revenue,CAHD,Special ISB,Other Public Bodies,Enable Trust,2189.53, 26-May-2020
1223,Revenue,CAHD,Special ISB,Other Public Bodies,Enable Trust,2189.53, 26-May-2020
1224,Revenue,CAHD,Special ISB,Other Public Bodies,Enable Trust,2958.91, 12-May-2020
1225,Revenue,CAHD,Special ISB,Other Public Bodies,Enable Trust,1175.87, 26-May-2020
1226,Revenue,CAHD,Special ISB,Other Public Bodies,Enable Trust,1702.96, 26-May-2020
1227,Revenue,CAHD,Special ISB,Other Public Bodies,Enable Trust,892.05, 26-May-2020
1228,Revenue,CAHD,Special ISB,Other Public Bodies,Enable Trust,1702.96, 26-May-2020
1229,Revenue,CAHD,Special ISB,Other Public Bodies,Enable Trust,1175.87, 26-May-2020
1230,Revenue,CAHD,Special ISB,Other Public Bodies,Enable Trust,2189.53, 26-May-2020
1231,Revenue,CAHD,Special ISB,Other Public Bodies,Enable Trust,2189.53, 26-May-2020
1232,Revenue,CAHD,Special ISB,Other Public Bodies,Enable Trust,1508.33, 26-May-2020
1233,Revenue,CAHD,Special ISB,Other Public Bodies,Enable Trust,892.05, 26-May-2020
1234,Revenue,CAHD,Special ISB,Other Public Bodies,Enable Trust,892.05, 26-May-2020
1235,Revenue,CAHD,Special ISB,Other Public Bodies,Enable Trust,1175.87, 26-May-2020
1236,Revenue,CAHD,Special ISB,Other Public Bodies,Enable Trust,2189.53, 26-May-2020
1237,Revenue,CAHD,Special ISB,Other Public Bodies,Enable Trust,2513.88, 26-May-2020
1238,Revenue,CAHD,Special ISB,Other Public Bodies,Enable Trust,892.05, 26-May-2020
1239,Revenue,CAHD,Special ISB,Other Public Bodies,Enable Trust,892.05, 26-May-2020
1240,Revenue,CAHD,Special ISB,Other Public Bodies,Enable Trust,1702.96, 26-May-2020
1241,Revenue,CAHD,Special ISB,Other Public Bodies,Enable Trust,1702.96, 26-May-2020
1242,Revenue,CAHD,Special ISB,Other Public Bodies,Enable Trust,1175.87, 26-May-2020
1243,Revenue,CAHD,Special ISB,Other Public Bodies,Enable Trust,1175.87, 26-May-2020
1244,Revenue,CAHD,Special ISB,Other Public Bodies,Enable Trust,1702.96, 26-May-2020
1245,Revenue,CAHD,Special ISB,Other Public Bodies,Enable Trust,1702.96, 26-May-2020
1246,Revenue,CAHD,Special ISB,Other Public Bodies,Enable Trust,1175.87, 26-May-2020
1247,Revenue,CAHD,Special ISB,Other Public Bodies,Enable Trust,1175.87, 26-May-2020
1248,Revenue,CAHD,Special ISB,Other Public Bodies,Enable Trust,892.05, 26-May-2020
1249,Revenue,CAHD,Special ISB,Other Public Bodies,Enable Trust,1702.96, 26-May-2020
1250,Revenue,CAHD,Special ISB,Other Public Bodies,Enable Trust,1175.87, 26-May-2020
1251,Revenue,CAHD,Special ISB,Other Public Bodies,Enable Trust,1175.87, 26-May-2020
1252,Revenue,CAHD,Special ISB,Other Public Bodies,Enable Trust,1175.87, 26-May-2020
1253,Revenue,CAHD,Special ISB,Other Public Bodies,Enable Trust,1702.96, 26-May-2020
1254,Revenue,CAHD,Special ISB,Other Public Bodies,Enable Trust,1702.96, 26-May-2020
1255,Revenue,CAHD,Special ISB,Other Public Bodies,Enable Trust,1175.87, 26-May-2020
1256,Revenue,CAHD,Special ISB,Other Public Bodies,Enable Trust,1702.96, 26-May-2020
1257,Revenue,CAHD,Special ISB,Other Public Bodies,Enable Trust,1175.87, 26-May-2020
1258,Revenue,CAHD,Special ISB,Other Public Bodies,Enable Trust,1175.87, 26-May-2020
1259,Revenue,CAHD,Special ISB,Other Public Bodies,Enable Trust,1175.87, 26-May-2020
1260,Revenue,CAHD,Special ISB,Other Public Bodies,Enable Trust,1175.87, 26-May-2020
1261,Revenue,CAHD,Special ISB,Other Public Bodies,Enable Trust,1175.87, 26-May-2020
1262,Revenue,CAHD,Special ISB,Other Public Bodies,Enable Trust,1175.87, 26-May-2020
1263,Revenue,CAHD,Special ISB,Other Public Bodies,Enable Trust,892.05, 26-May-2020
1264,Revenue,CAHD,Special ISB,Other Public Bodies,Enable Trust,1175.87, 26-May-2020
1265,Revenue,CAHD,Special ISB,Other Public Bodies,Enable Trust,1175.87, 26-May-2020
1266,Revenue,CAHD,Special ISB,Other Public Bodies,Enable Trust,2189.53, 26-May-2020
1267,Revenue,CAHD,Special ISB,Other Public Bodies,Enable Trust,1702.96, 26-May-2020
1268,Revenue,CAHD,Special ISB,Other Public Bodies,Enable Trust,1702.96, 26-May-2020
1269,Revenue,CAHD,Special ISB,Other Public Bodies,Enable Trust,892.05, 26-May-2020
1270,Revenue,CAHD,Special ISB,Other Public Bodies,Enable Trust,805.60, 26-May-2020
1271,Revenue,CAHD,Special ISB,Other Public Bodies,Enable Trust,1175.87, 26-May-2020
1272,Revenue,CAHD,Special ISB,Other Public Bodies,Enable Trust,892.05, 26-May-2020
1273,Revenue,CAHD,Special ISB,Other Public Bodies,Enable Trust,1175.87, 26-May-2020
1274,Revenue,CAHD,Special ISB,Other Public Bodies,Enable Trust,648.70, 26-May-2020
1275,Revenue,CAHD,Special ISB,Other Public Bodies,Enable Trust,1702.96, 26-May-2020
1276,Revenue,CAHD,Special ISB,Other Public Bodies,Enable Trust,1702.96, 26-May-2020
1277,Revenue,CAHD,Special ISB,Other Public Bodies,Enable Trust,1540.83, 26-May-2020
1278,Revenue,CAHD,Special ISB,Other Public Bodies,Enable Trust,892.05, 26-May-2020
1279,Revenue,CAHD,Special ISB,Other Public Bodies,Enable Trust,1702.96, 26-May-2020
1280,Revenue,CAHD,Special ISB,Other Public Bodies,Enable Trust,1175.87, 26-May-2020
1281,Revenue,CAHD,Special ISB,Other Public Bodies,Enable Trust,1175.87, 26-May-2020
1282,Revenue,CAHD,Special ISB,Other Public Bodies,Enable Trust,1175.87, 26-May-2020
1283,Revenue,CAHD,Special ISB,Other Public Bodies,Enable Trust,892.05, 26-May-2020
1284,Revenue,CAHD,Special ISB,Other Public Bodies,Enable Trust,892.05, 26-May-2020
1285,Revenue,CAHD,Special ISB,Other Public Bodies,Enable Trust,892.05, 26-May-2020
1286,Revenue,CAHD,Special ISB,Other Public Bodies,Enable Trust,1175.87, 26-May-2020
1287,Revenue,CAHD,Special ISB,Other Public Bodies,Enable Trust,892.05, 26-May-2020
1288,Revenue,CAHD,Special ISB,Other Public Bodies,Enable Trust,892.05, 26-May-2020
1289,Revenue,CAHD,Special ISB,Other Public Bodies,Enable Trust,892.05, 26-May-2020
1290,Revenue,CAHD,Special ISB,Other Public Bodies,Enable Trust,1175.87, 26-May-2020
1291,Revenue,CAHD,Special ISB,Other Public Bodies,Enable Trust,1702.96, 26-May-2020
1292,Revenue,CAHD,Special ISB,Other Public Bodies,Enable Trust,1702.96, 26-May-2020
1293,Revenue,CAHD,Special ISB,Other Public Bodies,Enable Trust,2189.53, 26-May-2020
1294,Revenue,CAHD,Special ISB,Other Public Bodies,Enable Trust,1175.87, 26-May-2020
1295,Revenue,CAHD,Special ISB,Other Public Bodies,Enable Trust,892.05, 26-May-2020
1296,Revenue,CAHD,Special ISB,Other Public Bodies,Enable Trust,892.05, 26-May-2020
1297,Revenue,CAHD,Special ISB,Other Public Bodies,Enable Trust,1175.87, 26-May-2020
1298,Revenue,CAHD,Special ISB,Other Public Bodies,Enable Trust,1175.87, 26-May-2020
1299,Revenue,CAHD,Special ISB,Other Public Bodies,Enable Trust,1175.87, 26-May-2020
1300,Revenue,CAHD,Special ISB,Other Public Bodies,Enable Trust,1702.96, 26-May-2020
1301,Revenue,CAHD,Special ISB,Other Public Bodies,Enable Trust,1702.96, 26-May-2020
1302,Revenue,CAHD,Special ISB,Other Public Bodies,Enable Trust,1175.87, 26-May-2020
1303,Revenue,CAHD,Special ISB,Other Public Bodies,Enable Trust,892.05, 26-May-2020
1304,Revenue,CAHD,Special ISB,Other Public Bodies,Enable Trust,892.05, 26-May-2020
1305,Revenue,CAHD,Special ISB,Other Public Bodies,Enable Trust,1702.96, 26-May-2020
1306,Revenue,CAHD,Special ISB,Other Public Bodies,Enable Trust,2189.53, 26-May-2020
1307,Revenue,CAHD,Special ISB,Other Public Bodies,Enable Trust,1175.87, 26-May-2020
1308,Revenue,CAHD,Special ISB,Other Public Bodies,Enable Trust,892.05, 26-May-2020
1309,Revenue,CAHD,Special ISB,Other Public Bodies,Enable Trust,2189.53, 26-May-2020
1310,Revenue,CAHD,Special ISB,Other Public Bodies,Enable Trust,1702.96, 26-May-2020
1311,Revenue,CAHD,Special ISB,Other Public Bodies,Enable Trust,1540.83, 26-May-2020
1312,Revenue,CAHD,Special ISB,Other Public Bodies,Enable Trust,648.70, 26-May-2020
1313,Revenue,CAHD,Special ISB,Other Public Bodies,Enable Trust,1175.87, 26-May-2020
1314,Revenue,CAHD,Special ISB,Other Public Bodies,Enable Trust,2189.53, 26-May-2020
1315,Revenue,CAHD,Special ISB,Other Public Bodies,Enable Trust,1175.87, 26-May-2020
1316,Revenue,CAHD,Special ISB,Other Public Bodies,Enable Trust,1702.96, 26-May-2020
1317,Revenue,CAHD,Special ISB,Other Public Bodies,Enable Trust,2189.53, 26-May-2020
1318,Revenue,CAHD,Special ISB,Other Public Bodies,Enable Trust,1021.76, 26-May-2020
1319,Revenue,CAHD,Central - Commissioned Services,Other Small Contracts,Epiphany In Care,1134.90, 22-May-2020
1320,Revenue,CAHD,Central - Commissioned Services,Other Small Contracts,Epiphany In Care,1159.15, 22-May-2020
1321,Revenue,CAHD,North - Community based support,Other Small Contracts,Epiphany In Care,3647.20, 01-May-2020
1322,Revenue,CAHD,Central - Commissioned Services,Other Small Contracts,Epiphany In Care,5750.25, 22-May-2020
1323,Revenue,CAHD,Central - Commissioned Services,Other Small Contracts,Epiphany In Care,620.80, 14-May-2020
1324,Revenue,CAHD,Central - Commissioned Services,Other Small Contracts,Epiphany In Care,620.80, 14-May-2020
1325,Revenue,CAHD,Central - Commissioned Services,Other Small Contracts,Epiphany In Care,501.10, 14-May-2020
1326,Revenue,CAHD,South - Commissioned Services,Day Care / Social Activities,Epiphany In Care,582.00, 15-May-2020
1327,Revenue,CAHD,South - Commissioned Services,Day Care / Social Activities,Epiphany In Care,649.90, 15-May-2020
1328,Revenue,CAHD,18-25 Year Olds,Other Small Contracts,Epiphany In Care,514.10, 22-May-2020
1329,Revenue,CAHD,Central - Commissioned Services,Other Small Contracts,Epiphany In Care,740.00, 01-May-2020
1330,Revenue,CAHD,North - Community based support,Other Small Contracts,Epiphany In Care,4691.68, 01-May-2020
1331,Revenue,CAHD,North - Community based support,Other Small Contracts,Epiphany In Care,3703.60, 13-May-2020
1332,Revenue,CAHD,Central - Commissioned Services,Other Small Contracts,Epiphany In Care,1193.10, 26-May-2020
1333,Revenue,CAHD,Central - Commissioned Services,Other Small Contracts,Epiphany In Care,5022.00, 18-May-2020
1334,Revenue,CAHD,North - Community based support,Other Small Contracts,Epiphany In Care,1092.00, 14-May-2020
1335,Revenue,CAHD,Covid 19 -Adult Social Care,Other Small Contracts,Epiphany In Care,999.75, 07-May-2020
1336,Revenue,CAHD,Additional Payments to providers - COVID,Other Small Contracts,Epiphany In Care,757.20, 21-May-2020
1337,Revenue,CAHD,Additional Payments to providers - COVID,Other Small Contracts,Epiphany In Care,818.01, 28-May-2020
1338,Revenue,CAHD,Additional Payments to providers - COVID,Other Small Contracts,Epiphany In Care,818.01, 28-May-2020
1339,Revenue,CAHD,Covid 19 -Adult Social Care,Other Small Contracts,Epiphany In Care,2416.08, 27-May-2020
1340,Revenue,CAHD,South - Commissioned Services,Permanent Nursing,Epworth House,3072.00, 05-May-2020
1341,Revenue,CAHD,Management & Support costs,Fees - General,Ernst & Young LLP,112500.00, 13-May-2020
1342,Revenue,CAHD,CSC - Vinney Green Secure Unit,Drugs & Medical Supplies,ESE Direct Ltd,3190.79, 18-May-2020
1343,Revenue,CAHD,North - S117,Permanent Residential,Evolve House,3276.80, 05-May-2020
1344,Revenue,CAHD,Extra Care Housing,Private & Voluntary Home Care,Extra Care Charitable Trust,26966.00, 12-May-2020
1345,Revenue,CAHD,Additional Payments to providers - COVID,Other Small Contracts,Extra Care Charitable Trust,2696.00, 28-May-2020
1346,Revenue,CAHD,Additional Payments to providers - COVID,Other Small Contracts,Extra Care Charitable Trust,2696.00, 28-May-2020
1347,Revenue,CAHD,Additional Payments to providers - COVID,Other Small Contracts,Extra Care Charitable Trust,2696.00, 28-May-2020
1348,Revenue,CAHD,North - Community based support,Permanent Residential,Eyre Court,3719.16, 05-May-2020
1349,Revenue,CAHD,North - Community based support,Permanent Residential,Eyre Court,13307.14, 05-May-2020
1350,Revenue,CAHD,North - Community based support,Permanent Residential,Eyre Court,2892.86, 05-May-2020
1351,Revenue,CAHD,North - Community based support,Permanent Residential,Eyre Court,2507.14, 05-May-2020
1352,Revenue,CAHD,Covid 19 -Adult Social Care,Permanent Residential,Eyre Court,1081.33, 27-May-2020
1353,Revenue,CAHD,South - Commissioned Services,Permanent Nursing,Fairview Court,3886.76, 05-May-2020
1354,Revenue,CAHD,South Glos Users in South Glos Homes,Permanent Nursing,Fairview Court,662.24, 05-May-2020
1355,Revenue,CAHD,South Glos Users in South Glos Homes,Permanent Nursing,Fairview Court,662.24, 05-May-2020
1356,Revenue,CAHD,South Glos Users in South Glos Homes,Permanent Nursing,Fairview Court,662.24, 05-May-2020
1357,Revenue,CAHD,South Glos Users in South Glos Homes,Permanent Nursing,Fairview Court,662.24, 05-May-2020
1358,Revenue,CAHD,South Glos Users in South Glos Homes,Permanent Nursing,Fairview Court,662.24, 05-May-2020
1359,Revenue,CAHD,South - Commissioned Services,Permanent Nursing,Fairview Court,3618.72, 05-May-2020
1360,Revenue,CAHD,South Glos Users in South Glos Homes,Permanent Nursing,Fairview Court,662.24, 05-May-2020
1361,Revenue,CAHD,South Glos Users in South Glos Homes,Permanent Nursing,Fairview Court,662.24, 05-May-2020
1362,Revenue,CAHD,South - S117,Permanent Nursing,Fairview Court,4257.32, 05-May-2020
1363,Revenue,CAHD,South Glos Users in South Glos Homes,Permanent Nursing,Fairview Court,662.24, 05-May-2020
1364,Revenue,CAHD,South - Commissioned Services,Permanent Nursing,Fairview Court,3450.12, 05-May-2020
1365,Revenue,CAHD,South Glos Users in South Glos Homes,Permanent Nursing,Fairview Court,662.24, 05-May-2020
1366,Revenue,CAHD,South - bed purchasing and direct  payments,Permanent Nursing,Fairview Court,4078.24, 05-May-2020
1367,Revenue,CAHD,South Glos Users in South Glos Homes,Permanent Nursing,Fairview Court,662.24, 05-May-2020
1368,Revenue,CAHD,South Glos Users in South Glos Homes,Permanent Nursing,Fairview Court,662.24, 05-May-2020
1369,Revenue,CAHD,South Glos Users in South Glos Homes,Permanent Nursing,Fairview Court,662.24, 05-May-2020
1370,Revenue,CAHD,South - Commissioned Services,Permanent Nursing,Fairview Court,4140.00, 05-May-2020
1371,Revenue,CAHD,South Glos Users in South Glos Homes,Permanent Nursing,Fairview Court,662.24, 05-May-2020
1372,Revenue,CAHD,South - Commissioned Services,Permanent Nursing,Fairview Court,3886.76, 05-May-2020
1373,Revenue,CAHD,South Glos Users in South Glos Homes,Permanent Nursing,Fairview Court,662.24, 05-May-2020
1374,Revenue,CAHD,South Glos Users in South Glos Homes,Permanent Nursing,Fairview Court,662.24, 05-May-2020
1375,Revenue,CAHD,South Glos Users in South Glos Homes,Permanent Nursing,Fairview Court,662.24, 05-May-2020
1376,Revenue,CAHD,South - Commissioned Services,Permanent Nursing,Fairview Court,2955.54, 05-May-2020
1377,Revenue,CAHD,South - Commissioned Services,Permanent Nursing,Fairview Court,1182.22, 05-May-2020
1378,Revenue,CAHD,South Glos Users in South Glos Homes,Permanent Nursing,Fairview Court,662.24, 05-May-2020
1379,Revenue,CAHD,South Glos Users in South Glos Homes,Permanent Nursing,Fairview Court,662.24, 05-May-2020
1380,Revenue,CAHD,South - Commissioned Services,Permanent Residential,Fairview Court,4048.64, 05-May-2020
1381,Revenue,CAHD,South Glos Users in South Glos Homes,Permanent Nursing,Fairview Court,662.24, 05-May-2020
1382,Revenue,CAHD,South Glos Users in South Glos Homes,Permanent Nursing,Fairview Court,662.24, 05-May-2020
1383,Revenue,CAHD,North - Community based support,Permanent Residential,Fairview Court,3321.44, 05-May-2020
1384,Revenue,CAHD,South - bed purchasing and direct  payments,Permanent Nursing,Fairview Court,4137.76, 05-May-2020
1385,Revenue,CAHD,South Glos Users in South Glos Homes,Permanent Nursing,Fairview Court,662.24, 05-May-2020
1386,Revenue,CAHD,South - Commissioned Services,Permanent Nursing,Fairview Court,4137.76, 05-May-2020
1387,Revenue,CAHD,South - Commissioned Services,Permanent Nursing,Fairview Court,3842.21, 05-May-2020
1388,Revenue,CAHD,South Glos Users in South Glos Homes,Permanent Nursing,Fairview Court,662.24, 05-May-2020
1389,Revenue,CAHD,South Glos Users in South Glos Homes,Permanent Nursing,Fairview Court,662.24, 05-May-2020
1390,Revenue,CAHD,South Glos Users in South Glos Homes,Permanent Nursing,Fairview Court,638.59, 05-May-2020
1391,Revenue,CAHD,South Glos Users in South Glos Homes,Permanent Nursing,Fairview Court,1939.42, 05-May-2020
1392,Revenue,CAHD,South Glos Users in South Glos Homes,Permanent Nursing,Fairview Court,662.24, 05-May-2020
1393,Revenue,CAHD,South - Commissioned Services,Permanent Nursing,Fairview Court,3553.36, 05-May-2020
1394,Revenue,CAHD,South Glos Users in South Glos Homes,Permanent Nursing,Fairview Court,662.24, 05-May-2020
1395,Revenue,CAHD,North - Community based support,Permanent Nursing,Fairview Court,3886.76, 05-May-2020
1396,Revenue,CAHD,South Glos Users in South Glos Homes,Permanent Nursing,Fairview Court,662.24, 05-May-2020
1397,Revenue,CAHD,South Glos Users in South Glos Homes,Permanent Nursing,Fairview Court,662.24, 05-May-2020
1398,Revenue,CAHD,South - Commissioned Services,Permanent Nursing,Fairview Court,3192.96, 05-May-2020
1399,Revenue,CAHD,South Glos Users in South Glos Homes,Permanent Nursing,Fairview Court,662.24, 05-May-2020
1400,Revenue,CAHD,South - Commissioned Services,Permanent Nursing,Fairview Court,3886.76, 05-May-2020
1401,Revenue,CAHD,South Glos Users in South Glos Homes,Permanent Nursing,Fairview Court,662.24, 05-May-2020
1402,Revenue,CAHD,South - Commissioned Services,Permanent Nursing,Fairview Court,3618.72, 05-May-2020
1403,Revenue,CAHD,South Glos Users in South Glos Homes,Permanent Nursing,Fairview Court,662.24, 05-May-2020
1404,Revenue,CAHD,South - Commissioned Services,Permanent Nursing,Fairview Court,4028.00, 05-May-2020
1405,Revenue,CAHD,South Glos Users in South Glos Homes,Permanent Nursing,Fairview Court,662.24, 05-May-2020
1406,Revenue,CAHD,South - Commissioned Services,Permanent Nursing,Fairview Court,4137.76, 05-May-2020
1407,Revenue,CAHD,South Glos Users in South Glos Homes,Permanent Nursing,Fairview Court,662.24, 05-May-2020
1408,Revenue,CAHD,Covid 19 -Adult Social Care,Permanent Residential,Fairview Court,7945.56, 27-May-2020
1409,Revenue,CAHD,South - Commissioned Services,Permanent Residential,Fairview House,2349.60, 05-May-2020
1410,Revenue,CAHD,South - Commissioned Services,Permanent Residential,Fairview House,3400.00, 05-May-2020
1411,Revenue,CAHD,South - Commissioned Services,Permanent Residential,Fairview House,3400.00, 05-May-2020
1412,Revenue,CAHD,South - Commissioned Services,Fees & Charges Income - General,Fairview House,4614.29, 05-May-2020
1413,Revenue,CAHD,South - Commissioned Services,Permanent Residential,Fairview House,3468.00, 05-May-2020
1414,Revenue,CAHD,South - Commissioned Services,Permanent Residential,Fairview House,1734.00, 05-May-2020
1415,Revenue,CAHD,South - Commissioned Services,Respite Planned - Residential,Fairview House,3257.14, 05-May-2020
1416,Revenue,CAHD,South - Commissioned Services,Respite Planned - Residential,Fairview House,1900.00, 05-May-2020
1417,Revenue,CAHD,South - Commissioned Services,Respite Planned - Residential,Fairview House,678.57, 05-May-2020
1418,Revenue,CAHD,Covid 19 -Adult Social Care,Permanent Residential,Fairview House,1370.49, 27-May-2020
1419,Revenue,CAHD,North - Community based support,Permanent Residential,Faith House,3363.24, 05-May-2020
1420,Revenue,CAHD,Central - Commissioned Services,Permanent Residential,Faith House,4334.92, 05-May-2020
1421,Revenue,CAHD,Central - Commissioned Services,Permanent Residential,Faith House,2167.46, 05-May-2020
1422,Revenue,CAHD,Central - Commissioned Services,Permanent Residential,Faith House,910.70, 05-May-2020
1423,Revenue,CAHD,North - Community based support,Permanent Residential,Faith House,2861.88, 05-May-2020
1424,Revenue,CAHD,North - Community based support,Permanent Residential,Faith House,3039.60, 05-May-2020
1425,Revenue,CAHD,South - Commissioned Services,Permanent Residential,Faith House,2958.00, 05-May-2020
1426,Revenue,CAHD,Covid 19 -Adult Social Care,Permanent Residential,Faith House,1327.41, 27-May-2020
1427,Revenue,CAHD,CSC - Special Guardianship Orders,Consultants Fees,Family Action Enterprises Ltd,6950.00, 26-May-2020
1428,Revenue,CAHD,Post 16 High Needs Placements,Other Private Contractors,Farleigh FEC-Frome Priory,22421.57, 04-May-2020
1429,Revenue,CAHD,Central - Commissioned Services,Permanent Nursing,Festival House,3055.04, 05-May-2020
1430,Revenue,CAHD,"Education, Learning and Skills",Fees - General,FFT Education Ltd,1840.50, 04-May-2020
1431,Revenue,CAHD,Central - Commissioned Services,Permanent Residential,Fieldview,3481.60, 05-May-2020
1432,Revenue,CAHD,North - Community based support,Permanent Residential,Fieldview,3200.00, 05-May-2020
1433,Revenue,CAHD,North - S117,Permanent Residential,Fieldview,3600.00, 05-May-2020
1434,Revenue,CAHD,North - S117,Permanent Residential,Fieldview,1800.00, 05-May-2020
1435,Revenue,CAHD,North - S117,Permanent Residential,Fieldview,1285.71, 05-May-2020
1436,Revenue,CAHD,Covid 19 -Adult Social Care,Permanent Residential,Fieldview,725.83, 27-May-2020
1437,Revenue,CAHD,Statemented Support Payments to OLAs,Other L.A.'s - General,Filton Avenue Primary School,1131.84, 28-May-2020
1438,Revenue,CAHD,Statemented Support Payments to OLAs,Other L.A.'s - General,Filton Avenue Primary School,1332.27, 28-May-2020
1439,Revenue,CAHD,Central - Commissioned Services,Permanent Nursing,First Floor  Lingfield House,2445.96, 05-May-2020
1440,Revenue,CAHD,South Glos Users in South Glos Homes,Permanent Nursing,First Floor  Lingfield House,662.24, 05-May-2020
1441,Revenue,CAHD,Central - Commissioned Services,Permanent Nursing,First Floor  Lingfield House,2445.96, 05-May-2020
1442,Revenue,CAHD,South Glos Users in South Glos Homes,Permanent Nursing,First Floor  Lingfield House,662.24, 05-May-2020
1443,Revenue,CAHD,South Glos Users in South Glos Homes,Permanent Nursing,First Floor  Lingfield House,662.24, 05-May-2020
1444,Revenue,CAHD,Central - Commissioned Services,Permanent Residential,First Floor  Lingfield House,2274.92, 05-May-2020
1445,Revenue,CAHD,South Glos Users in South Glos Homes,Permanent Nursing,First Floor  Lingfield House,662.24, 05-May-2020
1446,Revenue,CAHD,South Glos Users in South Glos Homes,Permanent Nursing,First Floor  Lingfield House,662.24, 05-May-2020
1447,Revenue,CAHD,Central - Commissioned Services,Permanent Nursing,First Floor  Lingfield House,3530.86, 05-May-2020
1448,Revenue,CAHD,Central - Commissioned Services,Permanent Nursing,First Floor  Lingfield House,2521.04, 05-May-2020
1449,Revenue,CAHD,Central - Commissioned Services,Permanent Nursing,First Floor  Lingfield House,1260.52, 05-May-2020
1450,Revenue,CAHD,Central - Commissioned Services,Fees & Charges Income - General,First Floor  Lingfield House,793.09, 05-May-2020
1451,Revenue,CAHD,South Glos Users in South Glos Homes,Permanent Nursing,First Floor  Lingfield House,662.24, 05-May-2020
1452,Revenue,CAHD,Central - Commissioned Services,Permanent Nursing,First Floor  Lingfield House,2823.36, 05-May-2020
1453,Revenue,CAHD,South Glos Users in South Glos Homes,Permanent Nursing,First Floor  Lingfield House,662.24, 05-May-2020
1454,Revenue,CAHD,North - Community based support,Permanent Nursing,First Floor  Lingfield House,2445.96, 05-May-2020
1455,Revenue,CAHD,South Glos Users in South Glos Homes,Permanent Nursing,First Floor  Lingfield House,662.24, 05-May-2020
1456,Revenue,CAHD,Central - Commissioned Services,Permanent Nursing,First Floor  Lingfield House,2445.96, 05-May-2020
1457,Revenue,CAHD,South Glos Users in South Glos Homes,Permanent Nursing,First Floor  Lingfield House,662.24, 05-May-2020
1458,Revenue,CAHD,Central - Commissioned Services,Permanent Nursing,First Floor  Lingfield House,2445.96, 05-May-2020
1459,Revenue,CAHD,South Glos Users in South Glos Homes,Permanent Nursing,First Floor  Lingfield House,662.24, 05-May-2020
1460,Revenue,CAHD,North - Community based support,Permanent Nursing,First Floor  Lingfield House,2445.96, 05-May-2020
1461,Revenue,CAHD,South Glos Users in South Glos Homes,Permanent Nursing,First Floor  Lingfield House,662.24, 05-May-2020
1462,Revenue,CAHD,Central - Commissioned Services,Permanent Residential,First Floor  Lingfield House,2823.36, 05-May-2020
1463,Revenue,CAHD,North - Community based support,Permanent Nursing,First Floor  Lingfield House,2445.96, 05-May-2020
1464,Revenue,CAHD,South Glos Users in South Glos Homes,Permanent Nursing,First Floor  Lingfield House,662.24, 05-May-2020
1465,Revenue,CAHD,North - Community based support,Permanent Nursing,First Floor  Lingfield House,2445.96, 05-May-2020
1466,Revenue,CAHD,South Glos Users in South Glos Homes,Permanent Nursing,First Floor  Lingfield House,662.24, 05-May-2020
1467,Revenue,CAHD,South Glos Users in South Glos Homes,Permanent Nursing,First Floor  Lingfield House,662.24, 05-May-2020
1468,Revenue,CAHD,Central - Commissioned Services,Permanent Nursing,First Floor  Lingfield House,2521.04, 05-May-2020
1469,Revenue,CAHD,South Glos Users in South Glos Homes,Permanent Nursing,First Floor  Lingfield House,662.24, 05-May-2020
1470,Revenue,CAHD,North - Community based support,Permanent Residential,First Floor  Lingfield House,2487.96, 05-May-2020
1471,Revenue,CAHD,North - Community based support,Permanent Residential,First Floor  Lingfield House,1243.98, 05-May-2020
1472,Revenue,CAHD,South Glos Users in South Glos Homes,Permanent Nursing,First Floor  Lingfield House,662.24, 05-May-2020
1473,Revenue,CAHD,South Glos Users in South Glos Homes,Permanent Nursing,First Floor  Lingfield House,662.24, 05-May-2020
1474,Revenue,CAHD,Central - Bed Purchasing and Direct Payments,Permanent Nursing,First Floor  Lingfield House,2445.96, 05-May-2020
1475,Revenue,CAHD,Central - Commissioned Services,Permanent Residential,First Floor  Lingfield House,2823.36, 05-May-2020
1476,Revenue,CAHD,Central - Commissioned Services,Permanent Residential,First Floor  Lingfield House,2823.36, 05-May-2020
1477,Revenue,CAHD,Central - Commissioned Services,Permanent Nursing,First Floor  Lingfield House,2445.96, 05-May-2020
1478,Revenue,CAHD,South Glos Users in South Glos Homes,Permanent Nursing,First Floor  Lingfield House,662.24, 05-May-2020
1479,Revenue,CAHD,South Glos Users in South Glos Homes,Permanent Nursing,First Floor  Lingfield House,662.24, 05-May-2020
1480,Revenue,CAHD,South Glos Users in South Glos Homes,Permanent Nursing,First Floor  Lingfield House,662.24, 05-May-2020
1481,Revenue,CAHD,South Glos Users in South Glos Homes,Permanent Nursing,First Floor  Lingfield House,662.24, 05-May-2020
1482,Revenue,CAHD,South Glos Users in South Glos Homes,Permanent Nursing,First Floor  Lingfield House,662.24, 05-May-2020
1483,Revenue,CAHD,South Glos Users in South Glos Homes,Permanent Nursing,First Floor  Lingfield House,662.24, 05-May-2020
1484,Revenue,CAHD,Central - Commissioned Services,Permanent Nursing,First Floor  Lingfield House,2445.96, 05-May-2020
1485,Revenue,CAHD,South Glos Users in South Glos Homes,Permanent Nursing,First Floor  Lingfield House,662.24, 05-May-2020
1486,Revenue,CAHD,Central - Commissioned Services,Permanent Nursing,First Floor  Lingfield House,2357.44, 05-May-2020
1487,Revenue,CAHD,South Glos Users in South Glos Homes,Permanent Nursing,First Floor  Lingfield House,662.24, 05-May-2020
1488,Revenue,CAHD,North - Community based support,Permanent Nursing,First Floor  Lingfield House,2485.88, 05-May-2020
1489,Revenue,CAHD,South Glos Users in South Glos Homes,Permanent Nursing,First Floor  Lingfield House,662.24, 05-May-2020
1490,Revenue,CAHD,Central - Commissioned Services,Permanent Nursing,First Floor  Lingfield House,2445.96, 05-May-2020
1491,Revenue,CAHD,South Glos Users in South Glos Homes,Permanent Nursing,First Floor  Lingfield House,662.24, 05-May-2020
1492,Revenue,CAHD,Central - Commissioned Services,Permanent Residential,First Floor  Lingfield House,2891.12, 05-May-2020
1493,Revenue,CAHD,North - Community based support,Permanent Nursing,First Floor  Lingfield House,2445.96, 05-May-2020
1494,Revenue,CAHD,South Glos Users in South Glos Homes,Permanent Nursing,First Floor  Lingfield House,662.24, 05-May-2020
1495,Revenue,CAHD,North - Community based support,Permanent Nursing,First Floor  Lingfield House,2445.96, 05-May-2020
1496,Revenue,CAHD,South Glos Users in South Glos Homes,Permanent Nursing,First Floor  Lingfield House,662.24, 05-May-2020
1497,Revenue,CAHD,Central - Commissioned Services,Permanent Nursing,First Floor  Lingfield House,2445.96, 05-May-2020
1498,Revenue,CAHD,South Glos Users in South Glos Homes,Permanent Nursing,First Floor  Lingfield House,662.24, 05-May-2020
1499,Revenue,CAHD,South Glos Users in South Glos Homes,Permanent Nursing,First Floor  Lingfield House,662.24, 05-May-2020
1500,Revenue,CAHD,North - Community based support,Permanent Nursing,First Floor  Lingfield House,2403.72, 05-May-2020
1501,Revenue,CAHD,South Glos Users in South Glos Homes,Permanent Nursing,First Floor  Lingfield House,662.24, 05-May-2020
1502,Revenue,CAHD,North - Community based support,Permanent Nursing,First Floor  Lingfield House,2520.88, 05-May-2020
1503,Revenue,CAHD,South Glos Users in South Glos Homes,Permanent Nursing,First Floor  Lingfield House,662.24, 05-May-2020
1504,Revenue,CAHD,Covid 19 -Adult Social Care,Permanent Residential,First Floor  Lingfield House,8229.26, 27-May-2020
1505,Revenue,CAHD,Central - Commissioned Services,Permanent Nursing,First Floor  Lingfield House,2535.84, 05-May-2020
1506,Revenue,CAHD,South Glos Users in South Glos Homes,Permanent Nursing,First Floor  Lingfield House,662.24, 05-May-2020
1507,Revenue,CAHD,North - Community based support,Permanent Residential,First Floor  Lingfield House,3400.00, 05-May-2020
1508,Revenue,CAHD,South Glos Users in South Glos Homes,Permanent Nursing,First Floor  Lingfield House,662.24, 05-May-2020
1509,Revenue,CAHD,North - Community based support,Permanent Nursing,First Floor  Lingfield House,2445.96, 05-May-2020
1510,Revenue,CAHD,South Glos Users in South Glos Homes,Permanent Nursing,First Floor  Lingfield House,662.24, 05-May-2020
1511,Revenue,CAHD,South Glos Users in South Glos Homes,Permanent Nursing,First Floor  Lingfield House,662.24, 05-May-2020
1512,Revenue,CAHD,Central - Commissioned Services,Permanent Nursing,First Floor  Lingfield House,3299.40, 05-May-2020
1513,Revenue,CAHD,South Glos Users in South Glos Homes,Permanent Nursing,First Floor  Lingfield House,662.24, 05-May-2020
1514,Revenue,CAHD,Central - Commissioned Services,Permanent Nursing,First Floor  Lingfield House,3541.88, 05-May-2020
1515,Revenue,CAHD,South Glos Users in South Glos Homes,Permanent Nursing,First Floor  Lingfield House,662.24, 05-May-2020
1516,Revenue,CAHD,South Glos Users in South Glos Homes,Permanent Nursing,First Floor  Lingfield House,662.24, 05-May-2020
1517,Revenue,CAHD,South Glos Users in South Glos Homes,Permanent Nursing,First Floor  Lingfield House,662.24, 05-May-2020
1518,Revenue,CAHD,Central - Commissioned Services,Permanent Nursing,First Floor  Lingfield House,2996.52, 05-May-2020
1519,Revenue,CAHD,Central - Commissioned Services,Permanent Nursing,First Floor  Lingfield House,2894.52, 05-May-2020
1520,Revenue,CAHD,South Glos Users in South Glos Homes,Permanent Nursing,First Floor  Lingfield House,662.24, 05-May-2020
1521,Revenue,CAHD,Central - Commissioned Services,Permanent Nursing,First Floor  Lingfield House,2786.00, 05-May-2020
1522,Revenue,CAHD,South Glos Users in South Glos Homes,Permanent Nursing,First Floor  Lingfield House,662.24, 05-May-2020
1523,Revenue,CAHD,Central - Commissioned Services,Permanent Nursing,First Floor  Lingfield House,2859.56, 05-May-2020
1524,Revenue,CAHD,South Glos Users in South Glos Homes,Permanent Nursing,First Floor  Lingfield House,662.24, 05-May-2020
1525,Revenue,CAHD,South Glos Users in South Glos Homes,Permanent Nursing,First Floor  Lingfield House,662.24, 05-May-2020
1526,Revenue,CAHD,Central - Commissioned Services,Permanent Nursing,First Floor  Lingfield House,3057.56, 05-May-2020
1527,Revenue,CAHD,South Glos Users in South Glos Homes,Permanent Nursing,First Floor  Lingfield House,662.24, 05-May-2020
1528,Revenue,CAHD,South Glos Users in South Glos Homes,Permanent Nursing,First Floor  Lingfield House,662.24, 05-May-2020
1529,Revenue,CAHD,Central - Commissioned Services,Permanent Nursing,First Floor  Lingfield House,2890.44, 05-May-2020
1530,Revenue,CAHD,South Glos Users in South Glos Homes,Permanent Nursing,First Floor  Lingfield House,662.24, 05-May-2020
1531,Revenue,CAHD,Central - Commissioned Services,Permanent Residential,First Floor  Lingfield House,3007.00, 05-May-2020
1532,Revenue,CAHD,North - Community based support,Permanent Nursing,First Floor  Lingfield House,2639.32, 05-May-2020
1533,Revenue,CAHD,South Glos Users in South Glos Homes,Permanent Nursing,First Floor  Lingfield House,662.24, 05-May-2020
1534,Revenue,CAHD,South Glos Users in South Glos Homes,Permanent Nursing,First Floor  Lingfield House,662.24, 05-May-2020
1535,Revenue,CAHD,South Glos Users in South Glos Homes,Permanent Nursing,First Floor  Lingfield House,662.24, 05-May-2020
1536,Revenue,CAHD,South Glos Users in South Glos Homes,Permanent Nursing,First Floor  Lingfield House,662.24, 05-May-2020
1537,Revenue,CAHD,South Glos Users in South Glos Homes,Permanent Nursing,First Floor  Lingfield House,662.24, 05-May-2020
1538,Revenue,CAHD,South Glos Users in South Glos Homes,Permanent Nursing,First Floor  Lingfield House,662.24, 05-May-2020
1539,Revenue,CAHD,South Glos Users in South Glos Homes,Permanent Nursing,First Floor  Lingfield House,662.24, 05-May-2020
1540,Revenue,CAHD,Central - Commissioned Services,Permanent Nursing,First Floor  Lingfield House,2520.88, 05-May-2020
1541,Revenue,CAHD,South Glos Users in South Glos Homes,Permanent Nursing,First Floor  Lingfield House,662.24, 05-May-2020
1542,Revenue,CAHD,Central - Commissioned Services,Permanent Nursing,First Floor  Lingfield House,3099.32, 05-May-2020
1543,Revenue,CAHD,South Glos Users in South Glos Homes,Permanent Nursing,First Floor  Lingfield House,662.24, 05-May-2020
1544,Revenue,CAHD,North - Community based support,Permanent Nursing,First Floor  Lingfield House,2890.88, 05-May-2020
1545,Revenue,CAHD,South Glos Users in South Glos Homes,Permanent Nursing,First Floor  Lingfield House,662.24, 05-May-2020
1546,Revenue,CAHD,South Glos Users in South Glos Homes,Permanent Nursing,First Floor  Lingfield House,662.24, 05-May-2020
1547,Revenue,CAHD,Central - Commissioned Services,Permanent Nursing,First Floor  Lingfield House,3299.40, 05-May-2020
1548,Revenue,CAHD,South Glos Users in South Glos Homes,Permanent Nursing,First Floor  Lingfield House,662.24, 05-May-2020
1549,Revenue,CAHD,North - Community based support,Permanent Nursing,First Floor  Lingfield House,2565.80, 05-May-2020
1550,Revenue,CAHD,South Glos Users in South Glos Homes,Permanent Nursing,First Floor  Lingfield House,662.24, 05-May-2020
1551,Revenue,CAHD,South - Commissioned Services,Permanent Nursing,First Floor  Lingfield House,2668.44, 05-May-2020
1552,Revenue,CAHD,South Glos Users in South Glos Homes,Permanent Nursing,First Floor  Lingfield House,662.24, 05-May-2020
1553,Revenue,CAHD,Covid 19 -Adult Social Care,Permanent Residential,First Floor  Lingfield House,6023.17, 27-May-2020
1554,Revenue,CAHD,South - Commissioned Services,Permanent Nursing,First Floor  Lingfield House,3243.36, 05-May-2020
1555,Revenue,CAHD,Central - Bed Purchasing and Direct Payments,Permanent Residential,First Floor  Lingfield House,1418.88, 05-May-2020
1556,Revenue,CAHD,South Glos Users in South Glos Homes,Permanent Nursing,First Floor  Lingfield House,662.24, 05-May-2020
1557,Revenue,CAHD,South - Commissioned Services,Permanent Nursing,First Floor  Lingfield House,2660.84, 05-May-2020
1558,Revenue,CAHD,South Glos Users in South Glos Homes,Permanent Nursing,First Floor  Lingfield House,662.24, 05-May-2020
1559,Revenue,CAHD,South - Commissioned Services,Permanent Nursing,First Floor  Lingfield House,2554.36, 05-May-2020
1560,Revenue,CAHD,South Glos Users in South Glos Homes,Permanent Nursing,First Floor  Lingfield House,662.24, 05-May-2020
1561,Revenue,CAHD,South Glos Users in South Glos Homes,Permanent Nursing,First Floor  Lingfield House,662.24, 05-May-2020
1562,Revenue,CAHD,South - Commissioned Services,Permanent Residential,First Floor  Lingfield House,2715.64, 05-May-2020
1563,Revenue,CAHD,South - Commissioned Services,Permanent Residential,First Floor  Lingfield House,1357.82, 05-May-2020
1564,Revenue,CAHD,South - Commissioned Services,Fees & Charges Income - General,First Floor  Lingfield House,511.31, 05-May-2020
1565,Revenue,CAHD,South - bed purchasing and direct  payments,Permanent Nursing,First Floor  Lingfield House,2421.92, 05-May-2020
1566,Revenue,CAHD,South - bed purchasing and direct  payments,Permanent Nursing,First Floor  Lingfield House,1210.96, 05-May-2020
1567,Revenue,CAHD,South Glos Users in South Glos Homes,Permanent Nursing,First Floor  Lingfield House,662.24, 05-May-2020
1568,Revenue,CAHD,South - Commissioned Services,Permanent Residential,First Floor  Lingfield House,2447.96, 05-May-2020
1569,Revenue,CAHD,Central - Commissioned Services,Respite Emergency - Residential,First Floor  Lingfield House,2280.00, 05-May-2020
1570,Revenue,CAHD,Central - Commissioned Services,Respite Emergency - Residential,First Floor  Lingfield House,760.00, 05-May-2020
1571,Revenue,CAHD,South - Commissioned Services,Permanent Nursing,First Floor  Lingfield House,2470.36, 05-May-2020
1572,Revenue,CAHD,South Glos Users in South Glos Homes,Permanent Nursing,First Floor  Lingfield House,662.24, 05-May-2020
1573,Revenue,CAHD,South Glos Users in South Glos Homes,Permanent Nursing,First Floor  Lingfield House,662.24, 05-May-2020
1574,Revenue,CAHD,South - Commissioned Services,Permanent Nursing,First Floor  Lingfield House,3508.80, 05-May-2020
1575,Revenue,CAHD,South - Commissioned Services,Permanent Residential,First Floor  Lingfield House,2349.68, 05-May-2020
1576,Revenue,CAHD,Covid 19 -Adult Social Care,Permanent Residential,First Floor  Lingfield House,2647.11, 27-May-2020
1577,Revenue,CAHD,North - Community based support,Permanent Nursing,First Floor  Lingfield House,2401.84, 05-May-2020
1578,Revenue,CAHD,North - Community based support,Permanent Residential,First Floor  Lingfield House,2174.20, 05-May-2020
1579,Revenue,CAHD,Covid 19 -Adult Social Care,Permanent Residential,First Floor  Lingfield House,950.51, 27-May-2020
1580,Revenue,CAHD,North - Community based support,Permanent Nursing,First Floor  Lingfield House,2657.80, 05-May-2020
1581,Revenue,CAHD,CSC - Vinney Green Secure Unit,Educational Materials,Fitness Superstore,1331.67, 11-May-2020
1582,Revenue,CAHD,CSC - Agency Fostering,Foster Parent Allowances,Five Rivers Child Care Limited,3434.43, 01-May-2020
1583,Revenue,CAHD,CSC - Agency Fostering,Foster Parent Allowances,Five Rivers Child Care Limited,3671.29, 01-May-2020
1584,Revenue,CAHD,CSC - Agency Fostering,Foster Parent Allowances,Five Rivers Child Care Limited,596.73, 29-May-2020
1585,Revenue,CAHD,CSC - Agency Fostering,Foster Parent Allowances,Five Rivers Child Care Limited,3336.60, 01-May-2020
1586,Revenue,CAHD,CSC - Agency Fostering,Foster Parent Allowances,Five Rivers Child Care Limited,3336.60, 01-May-2020
1587,Revenue,CAHD,CSC - Agency Fostering,Foster Parent Allowances,Five Rivers Child Care Limited,3510.00, 14-May-2020
1588,Revenue,CAHD,CSC - Agency Fostering,Foster Parent Allowances,Five Rivers Child Care Limited,2237.74, 29-May-2020
1589,Revenue,CAHD,CSC - Agency Fostering,Foster Parent Allowances,Five Rivers Child Care Limited,2312.33, 29-May-2020
1590,Revenue,CAHD,CSC - Agency Fostering,Foster Parent Allowances,Five Rivers Child Care Limited,3627.00, 26-May-2020
1591,Revenue,CAHD,CSC - Agency Fostering,Foster Parent Allowances,Five Rivers Child Care Limited,3671.29, 26-May-2020
1592,Revenue,CAHD,CSC - Agency Fostering,Foster Parent Allowances,Five Rivers Child Care Limited,3447.82, 26-May-2020
1593,Revenue,CAHD,CSC - Agency Fostering,Foster Parent Allowances,Five Rivers Child Care Limited,3447.82, 26-May-2020
1594,Revenue,CAHD,CSC - Agency Fostering,Foster Parent Allowances,Fostering Matters Ltd,3407.10, 15-May-2020
1595,Revenue,CAHD,CSC - Agency Fostering,Foster Parent Allowances,Fostering Matters Ltd,3407.10, 15-May-2020
1596,Revenue,CAHD,CSC - Parent & Child Assessments,Foster Parent Allowances,Fostering Solutions Limited,5869.54, 28-May-2020
1597,Revenue,CAHD,CSC - Parent & Child Assessments,Foster Parent Allowances,Fostering Solutions Limited,7512.23, 28-May-2020
1598,Revenue,CAHD,Covid 19 -Adult Social Care,Other Small Contracts,Fourways Care Limited,4.98, 05-May-2020
1599,Revenue,CAHD,South - Commissioned Services,Other Small Contracts,Fourways Care Limited,200.58, 05-May-2020
1600,Revenue,CAHD,North - Community based support,Other Small Contracts,Fourways Care Limited,11376.84, 05-May-2020
1601,Revenue,CAHD,Covid 19 -Adult Social Care,Other Small Contracts,Fourways Care Limited,9.96, 12-May-2020
1602,Revenue,CAHD,South - Commissioned Services,Other Small Contracts,Fourways Care Limited,200.58, 12-May-2020
1603,Revenue,CAHD,North - Community based support,Other Small Contracts,Fourways Care Limited,11355.66, 12-May-2020
1604,Revenue,CAHD,Covid 19 -Adult Social Care,Other Small Contracts,Fourways Care Limited,9.96, 19-May-2020
1605,Revenue,CAHD,South - Commissioned Services,Other Small Contracts,Fourways Care Limited,200.58, 19-May-2020
1606,Revenue,CAHD,North - Community based support,Other Small Contracts,Fourways Care Limited,11302.80, 19-May-2020
1607,Revenue,CAHD,Covid 19 -Adult Social Care,Other Small Contracts,Fourways Care Limited,720.60, 05-May-2020
1608,Revenue,CAHD,Covid 19 -Adult Social Care,Other Small Contracts,Fourways Care Limited,1050.30, 13-May-2020
1609,Revenue,CAHD,Additional Payments to providers - COVID,Other Small Contracts,Fourways Care Limited,1066.50, 21-May-2020
1610,Revenue,CAHD,Additional Payments to providers - COVID,Other Small Contracts,Fourways Care Limited,1119.36, 28-May-2020
1611,Revenue,CAHD,Additional Payments to providers - COVID,Other Small Contracts,Fourways Care Limited,938.99, 28-May-2020
1612,Revenue,CAHD,Covid 19 -Adult Social Care,Other Small Contracts,Fourways Care Limited,5680.47, 27-May-2020
1613,Revenue,CAHD,Pathway 1 - Re-Ablement Home Care,Other Small Contracts,Fourways Care Limited,710.53, 11-May-2020
1614,Revenue,CAHD,Supporting People Programme,Grants to Voluntary Bodies,Freeways Trust Limited,1067.00, 01-May-2020
1615,Revenue,CAHD,Covid 19 -Adult Social Care,Other Small Contracts,Freeways Trust Limited,563.06, 27-May-2020
1616,Revenue,CAHD,North - Community based support,Other Small Contracts,Freeways Trust Limited,14470.40, 05-May-2020
1617,Revenue,CAHD,North - Community based support,Other Small Contracts,Freeways Trust Limited,516.80, 07-May-2020
1618,Revenue,CAHD,North - Community based support,Other Small Contracts,Freeways Trust Limited,855.36, 15-May-2020
1619,Revenue,CAHD,South - Commissioned Services,Day Care / Social Activities,Freeways Trust Limited,1050.56, 15-May-2020
1620,Revenue,CAHD,Central - Commissioned Services,Other Small Contracts,Freeways Trust Limited,893.04, 15-May-2020
1621,Revenue,CAHD,North - Community based support,Other Small Contracts,Freeways Trust Limited,528.79, 15-May-2020
1622,Revenue,CAHD,Central - Commissioned Services,Permanent Residential,Freeways Trust Limited,3968.00, 05-May-2020
1623,Revenue,CAHD,Central - Commissioned Services,Permanent Residential,Freeways Trust Limited,2550.86, 05-May-2020
1624,Revenue,CAHD,Central - Commissioned Services,Permanent Residential,Freeways Trust Limited,1984.00, 05-May-2020
1625,Revenue,CAHD,Central - Commissioned Services,Permanent Residential,Freeways Trust Limited,5346.16, 05-May-2020
1626,Revenue,CAHD,Central - Commissioned Services,Permanent Residential,Freeways Trust Limited,4462.28, 05-May-2020
1627,Revenue,CAHD,Central - Commissioned Services,Respite Planned - Residential,Freeways Trust Limited,2419.29, 05-May-2020
1628,Revenue,CAHD,Central - Commissioned Services,Permanent Residential,Freeways Trust Limited,5152.32, 05-May-2020
1629,Revenue,CAHD,Central - Commissioned Services,Permanent Residential,Freeways Trust Limited,5403.84, 05-May-2020
1630,Revenue,CAHD,South - Commissioned Services,Permanent Residential,Freeways Trust Limited,4431.96, 05-May-2020
1631,Revenue,CAHD,Central - Commissioned Services,Permanent Residential,Freeways Trust Limited,4006.56, 05-May-2020
1632,Revenue,CAHD,Central - Commissioned Services,Permanent Residential,Freeways Trust Limited,5373.64, 05-May-2020
1633,Revenue,CAHD,North - Community based support,Permanent Residential,Freeways Trust Limited,4009.36, 05-May-2020
1634,Revenue,CAHD,Central - Commissioned Services,Permanent Residential,Freeways Trust Limited,5991.92, 05-May-2020
1635,Revenue,CAHD,Covid 19 -Adult Social Care,Permanent Residential,Freeways Trust Limited,5233.24, 27-May-2020
1636,Revenue,CAHD,North - Community based support,Supported Living,Freeways Trust Ltd,862.44, 05-May-2020
1637,Revenue,CAHD,S28A cases,Permanent Residential,Freeways Trust Ltd,3886.64, 05-May-2020
1638,Revenue,CAHD,North - Community based support,Permanent Residential,Freeways Trust Ltd,3763.40, 05-May-2020
1639,Revenue,CAHD,North - Community based support,Permanent Residential,Freeways Trust Ltd,3301.04, 05-May-2020
1640,Revenue,CAHD,North - Community based support,Permanent Residential,Freeways Trust Ltd,3381.20, 05-May-2020
1641,Revenue,CAHD,North - Community based support,Permanent Residential,Freeways Trust Ltd,3680.48, 05-May-2020
1642,Revenue,CAHD,Section 117 Placements MH Younger,Permanent Residential,Freeways Trust Ltd,3339.04, 05-May-2020
1643,Revenue,CAHD,Covid 19 -Adult Social Care,Permanent Residential,Freeways Trust Ltd,762.54, 27-May-2020
1644,Revenue,CAHD,Covid 19 -Adult Social Care,Permanent Residential,Freeways Trust Ltd,767.42, 27-May-2020
1645,Revenue,CAHD,North - Community based support,Permanent Residential,Freeways Trust Ltd,3884.00, 05-May-2020
1646,Revenue,CAHD,Central - Commissioned Services,Day Care / Social Activities,Frenchay Beckspool Building,1933.52, 05-May-2020
1647,Revenue,CAHD,South - Commissioned Services,Day Care / Social Activities,Frenchay Beckspool Building,920.44, 05-May-2020
1648,Revenue,CAHD,South - Commissioned Services,Day Care / Social Activities,Frenchay Beckspool Building,652.88, 05-May-2020
1649,Revenue,CAHD,North - Community based support,Permanent Nursing,Frenchay Park Nursing Home,3481.60, 05-May-2020
1650,Revenue,CAHD,North - Community based support,Permanent Nursing,Frenchay Park Nursing Home,3400.00, 05-May-2020
1651,Revenue,CAHD,Covid 19 -Adult Social Care,Permanent Residential,Frenchay Park Nursing Home,1116.90, 27-May-2020
1652,Revenue,CAHD,Drug and Alcohol Programme,Other Small Contracts,Frome Valley Medical Centre,609.00, 29-May-2020
1653,Revenue,CAHD,CSC - Through & Leaving Care Team,Agency Staff (Admin/Support Staff) Pay,Frontline Staffing Ltd,1637.65, 07-May-2020
1654,Revenue,CAHD,CSC - Through & Leaving Care Team,Agency Staff (Admin/Support Staff) Pay,Frontline Staffing Ltd,1871.60, 07-May-2020
1655,Revenue,CAHD,CSC - Through & Leaving Care Team,Agency Staff (Admin/Support Staff) Pay,Frontline Staffing Ltd,1871.60, 07-May-2020
1656,Revenue,CAHD,CSC - Through & Leaving Care Team,Agency Staff (Admin/Support Staff) Pay,Frontline Staffing Ltd,1871.60, 12-May-2020
1657,Revenue,CAHD,CSC - Social Work Team - CENTRAL,Agency Staff (Admin/Support Staff) Pay,Frontline Staffing Ltd,1746.08, 01-May-2020
1658,Revenue,CAHD,CSC - Through & Leaving Care Team,Agency Staff (Admin/Support Staff) Pay,Frontline Staffing Ltd,1887.36, 04-May-2020
1659,Revenue,CAHD,CSC - Through & Leaving Care Team,Agency Staff (Admin/Support Staff) Pay,Frontline Staffing Ltd,1380.31, 05-May-2020
1660,Revenue,CAHD,CSC - Through & Leaving Care Team,Agency Staff (Admin/Support Staff) Pay,Frontline Staffing Ltd,1887.36, 11-May-2020
1661,Revenue,CAHD,CSC - Social Work Team - CENTRAL,Agency Staff (Admin/Support Staff) Pay,Frontline Staffing Ltd,1544.07, 11-May-2020
1662,Revenue,CAHD,CSC - Through & Leaving Care Team,Agency Staff (Admin/Support Staff) Pay,Frontline Staffing Ltd,1380.31, 12-May-2020
1663,Revenue,CAHD,CSC - Social Work Team - CENTRAL,Agency Staff (Admin/Support Staff) Pay,Frontline Staffing Ltd,1486.09, 15-May-2020
1664,Revenue,CAHD,CSC - Through & Leaving Care Team,Agency Staff (Admin/Support Staff) Pay,Frontline Staffing Ltd,1532.37, 19-May-2020
1665,Revenue,CAHD,CSC - Social Work Team - SOUTH,Agency Staff (Admin/Support Staff) Pay,Frontline Staffing Ltd,1052.78, 26-May-2020
1666,Revenue,CAHD,CSC - Through & Leaving Care Team,Agency Staff (Admin/Support Staff) Pay,Frontline Staffing Ltd,1871.60, 27-May-2020
1667,Revenue,CAHD,CSC - Through & Leaving Care Team,Agency Staff (Admin/Support Staff) Pay,Frontline Staffing Ltd,1497.28, 29-May-2020
1668,Revenue,CAHD,CSC - Through & Leaving Care Team,Agency Staff (Admin/Support Staff) Pay,Frontline Staffing Ltd,1731.23, 29-May-2020
1669,Revenue,CAHD,CSC - Asylum Seekers - Unaccompanied,Foster Parent Allowances,Fusion Fostering Ltd,3764.29, 21-May-2020
1670,Revenue,CAHD,CSC - Agency Fostering,Foster Parent Allowances,Fusion Fostering Ltd,4209.05, 29-May-2020
1671,Revenue,CAHD,CSC - Asylum Seekers - Unaccompanied,Foster Parent Allowances,Fusion Fostering Ltd,3405.57, 21-May-2020
1672,Revenue,CAHD,Alexandra Way,Premises Maintenance by Contractor,George Grimes,1275.00, 06-May-2020
1673,Revenue,CAHD,North - Community based support,Supported Living,Gladstone House,3237.64, 05-May-2020
1674,Revenue,CAHD,18-25 Year Olds,Supported Living,Gladstone House,3237.64, 05-May-2020
1675,Revenue,CAHD,South - Commissioned Services,Permanent Residential,Gladstone House,5999.84, 05-May-2020
1676,Revenue,CAHD,MH Purchasing - Younger,Permanent Residential,Gladstone House,3135.90, 05-May-2020
1677,Revenue,CAHD,Jointly Funded H&SC Packages,Permanent Residential,Gladstone House,783.98, 05-May-2020
1678,Revenue,CAHD,Covid 19 -Adult Social Care,Permanent Residential,Gladstone House,992.43, 27-May-2020
1679,Revenue,CAHD,North - Community based support,Permanent Residential,Glan Y Felin,6803.40, 05-May-2020
1680,Revenue,CAHD,Covid 19 -Adult Social Care,Permanent Residential,Glan Y Felin,739.06, 27-May-2020
1681,Revenue,CAHD,South - Commissioned Services,Permanent Residential,Glasallt Fawr,5344.40, 05-May-2020
1682,Revenue,CAHD,Covid 19 -Adult Social Care,Permanent Residential,Glasallt Fawr,580.57, 27-May-2020
1683,Revenue,CAHD,North - Community based support,Permanent Nursing,Glebe House Nursing Home,3737.44, 05-May-2020
1684,Revenue,CAHD,South Glos Users in South Glos Homes,Permanent Nursing,Glebe House Nursing Home,662.24, 05-May-2020
1685,Revenue,CAHD,North - Community based support,Permanent Nursing,Glebe House Nursing Home,4052.60, 05-May-2020
1686,Revenue,CAHD,South Glos Users in South Glos Homes,Permanent Nursing,Glebe House Nursing Home,662.24, 05-May-2020
1687,Revenue,CAHD,South Glos Users in South Glos Homes,Permanent Nursing,Glebe House Nursing Home,662.24, 05-May-2020
1688,Revenue,CAHD,South Glos Users in South Glos Homes,Permanent Nursing,Glebe House Nursing Home,662.24, 05-May-2020
1689,Revenue,CAHD,South Glos Users in South Glos Homes,Permanent Nursing,Glebe House Nursing Home,662.24, 05-May-2020
1690,Revenue,CAHD,North - Community based support,Permanent Residential,Glebe House Nursing Home,3998.40, 05-May-2020
1691,Revenue,CAHD,South Glos Users in South Glos Homes,Permanent Nursing,Glebe House Nursing Home,756.85, 05-May-2020
1692,Revenue,CAHD,South Glos Users in South Glos Homes,Permanent Nursing,Glebe House Nursing Home,662.24, 05-May-2020
1693,Revenue,CAHD,South Glos Users in South Glos Homes,Permanent Nursing,Glebe House Nursing Home,662.24, 05-May-2020
1694,Revenue,CAHD,North - Community based support,Permanent Residential,Glebe House Nursing Home,3910.52, 05-May-2020
1695,Revenue,CAHD,North - Community based support,Fees & Charges Income - General,Glebe House Nursing Home,783.86, 05-May-2020
1696,Revenue,CAHD,South Glos Users in South Glos Homes,Permanent Nursing,Glebe House Nursing Home,662.24, 05-May-2020
1697,Revenue,CAHD,South Glos Users in South Glos Homes,Permanent Nursing,Glebe House Nursing Home,662.24, 05-May-2020
1698,Revenue,CAHD,South Glos Users in South Glos Homes,Permanent Nursing,Glebe House Nursing Home,1537.34, 05-May-2020
1699,Revenue,CAHD,South Glos Users in South Glos Homes,Permanent Nursing,Glebe House Nursing Home,662.24, 05-May-2020
1700,Revenue,CAHD,North - Community based support,Permanent Nursing,Glebe House Nursing Home,4048.60, 05-May-2020
1701,Revenue,CAHD,South Glos Users in South Glos Homes,Permanent Nursing,Glebe House Nursing Home,662.24, 05-May-2020
1702,Revenue,CAHD,Central - Commissioned Services,Permanent Residential,Glebe House Nursing Home,3980.00, 05-May-2020
1703,Revenue,CAHD,South Glos Users in South Glos Homes,Permanent Nursing,Glebe House Nursing Home,662.24, 05-May-2020
1704,Revenue,CAHD,North - Community based support,Permanent Nursing,Glebe House Nursing Home,4080.00, 05-May-2020
1705,Revenue,CAHD,North - Community based support,Fees & Charges Income - General,Glebe House Nursing Home,1613.90, 05-May-2020
1706,Revenue,CAHD,North - Community based support,Permanent Nursing,Glebe House Nursing Home,2040.00, 05-May-2020
1707,Revenue,CAHD,South Glos Users in South Glos Homes,Permanent Nursing,Glebe House Nursing Home,662.24, 05-May-2020
1708,Revenue,CAHD,South Glos Users in South Glos Homes,Permanent Nursing,Glebe House Nursing Home,662.24, 05-May-2020
1709,Revenue,CAHD,North - Community based support,Permanent Nursing,Glebe House Nursing Home,4039.36, 05-May-2020
1710,Revenue,CAHD,South Glos Users in South Glos Homes,Permanent Nursing,Glebe House Nursing Home,662.24, 05-May-2020
1711,Revenue,CAHD,North - Community based support,Permanent Nursing,Glebe House Nursing Home,5974.29, 05-May-2020
1712,Revenue,CAHD,North - Community based support,Permanent Nursing,Glebe House Nursing Home,4080.00, 05-May-2020
1713,Revenue,CAHD,South Glos Users in South Glos Homes,Permanent Nursing,Glebe House Nursing Home,1158.92, 05-May-2020
1714,Revenue,CAHD,North - Community based support,Permanent Residential,Glebe House Nursing Home,5051.24, 05-May-2020
1715,Revenue,CAHD,South Glos Users in South Glos Homes,Permanent Nursing,Glebe House Nursing Home,1513.69, 05-May-2020
1716,Revenue,CAHD,South Glos Users in South Glos Homes,Permanent Nursing,Glebe House Nursing Home,733.19, 05-May-2020
1717,Revenue,CAHD,South Glos Users in South Glos Homes,Permanent Nursing,Glebe House Nursing Home,662.24, 05-May-2020
1718,Revenue,CAHD,South Glos Users in South Glos Homes,Permanent Nursing,Glebe House Nursing Home,1702.90, 05-May-2020
1719,Revenue,CAHD,South Glos Users in South Glos Homes,Permanent Nursing,Glebe House Nursing Home,662.24, 05-May-2020
1720,Revenue,CAHD,North - Community based support,Permanent Nursing,Glebe House Nursing Home,3572.12, 05-May-2020
1721,Revenue,CAHD,South Glos Users in South Glos Homes,Permanent Nursing,Glebe House Nursing Home,662.24, 05-May-2020
1722,Revenue,CAHD,South Glos Users in South Glos Homes,Permanent Nursing,Glebe House Nursing Home,3571.37, 05-May-2020
1723,Revenue,CAHD,Central - Commissioned Services,Permanent Nursing,Glebe House Nursing Home,4400.00, 05-May-2020
1724,Revenue,CAHD,South Glos Users in South Glos Homes,Permanent Nursing,Glebe House Nursing Home,662.24, 05-May-2020
1725,Revenue,CAHD,Covid 19 -Adult Social Care,Permanent Residential,Glebe House Nursing Home,4858.67, 27-May-2020
1726,Revenue,CAHD,North - Community based support,Permanent Nursing,Glenview Care Home,3224.00, 05-May-2020
1727,Revenue,CAHD,North - Community based support,Permanent Nursing,Glenview Care Home,1612.00, 05-May-2020
1728,Revenue,CAHD,North - Community based support,Permanent Nursing,Glenview Care Home,1266.57, 05-May-2020
1729,Revenue,CAHD,Central - Commissioned Services,Permanent Nursing,Glenview Care Home,3224.00, 05-May-2020
1730,Revenue,CAHD,South - Commissioned Services,Permanent Nursing,Glenview Care Home,2891.76, 05-May-2020
1731,Revenue,CAHD,North - S117,Permanent Nursing,Glenview Care Home,3301.36, 05-May-2020
1732,Revenue,CAHD,North - Community based support,Permanent Nursing,Glenview Care Home,3224.00, 05-May-2020
1733,Revenue,CAHD,North - Community based support,Permanent Nursing,Glenview Care Home,3224.00, 05-May-2020
1734,Revenue,CAHD,North - Community based support,Permanent Nursing,Glenview Care Home,2763.43, 05-May-2020
1735,Revenue,CAHD,Covid 19 -Adult Social Care,Permanent Residential,Glenview Care Home,2165.88, 27-May-2020
1736,Revenue,CAHD,Parent Partnership,Fees - General,Global Mediation Limited,17500.00, 21-May-2020
1737,Revenue,CAHD,South - Commissioned Services,Permanent Residential,Gordena Care Home,4018.92, 05-May-2020
1738,Revenue,CAHD,South - Commissioned Services,Permanent Residential,Gordena Care Home,2790.84, 05-May-2020
1739,Revenue,CAHD,South - Commissioned Services,Permanent Residential,Gordena Care Home,3973.32, 05-May-2020
1740,Revenue,CAHD,South - Commissioned Services,Permanent Residential,Gordena Care Home,3985.44, 05-May-2020
1741,Revenue,CAHD,Covid 19 -Adult Social Care,Permanent Residential,Gordena Care Home,1604.00, 27-May-2020
1742,Revenue,CAHD,18-25 Year Olds,Supported Living,Granville House,1940.60, 05-May-2020
1743,Revenue,CAHD,South - Commissioned Services,Supported Living,Granville House,1941.20, 05-May-2020
1744,Revenue,CAHD,South - Commissioned Services,Supported Living,Granville House,1940.32, 05-May-2020
1745,Revenue,CAHD,Sexual Health,Other Small Contracts,Great Western Hospitals NHS FT,500.16, 29-May-2020
1746,Revenue,CAHD,CSC - Residential Placements,Permanent Residential,Greenfields Adolecent Development Limited,25671.43, 14-May-2020
1747,Revenue,CAHD,CSC - Care Leavers Independent Living,Adults - Family Support,Greenfields Adolecent Development Limited,5785.71, 15-May-2020
1748,Revenue,CAHD,CSC - Care Leavers Independent Living,Independent Living,Greenfields Adolecent Development Limited,40075.01, 26-May-2020
1749,Revenue,CAHD,Statemented Support Academies,Other Public Bodies,Greenshaw Learning Trust T/A Woodlands Primary,554.13, 28-May-2020
1750,Revenue,CAHD,Statemented Support Academies,Other Public Bodies,Greenshaw Learning Trust T/A Woodlands Primary,1072.89, 28-May-2020
1751,Revenue,CAHD,Statemented Support Academies,Other Public Bodies,Greenshaw Learning Trust T/A Woodlands Primary,1072.89, 28-May-2020
1752,Revenue,CAHD,Statemented Support Academies,Other Public Bodies,Greenshaw Learning Trust T/A Woodlands Primary,837.09, 28-May-2020
1753,Revenue,CAHD,Statemented Support Academies,Other Public Bodies,Greenshaw Learning Trust T/A Woodlands Primary,742.77, 28-May-2020
1754,Revenue,CAHD,Statemented Support Academies,Other Public Bodies,Greenshaw Learning Trust T/A Woodlands Primary,778.14, 28-May-2020
1755,Revenue,CAHD,Statemented Support Academies,Other Public Bodies,Greenshaw Learning Trust T/A Woodlands Primary,774.50, 28-May-2020
1756,Revenue,CAHD,Statemented Support Academies,Other Public Bodies,Greenshaw Learning Trust T/A Woodlands Primary,860.67, 28-May-2020
1757,Revenue,CAHD,Academy Resource Base Funding,Other Public Bodies,Greenshaw Learning Trust T/A Woodlands Primary,1175.87, 26-May-2020
1758,Revenue,CAHD,Academy Resource Base Funding,Other Public Bodies,Greenshaw Learning Trust T/A Woodlands Primary,648.70, 26-May-2020
1759,Revenue,CAHD,Statemented Support Academies,Other Public Bodies,Greenshaw Learning Trust T/A Yate Academy,707.40, 28-May-2020
1760,Revenue,CAHD,Statemented Support Academies,Other Public Bodies,Greenshaw Learning Trust T/A Yate Academy,1320.48, 28-May-2020
1761,Revenue,CAHD,Statemented Support Academies,Other Public Bodies,Greenshaw Learning Trust T/A Yate Academy,1320.48, 28-May-2020
1762,Revenue,CAHD,Statemented Support Academies,Other Public Bodies,Greenshaw Learning Trust T/A Yate Academy,1072.89, 28-May-2020
1763,Revenue,CAHD,Statemented Support Academies,Other Public Bodies,Greenshaw Learning Trust T/A Yate Academy,801.72, 28-May-2020
1764,Revenue,CAHD,Statemented Support Academies,Other Public Bodies,Greenshaw Learning Trust T/A Yate Academy,541.58, 28-May-2020
1765,Revenue,CAHD,Statemented Support Academies,Other Public Bodies,Greenshaw Learning Trust T/A Yate Academy,624.87, 28-May-2020
1766,Revenue,CAHD,Statemented Support Academies,Other Public Bodies,Greenshaw Learning Trust T/A Yate Academy,624.87, 28-May-2020
1767,Revenue,CAHD,Academy Resource Base Funding,Other Public Bodies,Greenshaw Learning Trust T/A Yate Academy,1540.83, 26-May-2020
1768,Revenue,CAHD,Academy Resource Base Funding,Other Public Bodies,Greenshaw Learning Trust T/A Yate Academy,1013.74, 26-May-2020
1769,Revenue,CAHD,South - Commissioned Services,Permanent Residential,Gwendoline House,2522.88, 05-May-2020
1770,Revenue,CAHD,South - Commissioned Services,Permanent Residential,Gwendoline House,2652.00, 05-May-2020
1771,Revenue,CAHD,Covid 19 -Adult Social Care,Permanent Residential,Gwendoline House,850.01, 27-May-2020
1772,Revenue,CAHD,North - Community based support,Other Small Contracts,H F T,810.24, 01-May-2020
1773,Revenue,CAHD,North - Community based support,Other Small Contracts,H F T,810.24, 01-May-2020
1774,Revenue,CAHD,North - Community based support,Other Small Contracts,H F T,827.12, 01-May-2020
1775,Revenue,CAHD,North - Community based support,Other Small Contracts,H F T,860.88, 01-May-2020
1776,Revenue,CAHD,North - Community based support,Other Small Contracts,H F T,810.24, 06-May-2020
1777,Revenue,CAHD,Supporting People Programme,Grants to Voluntary Bodies,Habinteg Housing Association,694.00, 01-May-2020
1778,Revenue,CAHD,Social Lettings Agency,Fees - General,Individual,13.13, 27-May-2020
1779,Revenue,CAHD,Social Lettings Agency,Other Supplies & Services,Individual,577.72, 27-May-2020
1780,Revenue,CAHD,CSC - Corporate Parenting Manager,Agency Staff (Admin/Support Staff) Pay,Hampton`s Resourcing,3571.45, 04-May-2020
1781,Revenue,CAHD,CSC - Corporate Parenting Manager,Agency Staff (Admin/Support Staff) Pay,Hampton`s Resourcing,3571.45, 13-May-2020
1782,Revenue,CAHD,A & CL - Employability 19/20,Premises Hire,Hanham Community Centre,180.00, 20-May-2020
1783,Revenue,CAHD,A & CL - Community Development 19/20,Premises Hire,Hanham Community Centre,80.00, 20-May-2020
1784,Revenue,CAHD,A & CL - Functional Skills 19/20,Premises Hire,Hanham Community Centre,490.00, 20-May-2020
1785,Revenue,CAHD,Drug and Alcohol Programme,Other Small Contracts,Hanham Health,2334.50, 29-May-2020
1786,Revenue,CAHD,Home Care Monitoring (CM2000),Other Supplies & Services,HAS Technology Limited T/A CM2000,9394.85, 19-May-2020
1787,Revenue,CAHD,Home Care Monitoring (CM2000),Other Supplies & Services,HAS Technology Limited T/A CM2000,9579.01, 27-May-2020
1788,Revenue,CAHD,North - Community based support,Permanent Nursing,Head Office,2470.80, 05-May-2020
1789,Revenue,CAHD,North - Community based support,Permanent Nursing,Head Office,4554.08, 05-May-2020
1790,Revenue,CAHD,CSC - Residential Placements,Permanent Residential,Headway Adolescent Resources Limited,13600.00, 14-May-2020
1791,Revenue,CAHD,Covid 19 -Adult Social Care,Other Small Contracts,Headway Bristol,1274.08, 05-May-2020
1792,Revenue,CAHD,Covid 19 -Adult Social Care,Other Small Contracts,Headway Bristol,1155.64, 13-May-2020
1793,Revenue,CAHD,Additional Payments to providers - COVID,Other Small Contracts,Headway Bristol,1285.36, 21-May-2020
1794,Revenue,CAHD,Additional Payments to providers - COVID,Other Small Contracts,Headway Bristol,1324.84, 28-May-2020
1795,Revenue,CAHD,Additional Payments to providers - COVID,Other Small Contracts,Headway Bristol,1336.12, 28-May-2020
1796,Revenue,CAHD,Central - Commissioned Services,Other Small Contracts,Helping Hands Homecare,665.85, 05-May-2020
1797,Revenue,CAHD,South - Commissioned Services,Other Small Contracts,Helping Hands Homecare,342.93, 05-May-2020
1798,Revenue,CAHD,North - Community based support,Other Small Contracts,Helping Hands Homecare,2031.68, 05-May-2020
1799,Revenue,CAHD,Central - Commissioned Services,Other Small Contracts,Helping Hands Homecare,666.84, 18-May-2020
1800,Revenue,CAHD,South - Commissioned Services,Other Small Contracts,Helping Hands Homecare,115.92, 18-May-2020
1801,Revenue,CAHD,North - Community based support,Other Small Contracts,Helping Hands Homecare,2024.45, 18-May-2020
1802,Revenue,CAHD,Central - Commissioned Services,Other Small Contracts,Helping Hands Homecare,655.20, 19-May-2020
1803,Revenue,CAHD,South - Commissioned Services,Other Small Contracts,Helping Hands Homecare,338.10, 19-May-2020
1804,Revenue,CAHD,North - Community based support,Other Small Contracts,Helping Hands Homecare,2024.45, 19-May-2020
1805,Revenue,CAHD,Covid 19 -Adult Social Care,Other Small Contracts,Helping Hands Homecare,768.16, 05-May-2020
